Workbook

Sheet 使用法
F2: 予測実施日 | H2: 2019-03-21
B3: 播種期 | C3: から予測
B5: 予測地域 | F5: 予測値
B6: 水戸 | F6: 播 種 期: | H6: 2002-11-05
F7: 出 芽 期: | H7: 2002-11-15
B8: 播種期 | F8: 茎 立 期: | H8: 2003-03-28 | L8: 平年比
B9: 月 | C9: 日 | F9: 出 穂 期: | H9: 2003-04-25 | L9: 0 | M9: ℃
B10: 11 | C10: 5 | F10: 成 熟 期: | H10: 2003-06-12 | L10: で推移した場合
B12: 月･日 | C12: 播種期後日数 | D12: 判 定 | H12: 平年平均 気温(℃) (水戸地方気象台1981-2010) | I12: 本年平均 気温 (℃) | J12: 予測に用いるデータ
D13: 出芽期 | E13: 茎立期 | F13: 出穂期 | G13: 成熟期
B14: 2002-10-15 | C14: 0 | D14: - | E14: - | F14: - | G14: - | H14: 16.2 | L14: 使用方法：※入力が必要なのは黄色の部分です。 ①予測の起点としたい生育ステージ(播種期，出芽期，茎立期，出穂期)を選択してください。 ②予測地域を選択してください。予測したい圃場の最寄の気象観測地点を選びます。 ③起点としたい生育ステージ(播種期，茎立期，出穂期)に達した日付を選択してください。予測できるのは10/15以降です。 ④判明している範囲の本年の日平均気温を入力してください。本年データが多いほうが，予測精度が増します。未入力部分は平年値を用いて自動的に計算されます。予測起点以前のデータも自動的に除外されて計算されます。｢クリア｣ボタンを押すと入力した気温データが消去されます｡ ⑤青い欄に予測結果が表示されます。 ⑥気温が平年より高く(低く)推移した場合を予測するには，平年比の欄に数値を入力することで，数値を反映した平年値で計算されます。 使用上の注意点: ①圃場が気温測定地点から離れていたり，気象経過が平年と大きく異なる，あるいは倒伏・湿害等による生育への影響が大きい場合には，予測の精度が劣る可能性があります。 ②予測日以降の気温が平年と異なる場合は誤差が拡大していくので，後日再度予測することで精度が高まります｡ ③出穂期，成熟期等の対平年値遅速は予測モデルに頼りすぎず，現地の状況や研究所発行の生育状況などを勘案し，総合的に判断してください｡ ④うるう年には対応していません。うるう年で，予測結果が3月1日以降で表示された場合は，表示された日から1日引いた日が正しい予測日となります。
B15: 2002-10-16 | C15: 0 | D15: - | E15: - | F15: - | G15: - | H15: 16
B16: 2002-10-17 | C16: 0 | D16: - | E16: - | F16: - | G16: - | H16: 15.8
B17: 2002-10-18 | C17: 0 | D17: - | E17: - | F17: - | G17: - | H17: 15.6
B18: 2002-10-19 | C18: 0 | D18: - | E18: - | F18: - | G18: - | H18: 15.3
B19: 2002-10-20 | C19: 0 | D19: - | E19: - | F19: - | G19: - | H19: 15.1
B20: 2002-10-21 | C20: 0 | D20: - | E20: - | F20: - | G20: - | H20: 14.9
B21: 2002-10-22 | C21: 0 | D21: - | E21: - | F21: - | G21: - | H21: 14.6
B22: 2002-10-23 | C22: 0 | D22: - | E22: - | F22: - | G22: - | H22: 14.4
B23: 2002-10-24 | C23: 0 | D23: - | E23: - | F23: - | G23: - | H23: 14.2
B24: 2002-10-25 | C24: 0 | D24: - | E24: - | F24: - | G24: - | H24: 14
B25: 2002-10-26 | C25: 0 | D25: - | E25: - | F25: - | G25: - | H25: 13.9
B26: 2002-10-27 | C26: 0 | D26: - | E26: - | F26: - | G26: - | H26: 13.7
B27: 2002-10-28 | C27: 0 | D27: - | E27: - | F27: - | G27: - | H27: 13.5
B28: 2002-10-29 | C28: 0 | D28: - | E28: - | F28: - | G28: - | H28: 13.4
B29: 2002-10-30 | C29: 0 | D29: - | E29: - | F29: - | G29: - | H29: 13.2
B30: 2002-10-31 | C30: 0 | D30: - | E30: - | F30: - | G30: - | H30: 13
B31: 2002-11-01 | C31: 0 | D31: - | E31: - | F31: - | G31: - | H31: 12.9
B32: 2002-11-02 | C32: 0 | D32: - | E32: - | F32: - | G32: - | H32: 12.7
B33: 2002-11-03 | C33: 0 | D33: - | E33: - | F33: - | G33: - | H33: 12.6
B34: 2002-11-04 | C34: 0 | D34: - | E34: - | F34: - | G34: - | H34: 12.4
B35: 2002-11-05 | C35: 0 | D35: - | E35: - | F35: - | G35: - | H35: 12.2
B36: 2002-11-06 | C36: 1 | D36: - | E36: - | F36: - | G36: - | H36: 12.1 | J36: 12.1
B37: 2002-11-07 | C37: 2 | D37: - | E37: - | F37: - | G37: - | H37: 11.9 | J37: 11.9
B38: 2002-11-08 | C38: 3 | D38: - | E38: - | F38: - | G38: - | H38: 11.7 | J38: 11.7
B39: 2002-11-09 | C39: 4 | D39: - | E39: - | F39: - | G39: - | H39: 11.5 | J39: 11.5
B40: 2002-11-10 | C40: 5 | D40: - | E40: - | F40: - | G40: - | H40: 11.3 | J40: 11.3
B41: 2002-11-11 | C41: 6 | D41: - | E41: - | F41: - | G41: - | H41: 11.1 | J41: 11.1
B42: 2002-11-12 | C42: 7 | D42: - | E42: - | F42: - | G42: - | H42: 10.9 | J42: 10.9
B43: 2002-11-13 | C43: 8 | D43: - | E43: - | F43: - | G43: - | H43: 10.6 | J43: 10.6
B44: 2002-11-14 | C44: 9 | D44: - | E44: - | F44: - | G44: - | H44: 10.4 | J44: 10.4
B45: 2002-11-15 | C45: 10 | D45: ◎ | E45: - | F45: - | G45: - | H45: 10.2 | J45: 10.2
B46: 2002-11-16 | C46: 11 | D46: - | E46: - | F46: - | G46: - | H46: 9.9 | J46: 9.9
B47: 2002-11-17 | C47: 12 | D47: - | E47: - | F47: - | G47: - | H47: 9.7 | J47: 9.7
B48: 2002-11-18 | C48: 13 | D48: - | E48: - | F48: - | G48: - | H48: 9.4 | J48: 9.4
B49: 2002-11-19 | C49: 14 | D49: - | E49: - | F49: - | G49: - | H49: 9.2 | J49: 9.2
B50: 2002-11-20 | C50: 15 | D50: - | E50: - | F50: - | G50: - | H50: 9 | J50: 9
B51: 2002-11-21 | C51: 16 | D51: - | E51: - | F51: - | G51: - | H51: 8.8 | J51: 8.8
B52: 2002-11-22 | C52: 17 | D52: - | E52: - | F52: - | G52: - | H52: 8.6 | J52: 8.6
B53: 2002-11-23 | C53: 18 | D53: - | E53: - | F53: - | G53: - | H53: 8.4 | J53: 8.4
B54: 2002-11-24 | C54: 19 | D54: - | E54: - | F54: - | G54: - | H54: 8.2 | J54: 8.2
B55: 2002-11-25 | C55: 20 | D55: - | E55: - | F55: - | G55: - | H55: 8 | J55: 8
B56: 2002-11-26 | C56: 21 | D56: - | E56: - | F56: - | G56: - | H56: 7.9 | J56: 7.9
B57: 2002-11-27 | C57: 22 | D57: - | E57: - | F57: - | G57: - | H57: 7.7 | J57: 7.7
B58: 2002-11-28 | C58: 23 | D58: - | E58: - | F58: - | G58: - | H58: 7.6 | J58: 7.6
B59: 2002-11-29 | C59: 24 | D59: - | E59: - | F59: - | G59: - | H59: 7.4 | J59: 7.4
B60: 2002-11-30 | C60: 25 | D60: - | E60: - | F60: - | G60: - | H60: 7.3 | J60: 7.3
B61: 2002-12-01 | C61: 26 | D61: - | E61: - | F61: - | G61: - | H61: 7.1 | J61: 7.1
B62: 2002-12-02 | C62: 27 | D62: - | E62: - | F62: - | G62: - | H62: 7 | J62: 7
B63: 2002-12-03 | C63: 28 | D63: - | E63: - | F63: - | G63: - | H63: 6.8 | J63: 6.8
B64: 2002-12-04 | C64: 29 | D64: - | E64: - | F64: - | G64: - | H64: 6.7 | J64: 6.7
B65: 2002-12-05 | C65: 30 | D65: - | E65: - | F65: - | G65: - | H65: 6.5 | J65: 6.5
B66: 2002-12-06 | C66: 31 | D66: - | E66: - | F66: - | G66: - | H66: 6.4 | J66: 6.4
B67: 2002-12-07 | C67: 32 | D67: - | E67: - | F67: - | G67: - | H67: 6.2 | J67: 6.2
B68: 2002-12-08 | C68: 33 | D68: - | E68: - | F68: - | G68: - | H68: 6.1 | J68: 6.1
B69: 2002-12-09 | C69: 34 | D69: - | E69: - | F69: - | G69: - | H69: 5.9 | J69: 5.9
B70: 2002-12-10 | C70: 35 | D70: - | E70: - | F70: - | G70: - | H70: 5.8 | J70: 5.8
B71: 2002-12-11 | C71: 36 | D71: - | E71: - | F71: - | G71: - | H71: 5.6 | J71: 5.6
B72: 2002-12-12 | C72: 37 | D72: - | E72: - | F72: - | G72: - | H72: 5.4 | J72: 5.4
B73: 2002-12-13 | C73: 38 | D73: - | E73: - | F73: - | G73: - | H73: 5.3 | J73: 5.3
B74: 2002-12-14 | C74: 39 | D74: - | E74: - | F74: - | G74: - | H74: 5.1 | J74: 5.1
B75: 2002-12-15 | C75: 40 | D75: - | E75: - | F75: - | G75: - | H75: 4.9 | J75: 4.9
B76: 2002-12-16 | C76: 41 | D76: - | E76: - | F76: - | G76: - | H76: 4.8 | J76: 4.8
B77: 2002-12-17 | C77: 42 | D77: - | E77: - | F77: - | G77: - | H77: 4.6 | J77: 4.6
B78: 2002-12-18 | C78: 43 | D78: - | E78: - | F78: - | G78: - | H78: 4.5 | J78: 4.5
B79: 2002-12-19 | C79: 44 | D79: - | E79: - | F79: - | G79: - | H79: 4.4 | J79: 4.4
B80: 2002-12-20 | C80: 45 | D80: - | E80: - | F80: - | G80: - | H80: 4.3 | J80: 4.3
B81: 2002-12-21 | C81: 46 | D81: - | E81: - | F81: - | G81: - | H81: 4.2 | J81: 4.2
B82: 2002-12-22 | C82: 47 | D82: - | E82: - | F82: - | G82: - | H82: 4.1 | J82: 4.1
B83: 2002-12-23 | C83: 48 | D83: - | E83: - | F83: - | G83: - | H83: 4 | J83: 4
B84: 2002-12-24 | C84: 49 | D84: - | E84: - | F84: - | G84: - | H84: 3.9 | J84: 3.9
B85: 2002-12-25 | C85: 50 | D85: - | E85: - | F85: - | G85: - | H85: 3.8 | J85: 3.8
B86: 2002-12-26 | C86: 51 | D86: - | E86: - | F86: - | G86: - | H86: 3.7 | J86: 3.7
B87: 2002-12-27 | C87: 52 | D87: - | E87: - | F87: - | G87: - | H87: 3.7 | J87: 3.7
B88: 2002-12-28 | C88: 53 | D88: - | E88: - | F88: - | G88: - | H88: 3.6 | J88: 3.6
B89: 2002-12-29 | C89: 54 | D89: - | E89: - | F89: - | G89: - | H89: 3.5 | J89: 3.5
B90: 2002-12-30 | C90: 55 | D90: - | E90: - | F90: - | G90: - | H90: 3.4 | J90: 3.4
B91: 2002-12-31 | C91: 56 | D91: - | E91: - | F91: - | G91: - | H91: 3.3 | J91: 3.3
B92: 2003-01-01 | C92: 57 | D92: - | E92: - | F92: - | G92: - | H92: 3.3 | J92: 3.3
B93: 2003-01-02 | C93: 58 | D93: - | E93: - | F93: - | G93: - | H93: 3.2 | J93: 3.2
B94: 2003-01-03 | C94: 59 | D94: - | E94: - | F94: - | G94: - | H94: 3.1 | J94: 3.1
B95: 2003-01-04 | C95: 60 | D95: - | E95: - | F95: - | G95: - | H95: 3.1 | J95: 3.1
B96: 2003-01-05 | C96: 61 | D96: - | E96: - | F96: - | G96: - | H96: 3 | J96: 3
B97: 2003-01-06 | C97: 62 | D97: - | E97: - | F97: - | G97: - | H97: 3 | J97: 3
B98: 2003-01-07 | C98: 63 | D98: - | E98: - | F98: - | G98: - | H98: 2.9 | J98: 2.9
B99: 2003-01-08 | C99: 64 | D99: - | E99: - | F99: - | G99: - | H99: 2.9 | J99: 2.9
B100: 2003-01-09 | C100: 65 | D100: - | E100: - | F100: - | G100: - | H100: 2.8 | J100: 2.8
B101: 2003-01-10 | C101: 66 | D101: - | E101: - | F101: - | G101: - | H101: 2.8 | J101: 2.8
B102: 2003-01-11 | C102: 67 | D102: - | E102: - | F102: - | G102: - | H102: 2.8 | J102: 2.8
B103: 2003-01-12 | C103: 68 | D103: - | E103: - | F103: - | G103: - | H103: 2.8 | J103: 2.8
B104: 2003-01-13 | C104: 69 | D104: - | E104: - | F104: - | G104: - | H104: 2.7 | J104: 2.7
B105: 2003-01-14 | C105: 70 | D105: - | E105: - | F105: - | G105: - | H105: 2.7 | J105: 2.7
B106: 2003-01-15 | C106: 71 | D106: - | E106: - | F106: - | G106: - | H106: 2.7 | J106: 2.7
B107: 2003-01-16 | C107: 72 | D107: - | E107: - | F107: - | G107: - | H107: 2.7 | J107: 2.7
B108: 2003-01-17 | C108: 73 | D108: - | E108: - | F108: - | G108: - | H108: 2.7 | J108: 2.7
B109: 2003-01-18 | C109: 74 | D109: - | E109: - | F109: - | G109: - | H109: 2.6 | J109: 2.6
B110: 2003-01-19 | C110: 75 | D110: - | E110: - | F110: - | G110: - | H110: 2.6 | J110: 2.6
B111: 2003-01-20 | C111: 76 | D111: - | E111: - | F111: - | G111: - | H111: 2.6 | J111: 2.6
B112: 2003-01-21 | C112: 77 | D112: - | E112: - | F112: - | G112: - | H112: 2.6 | J112: 2.6
B113: 2003-01-22 | C113: 78 | D113: - | E113: - | F113: - | G113: - | H113: 2.6 | J113: 2.6
B114: 2003-01-23 | C114: 79 | D114: - | E114: - | F114: - | G114: - | H114: 2.6 | J114: 2.6
B115: 2003-01-24 | C115: 80 | D115: - | E115: - | F115: - | G115: - | H115: 2.6 | J115: 2.6
B116: 2003-01-25 | C116: 81 | D116: - | E116: - | F116: - | G116: - | H116: 2.6 | J116: 2.6
B117: 2003-01-26 | C117: 82 | D117: - | E117: - | F117: - | G117: - | H117: 2.5 | J117: 2.5
B118: 2003-01-27 | C118: 83 | D118: - | E118: - | F118: - | G118: - | H118: 2.5 | J118: 2.5
B119: 2003-01-28 | C119: 84 | D119: - | E119: - | F119: - | G119: - | H119: 2.5 | J119: 2.5
B120: 2003-01-29 | C120: 85 | D120: - | E120: - | F120: - | G120: - | H120: 2.5 | J120: 2.5
B121: 2003-01-30 | C121: 86 | D121: - | E121: - | F121: - | G121: - | H121: 2.6 | J121: 2.6
B122: 2003-01-31 | C122: 87 | D122: - | E122: - | F122: - | G122: - | H122: 2.6 | J122: 2.6
B123: 2003-02-01 | C123: 88 | D123: - | E123: - | F123: - | G123: - | H123: 2.6 | J123: 2.6
B124: 2003-02-02 | C124: 89 | D124: - | E124: - | F124: - | G124: - | H124: 2.7 | J124: 2.7
B125: 2003-02-03 | C125: 90 | D125: - | E125: - | F125: - | G125: - | H125: 2.7 | J125: 2.7
B126: 2003-02-04 | C126: 91 | D126: - | E126: - | F126: - | G126: - | H126: 2.8 | J126: 2.8
B127: 2003-02-05 | C127: 92 | D127: - | E127: - | F127: - | G127: - | H127: 2.9 | J127: 2.9
B128: 2003-02-06 | C128: 93 | D128: - | E128: - | F128: - | G128: - | H128: 3 | J128: 3
B129: 2003-02-07 | C129: 94 | D129: - | E129: - | F129: - | G129: - | H129: 3.1 | J129: 3.1
B130: 2003-02-08 | C130: 95 | D130: - | E130: - | F130: - | G130: - | H130: 3.2 | J130: 3.2
B131: 2003-02-09 | C131: 96 | D131: - | E131: - | F131: - | G131: - | H131: 3.3 | J131: 3.3
B132: 2003-02-10 | C132: 97 | D132: - | E132: - | F132: - | G132: - | H132: 3.5 | J132: 3.5
B133: 2003-02-11 | C133: 98 | D133: - | E133: - | F133: - | G133: - | H133: 3.6 | J133: 3.6
B134: 2003-02-12 | C134: 99 | D134: - | E134: - | F134: - | G134: - | H134: 3.6 | J134: 3.6
B135: 2003-02-13 | C135: 100 | D135: - | E135: - | F135: - | G135: - | H135: 3.7 | J135: 3.7
B136: 2003-02-14 | C136: 101 | D136: - | E136: - | F136: - | G136: - | H136: 3.8 | J136: 3.8
B137: 2003-02-15 | C137: 102 | D137: - | E137: - | F137: - | G137: - | H137: 3.8 | J137: 3.8
B138: 2003-02-16 | C138: 103 | D138: - | E138: - | F138: - | G138: - | H138: 3.9 | J138: 3.9
B139: 2003-02-17 | C139: 104 | D139: - | E139: - | F139: - | G139: - | H139: 3.9 | J139: 3.9
B140: 2003-02-18 | C140: 105 | D140: - | E140: - | F140: - | G140: - | H140: 4 | J140: 4
B141: 2003-02-19 | C141: 106 | D141: - | E141: - | F141: - | G141: - | H141: 4 | J141: 4
B142: 2003-02-20 | C142: 107 | D142: - | E142: - | F142: - | G142: - | H142: 4.1 | J142: 4.1
B143: 2003-02-21 | C143: 108 | D143: - | E143: - | F143: - | G143: - | H143: 4.2 | J143: 4.2
B144: 2003-02-22 | C144: 109 | D144: - | E144: - | F144: - | G144: - | H144: 4.2 | J144: 4.2
B145: 2003-02-23 | C145: 110 | D145: - | E145: - | F145: - | G145: - | H145: 4.3 | J145: 4.3
B146: 2003-02-24 | C146: 111 | D146: - | E146: - | F146: - | G146: - | H146: 4.4 | J146: 4.4
B147: 2003-02-25 | C147: 112 | D147: - | E147: - | F147: - | G147: - | H147: 4.5 | J147: 4.5
B148: 2003-02-26 | C148: 113 | D148: - | E148: - | F148: - | G148: - | H148: 4.6 | J148: 4.6
B149: 2003-02-27 | C149: 114 | D149: - | E149: - | F149: - | G149: - | H149: 4.7 | J149: 4.7
B150: 2003-02-28 | C150: 115 | D150: - | E150: - | F150: - | G150: - | H150: 4.8 | J150: 4.8
B151: 2003-03-01 | C151: 116 | D151: - | E151: - | F151: - | G151: - | H151: 5 | J151: 5
B152: 2003-03-02 | C152: 117 | D152: - | E152: - | F152: - | G152: - | H152: 5.1 | J152: 5.1
B153: 2003-03-03 | C153: 118 | D153: - | E153: - | F153: - | G153: - | H153: 5.2 | J153: 5.2
B154: 2003-03-04 | C154: 119 | D154: - | E154: - | F154: - | G154: - | H154: 5.3 | J154: 5.3
B155: 2003-03-05 | C155: 120 | D155: - | E155: - | F155: - | G155: - | H155: 5.5 | J155: 5.5
B156: 2003-03-06 | C156: 121 | D156: - | E156: - | F156: - | G156: - | H156: 5.6 | J156: 5.6
B157: 2003-03-07 | C157: 122 | D157: - | E157: - | F157: - | G157: - | H157: 5.7 | J157: 5.7
B158: 2003-03-08 | C158: 123 | D158: - | E158: - | F158: - | G158: - | H158: 5.9 | J158: 5.9
B159: 2003-03-09 | C159: 124 | D159: - | E159: - | F159: - | G159: - | H159: 6 | J159: 6
B160: 2003-03-10 | C160: 125 | D160: - | E160: - | F160: - | G160: - | H160: 6.2 | J160: 6.2
B161: 2003-03-11 | C161: 126 | D161: - | E161: - | F161: - | G161: - | H161: 6.4 | J161: 6.4
B162: 2003-03-12 | C162: 127 | D162: - | E162: - | F162: - | G162: - | H162: 6.5 | J162: 6.5
B163: 2003-03-13 | C163: 128 | D163: - | E163: - | F163: - | G163: - | H163: 6.7 | J163: 6.7
B164: 2003-03-14 | C164: 129 | D164: - | E164: - | F164: - | G164: - | H164: 6.9 | J164: 6.9
B165: 2003-03-15 | C165: 130 | D165: - | E165: - | F165: - | G165: - | H165: 7 | J165: 7
B166: 2003-03-16 | C166: 131 | D166: - | E166: - | F166: - | G166: - | H166: 7.2 | J166: 7.2
B167: 2003-03-17 | C167: 132 | D167: - | E167: - | F167: - | G167: - | H167: 7.3 | J167: 7.3
B168: 2003-03-18 | C168: 133 | D168: - | E168: - | F168: - | G168: - | H168: 7.5 | J168: 7.5
B169: 2003-03-19 | C169: 134 | D169: - | E169: - | F169: - | G169: - | H169: 7.6 | J169: 7.6
B170: 2003-03-20 | C170: 135 | D170: - | E170: - | F170: - | G170: - | H170: 7.7 | J170: 7.7
B171: 2003-03-21 | C171: 136 | D171: - | E171: - | F171: - | G171: - | H171: 7.8 | J171: 7.8
B172: 2003-03-22 | C172: 137 | D172: - | E172: - | F172: - | G172: - | H172: 8 | J172: 8
B173: 2003-03-23 | C173: 138 | D173: - | E173: - | F173: - | G173: - | H173: 8.1 | J173: 8.1
B174: 2003-03-24 | C174: 139 | D174: - | E174: - | F174: - | G174: - | H174: 8.2 | J174: 8.2
B175: 2003-03-25 | C175: 140 | D175: - | E175: - | F175: - | G175: - | H175: 8.3 | J175: 8.3
B176: 2003-03-26 | C176: 141 | D176: - | E176: - | F176: - | G176: - | H176: 8.5 | J176: 8.5
B177: 2003-03-27 | C177: 142 | D177: - | E177: - | F177: - | G177: - | H177: 8.6 | J177: 8.6
B178: 2003-03-28 | C178: 143 | D178: - | E178: ◎ | F178: - | G178: - | H178: 8.8 | J178: 8.8
B179: 2003-03-29 | C179: 144 | D179: - | E179: - | F179: - | G179: - | H179: 9 | J179: 9
B180: 2003-03-30 | C180: 145 | D180: - | E180: - | F180: - | G180: - | H180: 9.2 | J180: 9.2
B181: 2003-03-31 | C181: 146 | D181: - | E181: - | F181: - | G181: - | H181: 9.4 | J181: 9.4
B182: 2003-04-01 | C182: 147 | D182: - | E182: - | F182: - | G182: - | H182: 9.6 | J182: 9.6
B183: 2003-04-02 | C183: 148 | D183: - | E183: - | F183: - | G183: - | H183: 9.8 | J183: 9.8
B184: 2003-04-03 | C184: 149 | D184: - | E184: - | F184: - | G184: - | H184: 10.1 | J184: 10.1
B185: 2003-04-04 | C185: 150 | D185: - | E185: - | F185: - | G185: - | H185: 10.3 | J185: 10.3
B186: 2003-04-05 | C186: 151 | D186: - | E186: - | F186: - | G186: - | H186: 10.6 | J186: 10.6
B187: 2003-04-06 | C187: 152 | D187: - | E187: - | F187: - | G187: - | H187: 10.8 | J187: 10.8
B188: 2003-04-07 | C188: 153 | D188: - | E188: - | F188: - | G188: - | H188: 11 | J188: 11
B189: 2003-04-08 | C189: 154 | D189: - | E189: - | F189: - | G189: - | H189: 11.2 | J189: 11.2
B190: 2003-04-09 | C190: 155 | D190: - | E190: - | F190: - | G190: - | H190: 11.4 | J190: 11.4
B191: 2003-04-10 | C191: 156 | D191: - | E191: - | F191: - | G191: - | H191: 11.6 | J191: 11.6
B192: 2003-04-11 | C192: 157 | D192: - | E192: - | F192: - | G192: - | H192: 11.8 | J192: 11.8
B193: 2003-04-12 | C193: 158 | D193: - | E193: - | F193: - | G193: - | H193: 12 | J193: 12
B194: 2003-04-13 | C194: 159 | D194: - | E194: - | F194: - | G194: - | H194: 12.1 | J194: 12.1
B195: 2003-04-14 | C195: 160 | D195: - | E195: - | F195: - | G195: - | H195: 12.3 | J195: 12.3
B196: 2003-04-15 | C196: 161 | D196: - | E196: - | F196: - | G196: - | H196: 12.5 | J196: 12.5
B197: 2003-04-16 | C197: 162 | D197: - | E197: - | F197: - | G197: - | H197: 12.6 | J197: 12.6
B198: 2003-04-17 | C198: 163 | D198: - | E198: - | F198: - | G198: - | H198: 12.8 | J198: 12.8
B199: 2003-04-18 | C199: 164 | D199: - | E199: - | F199: - | G199: - | H199: 13 | J199: 13
B200: 2003-04-19 | C200: 165 | D200: - | E200: - | F200: - | G200: - | H200: 13.1 | J200: 13.1
B201: 2003-04-20 | C201: 166 | D201: - | E201: - | F201: - | G201: - | H201: 13.3 | J201: 13.3
B202: 2003-04-21 | C202: 167 | D202: - | E202: - | F202: - | G202: - | H202: 13.5 | J202: 13.5
B203: 2003-04-22 | C203: 168 | D203: - | E203: - | F203: - | G203: - | H203: 13.6 | J203: 13.6
... 80 more rows

Sheet 予測
F1: 予測始期 | G1: 予測終期 | H1: G | I1: A | J1: Th | K1: B | L1: Lc
F2: 播種期 | G2: 出芽期 | H2: 6.223958 | I2: 0.3087708 | J2: 9.564346 | K2: － | L2: － | AC2: 予測実施日 | AF2: =TODAY() -> 2022-04-15
B3: 播種期 | C3: から予測 | F3: 播種期 | G3: 茎立期
F4: 播種期 | G4: 出穂期
B5: 予測地域 | D5: 地名コード | F5: 播種期 | G5: 成熟期 | AC5: 予測値
B6: 水戸 | D6: =HLOOKUP(B6,気象データ!$B$4:$O$5,2,FALSE) -> G | F6: 出芽期 | G6: 茎立期 | H6: 39.3727 | I6: 0.5217618 | J6: 5.305779 | K6: 1.049843 | L6: 9.019414 | AC6: 播 種 期: | AE6: =VLOOKUP("◎",Z14:AE283,6,FALSE) -> 2002-11-05 | AF6: =+IF(COUNT(AE6)=1,AE6,"*月 *日") -> 2002-11-05
F7: 出芽期 | G7: 出穂期 | H7: 61.02645 | I7: 0.3055935 | J7: 4.186822 | K7: 1.426437 | L7: 9.375131 | AC7: 出 芽 期: | AE7: =VLOOKUP("◎",AA14:AE283,5,FALSE) -> 2002-11-15 | AF7: =+IF(COUNT(AE7)=1,AE7,"*月 *日") -> 2002-11-15
B8: =B3 -> 播種期 | F8: 出芽期 | G8: 成熟期 | AC8: 茎 立 期: | AE8: =VLOOKUP("◎",AB14:AE283,4,FALSE) -> 2003-03-19 | AF8: =+IF(COUNT(AE8)=1,AE8,"*月 *日") -> 2003-03-19 | AJ8: 平年比
B9: 月 | C9: 日 | F9: 茎立期 | G9: 出穂期 | H9: 7.722462 | I9: 0.3312358 | J9: 13.98748 | K9: － | L9: － | AC9: 出 穂 期: | AE9: =VLOOKUP("◎",AC14:AE283,3,FALSE) -> 2003-04-12 | AF9: =+IF(COUNT(AE9)=1,AE9,"*月 *日") -> 2003-04-12 | AJ9: 0 | AK9: ℃
B10: 11 | C10: 5 | F10: 茎立期 | G10: 成熟期 | K10: － | L10: － | AC10: 成 熟 期: | AE10: =VLOOKUP("◎",AD14:AE283,2,FALSE) -> 2003-05-27 | AF10: =+IF(COUNT(AE10)=1,AE10,"*月 *日") -> 2003-05-27 | AJ10: で推移した場合
F11: 出穂期 | G11: 成熟期 | H11: 32.91099 | I11: 0.1718696 | J11: 9.260777 | K11: － | L11: －
B12: 月･日 | C12: =B3&"後日数" -> 播種期後日数 | D12: 予測日判定 | E12: 日長(時間) | F12: DVR | AA12: 判 定 | AE12: 月･日 | AF12: 平年平均 気温(℃) (水戸地方気象台1981-2010) | AG12: 本年平均 気温 (℃) | AH12: 予測に用いるデータ
F13: 播種出芽 | G13: 積算 | H13: 播種茎立 | I13: 積算 | J13: 播種出穂 | K13: 積算 | L13: 播種成熟 | M13: 積算 | N13: 出芽茎立 | O13: 積算 | P13: 出芽出穂 | Q13: 積算 | R13: 出芽成熟 | S13: 積算 | T13: 茎立出穂 | U13: 積算 | V13: 茎立成熟 | W13: 積算 | X13: 出穂成熟 | Y13: 積算 | Z13: 播種期 | AA13: 出芽期 | AB13: 茎立期 | AC13: 出穂期 | AD13: 成熟期
B14: 2002-10-15 | C14: =+C13+D14 -> 0 | D14: =+IF((COUNT(AH14))=1,1)+IF((COUNT(AH14=0)),0) -> 0 | E14: =INDIRECT("気象データ!"&$D$6&ROW()+320) -> 11.11387507 | F14: =1/(1+EXP(-$I$2*($AH14-$J$2)))/$H$2 ->  | G14: =IF($D14=0,0,G13+F14) -> 0 | H14: =IF(G13>=1,MAX((1-EXP(-$K$6*($E14-$L$6)))/(1+EXP(-$I$6*($AH14-$J$6)))/$H$6,0),0) ->  | I14: =IF($D14=0,0,I13+H14) -> 0 | J14: =IF(G13>=1,MAX((1-EXP(-$K$7*($E14-$L$7)))/(1+EXP(-$I$7*($AH14-$J$7)))/$H$7,0),0) ->  | K14: =IF($D14=0,0,K13+J14) -> 0 | L14: =IF(K13>=1,1/(1+EXP(-$I$11*($AH14-$J$11)))/$H$11,0) ->  | M14: =IF($D14=0,0,M13+L14) -> 0 | N14: =MAX((1-EXP(-$K$6*($E14-$L$6)))/(1+EXP(-$I$6*($AH14-$J$6)))/$H$6,0) ->  | O14: =IF($D14=0,0,O13+N14) -> 0 | P14: =MAX((1-EXP(-$K$7*($E14-$L$7)))/(1+EXP(-$I$7*($AH14-$J$7)))/$H$7,0) ->  | Q14: =IF($D14=0,0,Q13+P14) -> 0 | R14: =IF(Q13>=1,1/(1+EXP(-$I$11*($AH14-$J$11)))/$H$11,0) ->  | S14: =IF($D14=0,0,S13+R14) -> 0 | T14: =1/(1+EXP(-$I$9*($AH14-$J$9)))/$H$9 ->  | U14: =IF($D14=0,0,U13+T14) -> 0 | V14: =IF(U13>=1,1/(1+EXP(-$I$11*($AH14-$J$11)))/$H$11,0) ->  | W14: =IF($D14=0,0,W13+V14) -> 0 | X14: =1/(1+EXP(-$I$11*($AH14-$J$11)))/$H$11 ->  | Y14: =IF($D14=0,0,Y13+X14) -> 0 | Z14: =IF($B$3="播種期",IF($C15=1,"◎","-"),"-") -> - | AA14: =IF($B$3="播種期",IF(AND(G14>=1,G13<1),"◎","-"),IF($B$3="出芽期",IF($C15=1,"◎","-"),"-")) -> - | AB14: =IF($B$3="播種期",IF(AND(I14>=1,I13<1),"◎","-"),IF($B$3="出芽期",IF(AND(O14>=1,O13<1),"◎","-"),IF($B$3="茎立期",IF($C15=1,"◎","-"),"-"))) -> - | AC14: =IF($B$3="播種期",IF(AND(K14>=1,K13<1),"◎","-"),IF($B$3="出芽期",IF(AND(Q14>=1,Q13<1),"◎","-"),IF($B$3="茎立期",IF(AND(U14>=1,U13<1),"◎","-"),IF($B$3="出穂期",IF($C15=1,"◎","-"),"-")))) -> - | AD14: =IF($B$3="播種期",IF(AND(M14>=1,M13<1),"◎","-"),IF($B$3="出芽期",IF(AND(S14>=1,S13<1),"◎","-"),IF($B$3="茎立期",IF(AND(W14>=1,W13<1),"◎","-"),IF($B$3="出穂期",IF(AND(Y14>=1,Y13<1),"◎","-"),IF($C15=1,"◎","-"))))) -> - | AE14: 2002-10-15 | AF14: =INDIRECT("気象データ!"&$D$6&ROW()-8) -> 16.7 | AH14: =IF(DATE(IF($B$10>=10,2002,2003),$B$10,$C$10)>=B14,"",IF(AG14="",AF14+$AJ$9,AG14)) -> 
B15: 2002-10-16 | C15: 0 | D15: 0 | E15: =INDIRECT("気象データ!"&$D$6&ROW()+320) -> 11.07664422 | G15: =IF($D15=0,0,G14+F15) -> 0 | H15: =IF(G14>=1,MAX((1-EXP(-$K$6*($E15-$L$6)))/(1+EXP(-$I$6*($AH15-$J$6)))/$H$6,0),0) -> 0 | I15: =IF($D15=0,0,I14+H15) -> 0 | J15: =IF(G14>=1,MAX((1-EXP(-$K$7*($E15-$L$7)))/(1+EXP(-$I$7*($AH15-$J$7)))/$H$7,0),0) -> 0 | K15: =IF($D15=0,0,K14+J15) -> 0 | L15: =IF(K14>=1,1/(1+EXP(-$I$11*($AH15-$J$11)))/$H$11,0) -> 0 | M15: =IF($D15=0,0,M14+L15) -> 0 | O15: =IF($D15=0,0,O14+N15) -> 0 | P15: =MAX((1-EXP(-$K$7*($E15-$L$7)))/(1+EXP(-$I$7*($AH15-$J$7)))/$H$7,0) ->  | Q15: =IF($D15=0,0,Q14+P15) -> 0 | R15: =IF(Q14>=1,1/(1+EXP(-$I$11*($AH15-$J$11)))/$H$11,0) -> 0 | S15: =IF($D15=0,0,S14+R15) -> 0 | U15: =IF($D15=0,0,U14+T15) -> 0 | V15: =IF(U14>=1,1/(1+EXP(-$I$11*($AH15-$J$11)))/$H$11,0) -> 0 | W15: =IF($D15=0,0,W14+V15) -> 0 | Y15: =IF($D15=0,0,Y14+X15) -> 0 | Z15: =IF($B$3="播種期",IF($C16=1,"◎","-"),"-") -> - | AA15: =IF($B$3="播種期",IF(AND(G15>=1,G14<1),"◎","-"),IF($B$3="出芽期",IF($C16=1,"◎","-"),"-")) -> - | AB15: =IF($B$3="播種期",IF(AND(I15>=1,I14<1),"◎","-"),IF($B$3="出芽期",IF(AND(O15>=1,O14<1),"◎","-"),IF($B$3="茎立期",IF($C16=1,"◎","-"),"-"))) -> - | AC15: =IF($B$3="播種期",IF(AND(K15>=1,K14<1),"◎","-"),IF($B$3="出芽期",IF(AND(Q15>=1,Q14<1),"◎","-"),IF($B$3="茎立期",IF(AND(U15>=1,U14<1),"◎","-"),IF($B$3="出穂期",IF($C16=1,"◎","-"),"-")))) -> - | AD15: =IF($B$3="播種期",IF(AND(M15>=1,M14<1),"◎","-"),IF($B$3="出芽期",IF(AND(S15>=1,S14<1),"◎","-"),IF($B$3="茎立期",IF(AND(W15>=1,W14<1),"◎","-"),IF($B$3="出穂期",IF(AND(Y15>=1,Y14<1),"◎","-"),IF($C16=1,"◎","-"))))) -> - | AE15: 2002-10-16 | AF15: =INDIRECT("気象データ!"&$D$6&ROW()-8) -> 16.5
B16: 2002-10-17 | C16: 0 | D16: 0 | E16: 11.03958619 | G16: 0 | H16: 0 | I16: 0 | J16: 0 | K16: 0 | L16: 0 | M16: 0 | O16: 0 | Q16: 0 | R16: 0 | S16: 0 | U16: 0 | V16: 0 | W16: 0 | Y16: 0 | Z16: - | AA16: - | AB16: - | AC16: - | AD16: - | AE16: 2002-10-17 | AF16: 16.3
B17: 2002-10-18 | C17: 0 | D17: 0 | E17: 11.00270964 | G17: 0 | H17: 0 | I17: 0 | J17: 0 | K17: 0 | L17: 0 | M17: 0 | O17: 0 | Q17: 0 | R17: 0 | S17: 0 | U17: 0 | V17: 0 | W17: 0 | Y17: 0 | Z17: - | AA17: - | AB17: - | AC17: - | AD17: - | AE17: 2002-10-18 | AF17: 16.1
B18: 2002-10-19 | C18: 0 | D18: 0 | E18: 10.9660234 | G18: 0 | H18: 0 | I18: 0 | J18: 0 | K18: 0 | L18: 0 | M18: 0 | O18: 0 | Q18: 0 | R18: 0 | S18: 0 | U18: 0 | V18: 0 | W18: 0 | Y18: 0 | Z18: - | AA18: - | AB18: - | AC18: - | AD18: - | AE18: 2002-10-19 | AF18: 15.9
B19: 2002-10-20 | C19: 0 | D19: 0 | E19: 10.92953645 | G19: 0 | H19: 0 | I19: 0 | J19: 0 | K19: 0 | L19: 0 | M19: 0 | O19: 0 | Q19: 0 | R19: 0 | S19: 0 | U19: 0 | V19: 0 | W19: 0 | Y19: 0 | Z19: - | AA19: - | AB19: - | AC19: - | AD19: - | AE19: 2002-10-20 | AF19: 15.7
B20: 2002-10-21 | C20: 0 | D20: 0 | E20: 10.89325795 | G20: 0 | H20: 0 | I20: 0 | J20: 0 | K20: 0 | L20: 0 | M20: 0 | O20: 0 | Q20: 0 | R20: 0 | S20: 0 | U20: 0 | V20: 0 | W20: 0 | Y20: 0 | Z20: - | AA20: - | AB20: - | AC20: - | AD20: - | AE20: 2002-10-21 | AF20: 15.5
B21: 2002-10-22 | C21: 0 | D21: 0 | E21: 10.85719724 | G21: 0 | H21: 0 | I21: 0 | J21: 0 | K21: 0 | L21: 0 | M21: 0 | O21: 0 | Q21: 0 | R21: 0 | S21: 0 | U21: 0 | V21: 0 | W21: 0 | Y21: 0 | Z21: - | AA21: - | AB21: - | AC21: - | AD21: - | AE21: 2002-10-22 | AF21: 15.3
B22: 2002-10-23 | C22: 0 | D22: 0 | E22: 10.82136382 | G22: 0 | H22: 0 | I22: 0 | J22: 0 | K22: 0 | L22: 0 | M22: 0 | O22: 0 | Q22: 0 | R22: 0 | S22: 0 | U22: 0 | V22: 0 | W22: 0 | Y22: 0 | Z22: - | AA22: - | AB22: - | AC22: - | AD22: - | AE22: 2002-10-23 | AF22: 15.1
B23: 2002-10-24 | C23: 0 | D23: 0 | E23: 10.78576737 | G23: 0 | H23: 0 | I23: 0 | J23: 0 | K23: 0 | L23: 0 | M23: 0 | O23: 0 | Q23: 0 | R23: 0 | S23: 0 | U23: 0 | V23: 0 | W23: 0 | Y23: 0 | Z23: - | AA23: - | AB23: - | AC23: - | AD23: - | AE23: 2002-10-24 | AF23: 15
B24: 2002-10-25 | C24: 0 | D24: 0 | E24: 10.75041776 | G24: 0 | H24: 0 | I24: 0 | J24: 0 | K24: 0 | L24: 0 | M24: 0 | O24: 0 | Q24: 0 | R24: 0 | S24: 0 | U24: 0 | V24: 0 | W24: 0 | Y24: 0 | Z24: - | AA24: - | AB24: - | AC24: - | AD24: - | AE24: 2002-10-25 | AF24: 14.8
B25: 2002-10-26 | C25: 0 | D25: 0 | E25: 10.71532501 | G25: 0 | H25: 0 | I25: 0 | J25: 0 | K25: 0 | L25: 0 | M25: 0 | O25: 0 | Q25: 0 | R25: 0 | S25: 0 | U25: 0 | V25: 0 | W25: 0 | Y25: 0 | Z25: - | AA25: - | AB25: - | AC25: - | AD25: - | AE25: 2002-10-26 | AF25: 14.6
B26: 2002-10-27 | C26: 0 | D26: 0 | E26: 10.68049935 | G26: 0 | H26: 0 | I26: 0 | J26: 0 | K26: 0 | L26: 0 | M26: 0 | O26: 0 | Q26: 0 | R26: 0 | S26: 0 | U26: 0 | V26: 0 | W26: 0 | Y26: 0 | Z26: - | AA26: - | AB26: - | AC26: - | AD26: - | AE26: 2002-10-27 | AF26: 14.4
B27: 2002-10-28 | C27: 0 | D27: 0 | E27: 10.64595117 | G27: 0 | H27: 0 | I27: 0 | J27: 0 | K27: 0 | L27: 0 | M27: 0 | O27: 0 | Q27: 0 | R27: 0 | S27: 0 | U27: 0 | V27: 0 | W27: 0 | Y27: 0 | Z27: - | AA27: - | AB27: - | AC27: - | AD27: - | AE27: 2002-10-28 | AF27: 14.2
B28: 2002-10-29 | C28: 0 | D28: 0 | E28: 10.61169103 | G28: 0 | H28: 0 | I28: 0 | J28: 0 | K28: 0 | L28: 0 | M28: 0 | O28: 0 | Q28: 0 | R28: 0 | S28: 0 | U28: 0 | V28: 0 | W28: 0 | Y28: 0 | Z28: - | AA28: - | AB28: - | AC28: - | AD28: - | AE28: 2002-10-29 | AF28: 14
B29: 2002-10-30 | C29: 0 | D29: 0 | E29: 10.57772968 | G29: 0 | H29: 0 | I29: 0 | J29: 0 | K29: 0 | L29: 0 | M29: 0 | O29: 0 | Q29: 0 | R29: 0 | S29: 0 | U29: 0 | V29: 0 | W29: 0 | Y29: 0 | Z29: - | AA29: - | AB29: - | AC29: - | AD29: - | AE29: 2002-10-30 | AF29: 13.9
B30: 2002-10-31 | C30: 0 | D30: 0 | E30: 10.54407802 | G30: 0 | H30: 0 | I30: 0 | J30: 0 | K30: 0 | L30: 0 | M30: 0 | O30: 0 | Q30: 0 | R30: 0 | S30: 0 | U30: 0 | V30: 0 | W30: 0 | Y30: 0 | Z30: - | AA30: - | AB30: - | AC30: - | AD30: - | AE30: 2002-10-31 | AF30: 13.7
B31: 2002-11-01 | C31: 0 | D31: 0 | E31: 10.51074716 | G31: 0 | H31: 0 | I31: 0 | J31: 0 | K31: 0 | L31: 0 | M31: 0 | O31: 0 | Q31: 0 | R31: 0 | S31: 0 | U31: 0 | V31: 0 | W31: 0 | Y31: 0 | Z31: - | AA31: - | AB31: - | AC31: - | AD31: - | AE31: 2002-11-01 | AF31: 13.5
B32: 2002-11-02 | C32: 0 | D32: 0 | E32: 10.47774833 | G32: 0 | H32: 0 | I32: 0 | J32: 0 | K32: 0 | L32: 0 | M32: 0 | O32: 0 | Q32: 0 | R32: 0 | S32: 0 | U32: 0 | V32: 0 | W32: 0 | Y32: 0 | Z32: - | AA32: - | AB32: - | AC32: - | AD32: - | AE32: 2002-11-02 | AF32: 13.3
B33: 2002-11-03 | C33: 0 | D33: 0 | E33: 10.44509294 | G33: 0 | H33: 0 | I33: 0 | J33: 0 | K33: 0 | L33: 0 | M33: 0 | O33: 0 | Q33: 0 | R33: 0 | S33: 0 | U33: 0 | V33: 0 | W33: 0 | Y33: 0 | Z33: - | AA33: - | AB33: - | AC33: - | AD33: - | AE33: 2002-11-03 | AF33: 13.2
B34: 2002-11-04 | C34: 0 | D34: 0 | E34: 10.41279256 | G34: 0 | H34: 0 | I34: 0 | J34: 0 | K34: 0 | L34: 0 | M34: 0 | O34: 0 | Q34: 0 | R34: 0 | S34: 0 | U34: 0 | V34: 0 | W34: 0 | Y34: 0 | Z34: - | AA34: - | AB34: - | AC34: - | AD34: - | AE34: 2002-11-04 | AF34: 13
B35: 2002-11-05 | C35: 0 | D35: 0 | E35: 10.38085892 | G35: 0 | H35: 0 | I35: 0 | J35: 0 | K35: 0 | L35: 0 | M35: 0 | O35: 0 | Q35: 0 | R35: 0 | S35: 0 | U35: 0 | V35: 0 | W35: 0 | Y35: 0 | Z35: ◎ | AA35: - | AB35: - | AC35: - | AD35: - | AE35: 2002-11-05 | AF35: 12.8
B36: 2002-11-06 | C36: 1 | D36: 1 | E36: 10.34930385 | F36: 0.1154503706 | G36: 0.1154503706 | H36: 0 | I36: 0 | J36: 0 | K36: 0 | L36: 0 | M36: 0 | N36: 0.01869537205 | O36: 0.01869537205 | P36: 0.01142938783 | Q36: 0.01142938783 | R36: 0 | S36: 0 | T36: 0.05012452521 | U36: 0.05012452521 | V36: 0 | W36: 0 | X36: 0.01943621596 | Y36: 0.01943621596 | Z36: - | AA36: - | AB36: - | AC36: - | AD36: - | AE36: 2002-11-06 | AF36: 12.6 | AH36: 12.6
B37: 2002-11-07 | C37: 2 | D37: 1 | E37: 10.31813937 | F37: 0.1144403597 | G37: 0.2298907303 | H37: 0 | I37: 0 | J37: 0 | K37: 0 | L37: 0 | M37: 0 | N37: 0.01846929534 | O37: 0.03716466739 | P37: 0.0112322096 | Q37: 0.02266159743 | R37: 0 | S37: 0 | T37: 0.04911078396 | U37: 0.09923530917 | V37: 0 | W37: 0 | X37: 0.01931555963 | Y37: 0.03875177559 | Z37: - | AA37: - | AB37: - | AC37: - | AD37: - | AE37: 2002-11-07 | AF37: 12.5 | AH37: 12.5
B38: 2002-11-08 | C38: 3 | D38: 1 | E38: 10.2873776 | F38: 0.1123805912 | G38: 0.3422713215 | H38: 0 | I38: 0 | J38: 0 | K38: 0 | L38: 0 | M38: 0 | N38: 0.01821508557 | O38: 0.05537975297 | P38: 0.01100404539 | Q38: 0.03366564282 | R38: 0 | S38: 0 | T38: 0.04710797769 | U38: 0.1463432869 | V38: 0 | W38: 0 | X38: 0.01907256877 | Y38: 0.05782434437 | Z38: - | AA38: - | AB38: - | AC38: - | AD38: - | AE38: 2002-11-08 | AF38: 12.3 | AH38: 12.3
B39: 2002-11-09 | C39: 4 | D39: 1 | E39: 10.25703079 | F39: 0.1102694661 | G39: 0.4525407876 | H39: 0 | I39: 0 | J39: 0 | K39: 0 | L39: 0 | M39: 0 | N39: 0.01795333219 | O39: 0.07333308516 | P39: 0.01076951014 | Q39: 0.04443515296 | R39: 0 | S39: 0 | T39: 0.04514098006 | U39: 0.1914842669 | V39: 0 | W39: 0 | X39: 0.01882743553 | Y39: 0.0766517799 | Z39: - | AA39: - | AB39: - | AC39: - | AD39: - | AE39: 2002-11-09 | AF39: 12.1 | AH39: 12.1
B40: 2002-11-10 | C40: 5 | D40: 1 | E40: 10.22711128 | F40: 0.1081092119 | G40: 0.5606499995 | H40: 0 | I40: 0 | J40: 0 | K40: 0 | L40: 0 | M40: 0 | N40: 0.01768393061 | O40: 0.09101701577 | P40: 0.01052876814 | Q40: 0.0549639211 | R40: 0 | S40: 0 | T40: 0.04321303386 | U40: 0.2346973008 | V40: 0 | W40: 0 | X40: 0.01858027812 | Y40: 0.09523205802 | Z40: - | AA40: - | AB40: - | AC40: - | AD40: - | AE40: 2002-11-10 | AF40: 11.9 | AH40: 11.9
B41: 2002-11-11 | C41: 6 | D41: 1 | E41: 10.19763153 | F41: 0.1059023524 | G41: 0.6665523519 | H41: 0 | I41: 0 | J41: 0 | K41: 0 | L41: 0 | M41: 0 | N41: 0.01740678478 | O41: 0.1084238005 | P41: 0.01028202001 | Q41: 0.06524594111 | R41: 0 | S41: 0 | T41: 0.04132708682 | U41: 0.2760243876 | V41: 0 | W41: 0 | X41: 0.01833121913 | Y41: 0.1135632772 | Z41: - | AA41: - | AB41: - | AC41: - | AD41: - | AE41: 2002-11-11 | AF41: 11.7 | AH41: 11.7
B42: 2002-11-12 | C42: 7 | D42: 1 | E42: 10.16860409 | F42: 0.1036517027 | G42: =IF($D42=0,0,G41+F42) -> 0.7702040546 | H42: 0 | I42: =IF($D42=0,0,I41+H42) -> 0 | J42: 0 | K42: =IF($D42=0,0,K41+J42) -> 0 | L42: 0 | M42: =IF($D42=0,0,M41+L42) -> 0 | N42: 0.01712180868 | O42: =IF($D42=0,0,O41+N42) -> 0.1255456092 | P42: 0.01002950432 | Q42: =IF($D42=0,0,Q41+P42) -> 0.07527544543 | R42: 0 | S42: =IF($D42=0,0,S41+R42) -> 0 | T42: 0.03948577971 | U42: =IF($D42=0,0,U41+T42) -> 0.3155101673 | V42: 0 | W42: =IF($D42=0,0,W41+V42) -> 0 | X42: 0.01808038531 | Y42: =IF($D42=0,0,Y41+X42) -> 0.1316436625 | Z42: - | AA42: - | AB42: - | AC42: - | AD42: - | AE42: 2002-11-12 | AF42: 11.5 | AH42: 11.5
B43: 2002-11-13 | C43: =+C42+D43 -> 8 | D43: 1 | E43: 10.14004158 | F43: 0.1013603606 | G43: 0.8715644153 | H43: 0 | I43: 0 | J43: 0 | K43: 0 | L43: 0 | M43: 0 | N43: 0.01682892819 | O43: 0.1423745374 | P43: 0.009771499033 | Q43: 0.08504694446 | R43: 0 | S43: 0 | T43: 0.03769143891 | U43: 0.3532016062 | V43: 0 | W43: 0 | X43: 0.01782790733 | Y43: 0.1494715698 | Z43: - | AA43: - | AB43: - | AC43: - | AD43: - | AE43: 2002-11-13 | AF43: 11.3 | AH43: 11.3
B44: 2002-11-14 | C44: 9 | D44: 1 | E44: 10.11195667 | F44: 0.09903169463 | G44: 0.9705961099 | H44: 0 | I44: 0 | J44: 0 | K44: 0 | L44: 0 | M44: 0 | N44: 0.01652808317 | O44: 0.1589026206 | P44: 0.0095083227 | Q44: 0.09455526716 | R44: 0 | S44: 0 | T44: 0.03594607319 | U44: 0.3891476794 | V44: 0 | W44: 0 | X44: 0.01757391952 | Y44: 0.1670454893 | Z44: - | AA44: - | AB44: - | AC44: - | AD44: - | AE44: 2002-11-14 | AF44: 11.1 | AH44: 11.1
B45: 2002-11-15 | C45: 10 | D45: 1 | E45: 10.08436211 | F45: 0.09666932831 | G45: 1.067265438 | H45: 0 | I45: 0 | J45: 0 | K45: 0 | L45: 0 | M45: 0 | N45: 0.01621922992 | O45: 0.1751218505 | P45: 0.009240335333 | Q45: 0.1037956025 | R45: 0 | S45: 0 | T45: 0.03425137445 | U45: 0.4233990538 | V45: 0 | W45: 0 | X45: 0.01731855963 | Y45: 0.184364049 | Z45: - | AA45: ◎ | AB45: - | AC45: - | AD45: - | AE45: 2002-11-15 | AF45: 10.9 | AH45: 10.9
B46: 2002-11-16 | C46: 11 | D46: 1 | E46: 10.05727067 | F46: 0.09427712088 | G46: 1.161542559 | H46: 0.01590234404 | I46: 0.01590234404 | J46: 0.00896793899 | K46: 0.00896793899 | L46: 0 | M46: 0 | N46: 0.01590234404 | O46: 0.1910241946 | P46: 0.00896793899 | Q46: 0.1127635415 | R46: 0 | S46: 0 | T46: 0.03260872229 | U46: 0.4560077761 | V46: 0 | W46: 0 | X46: 0.01706196854 | Y46: 0.2014260175 | Z46: - | AA46: - | AB46: - | AC46: - | AD46: - | AE46: 2002-11-16 | AF46: 10.7 | AH46: 10.7
B47: 2002-11-17 | C47: 12 | D47: 1 | E47: 10.03069514 | F47: 0.09185914468 | G47: 1.253401704 | H47: 0.01557742369 | I47: 0.03147976774 | J47: 0.008691577967 | K47: 0.01765951696 | L47: 0 | M47: 0 | N47: 0.01557742369 | O47: 0.2066016182 | P47: 0.008691577967 | Q47: 0.1214551195 | R47: 0 | S47: 0 | T47: 0.03101919181 | U47: 0.4870269679 | V47: 0 | W47: 0 | X47: 0.01680428992 | Y47: 0.2182303074 | Z47: - | AA47: - | AB47: - | AC47: - | AD47: - | AE47: 2002-11-17 | AF47: 10.5 | AH47: 10.5
B48: 2002-11-18 | C48: 13 | D48: 1 | E48: 10.00464832 | F48: 0.08941965934 | G48: 1.342821363 | H48: 0.01524449328 | I48: 0.04672426102 | J48: 0.008411738563 | K48: 0.02607125552 | L48: 0 | M48: 0 | N48: 0.01524449328 | O48: 0.2218461115 | P48: 0.008411738563 | Q48: 0.129866858 | R48: 0 | S48: 0 | T48: 0.02948356445 | U48: 0.5165105324 | V48: 0 | W48: 0 | X48: 0.01654566998 | Y48: 0.2347759774 | Z48: - | AA48: - | AB48: - | AC48: - | AD48: - | AE48: 2002-11-18 | AF48: 10.3 | AH48: 10.3
B49: 2002-11-19 | C49: 14 | D49: 1 | E49: 9.979143005 | F49: 0.08696308316 | G49: 1.429784446 | H49: 0.01490360766 | I49: 0.06162786868 | J49: 0.008128948393 | K49: 0.03420020391 | L49: 0 | M49: 0 | N49: 0.01490360766 | O49: 0.2367497192 | P49: 0.008128948393 | Q49: 0.1379958064 | R49: 0 | S49: 0 | T49: 0.02800234132 | U49: 0.5445128737 | V49: 0 | W49: 0 | X49: 0.0162862571 | Y49: 0.2510622345 | Z49: - | AA49: - | AB49: - | AC49: - | AD49: - | AE49: 2002-11-19 | AF49: 10.1 | AH49: 10.1
B50: 2002-11-20 | C50: 15 | D50: 1 | E50: 9.954191949 | F50: 0.08449396207 | G50: 1.514278408 | H50: 0.01455485677 | I50: 0.07618272545 | J50: 0.007843775191 | K50: 0.0420439791 | L50: 0 | M50: 0 | N50: 0.01455485677 | O50: 0.251304576 | P50: 0.007843775191 | Q50: 0.1458395816 | R50: 0 | S50: 0 | T50: 0.02657575865 | U50: 0.5710886324 | V50: 0 | W50: 0 | X50: 0.01602620152 | Y50: 0.267088436 | Z50: - | AA50: - | AB50: - | AC50: - | AD50: - | AE50: 2002-11-20 | AF50: 9.9 | AH50: 9.9
B51: 2002-11-21 | C51: 16 | D51: 1 | E51: 9.929807874 | F51: 0.08201693646 | G51: 1.596295345 | H51: 0.01419837086 | I51: 0.09038109631 | J51: 0.007556825066 | K51: 0.04960080417 | L51: 0 | M51: 0 | N51: 0.01419837086 | O51: 0.2655029468 | P51: 0.007556825066 | Q51: 0.1533964067 | R51: 0 | S51: 0 | T51: 0.02520380486 | U51: 0.5962924372 | V51: 0 | W51: 0 | X51: 0.01576565498 | Y51: 0.282854091 | Z51: - | AA51: - | AB51: - | AC51: - | AD51: - | AE51: 2002-11-21 | AF51: 9.7 | AH51: 9.7
B52: 2002-11-22 | C52: 17 | D52: 1 | E52: 9.906003434 | F52: 0.07953670669 | G52: 1.675832051 | H52: 0.01383432599 | I52: 0.1042154223 | J52: 0.007268740199 | K52: 0.05686954437 | L52: 0 | M52: 0 | N52: 0.01383432599 | O52: 0.2793372728 | P52: 0.007268740199 | Q52: 0.1606651469 | R52: 0 | S52: 0 | T52: 0.02388623892 | U52: 0.6201786762 | V52: 0 | W52: 0 | X52: 0.01550477037 | Y52: 0.2983588614 | Z52: - | AA52: - | AB52: - | AC52: - | AD52: - | AE52: 2002-11-22 | AF52: 9.5 | AH52: 9.5
B53: 2002-11-23 | C53: 18 | D53: 1 | E53: 9.882791204 | F53: 0.07829686675 | G53: 1.754128918 | H53: 0.01353911714 | I53: 0.1177545394 | J53: 0.007016790215 | K53: 0.06388633458 | L53: 0 | M53: 0 | N53: 0.01353911714 | O53: 0.2928763899 | P53: 0.007016790215 | Q53: 0.1676819371 | R53: 0 | S53: 0 | T53: 0.02324771803 | U53: 0.6434263942 | V53: 0 | W53: 0 | X53: 0.0153742493 | Y53: 0.3137331107 | Z53: - | AA53: - | AB53: - | AC53: - | AD53: - | AE53: 2002-11-23 | AF53: 9.4 | AH53: 9.4
B54: 2002-11-24 | C54: 19 | D54: 1 | E54: 9.860183656 | F54: 0.07582068736 | G54: 1.829949606 | H54: 0.01316575399 | I54: 0.1309202934 | J54: 0.006728798284 | K54: 0.07061513287 | L54: 0 | M54: 0 | N54: 0.01316575399 | O54: 0.3060421439 | P54: 0.006728798284 | Q54: 0.1744107354 | R54: 0 | S54: 0 | T54: 0.02201082729 | U54: 0.6654372215 | V54: 0 | W54: 0 | X54: 0.01511314591 | Y54: 0.3288462566 | Z54: - | AA54: - | AB54: - | AC54: - | AD54: - | AE54: 2002-11-24 | AF54: 9.2 | AH54: 9.2
B55: 2002-11-25 | C55: 20 | D55: 1 | E55: 9.838193141 | F55: 0.07458552194 | G55: 1.904535128 | H55: 0.01286892353 | I55: 0.143789217 | J55: 0.006478124137 | K55: 0.077093257 | L55: 0 | M55: 0 | N55: 0.01286892353 | O55: 0.3189110675 | P55: 0.006478124137 | Q55: 0.1808888595 | R55: 0 | S55: 0 | T55: 0.02141227466 | U55: 0.6868494961 | V55: 0 | W55: 0 | X55: 0.01498260216 | Y55: 0.3438288587 | Z55: - | AA55: - | AB55: - | AC55: - | AD55: - | AE55: 2002-11-25 | AF55: 9.1 | AH55: 9.1
B56: 2002-11-26 | C56: 21 | D56: 1 | E56: 9.816831871 | F56: 0.07212394592 | G56: 1.976659073 | H56: 0.01248797975 | I56: 0.1562771967 | J56: 0.006192829798 | K56: 0.0832860868 | L56: 0 | M56: 0 | N56: 0.01248797975 | O56: 0.3313990472 | P56: 0.006192829798 | Q56: 0.1870816893 | R56: 0 | S56: 0 | T56: 0.02025442157 | U56: 0.7071039177 | V56: 0 | W56: 0 | X56: 0.01472162688 | Y56: 0.3585504856 | Z56: - | AA56: - | AB56: - | AC56: - | AD56: - | AE56: 2002-11-26 | AF56: 8.9 | AH56: 8.9
B57: 2002-11-27 | C57: 22 | D57: 1 | E57: 9.796111896 | F57: 0.07089868171 | G57: 2.047557755 | H57: 0.01219151217 | I57: 0.1684687089 | J57: 0.005945852266 | K57: 0.08923193907 | L57: 0 | M57: 0 | N57: 0.01219151217 | O57: 0.3435905594 | P57: 0.005945852266 | Q57: 0.1930275416 | R57: 0 | S57: 0 | T57: 0.0196948798 | U57: 0.7267987975 | V57: 0 | W57: 0 | X57: 0.01459123385 | Y57: 0.3731417195 | Z57: - | AA57: - | AB57: - | AC57: - | AD57: - | AE57: 2002-11-27 | AF57: 8.8 | AH57: 8.8
B58: 2002-11-28 | C58: 23 | D58: 1 | E58: 9.776045082 | F58: 0.068462014 | G58: 2.116019769 | H58: 0.01180496966 | I58: 0.1802736785 | J58: 0.00566598684 | K58: 0.09489792591 | L58: 0 | M58: 0 | N58: 0.01180496966 | O58: 0.355395529 | P58: 0.00566598684 | Q58: 0.1986935284 | R58: 0 | S58: 0 | T58: 0.01861389975 | U58: 0.7454126973 | V58: 0 | W58: 0 | X58: 0.01433073288 | Y58: 0.3874724523 | Z58: - | AA58: - | AB58: - | AC58: - | AD58: - | AE58: 2002-11-28 | AF58: 8.6 | AH58: 8.6
B59: 2002-11-29 | C59: 24 | D59: 1 | E59: 9.756643094 | F59: 0.06604747696 | G59: 2.182067246 | H59: 0.01141384532 | I59: 0.1916875239 | J59: 0.00538990934 | K59: 0.1002878352 | L59: 0 | M59: 0 | N59: 0.01141384532 | O59: 0.3668093744 | P59: 0.00538990934 | Q59: 0.2040834377 | R59: 0 | S59: 0 | T59: 0.0175827496 | U59: 0.7629954469 | V59: 0 | W59: 0 | X59: 0.01407073929 | Y59: 0.4015431916 | Z59: - | AA59: - | AB59: - | AC59: - | AD59: - | AE59: 2002-11-29 | AF59: 8.4 | AH59: 8.4
B60: 2002-11-30 | C60: 25 | D60: 1 | E60: 9.737917373 | F60: 0.06484983787 | G60: 2.246917084 | H60: 0.01112103213 | I60: 0.202808556 | J60: 0.005153575934 | K60: 0.1054414112 | L60: 0 | M60: 0 | N60: 0.01112103213 | O60: 0.3779304065 | P60: 0.005153575934 | Q60: 0.2092370137 | R60: 0 | S60: 0 | T60: 0.01708547072 | U60: 0.7800809176 | V60: 0 | W60: 0 | X60: 0.01394098019 | Y60: 0.4154841718 | Z60: - | AA60: - | AB60: - | AC60: - | AD60: - | AE60: 2002-11-30 | AF60: 8.3 | AH60: 8.3
B61: 2002-12-01 | C61: 26 | D61: 1 | E61: 9.719879113 | F61: 0.06247637774 | G61: 2.309393462 | H61: 0.01072772805 | I61: 0.213536284 | J61: 0.004887178379 | K61: 0.1103285896 | L61: 0 | M61: 0 | N61: 0.01072772805 | O61: 0.3886581346 | P61: 0.004887178379 | Q61: 0.2141241921 | R61: 0 | S61: 0 | T61: 0.01612667582 | U61: 0.7962075934 | V61: 0 | W61: 0 | X61: 0.01368203144 | Y61: 0.4291662033 | Z61: - | AA61: - | AB61: - | AC61: - | AD61: - | AE61: 2002-12-01 | AF61: 8.1 | AH61: 8.1
B62: 2002-12-02 | C62: 27 | D62: 1 | E62: 9.702539239 | F62: 0.06013526791 | G62: 2.36952873 | H62: 0.01033176479 | I62: 0.2238680488 | J62: 0.004626785338 | K62: 0.1149553749 | L62: 0 | M62: 0 | N62: 0.01033176479 | O62: 0.3989898993 | P62: 0.004626785338 | Q62: 0.2187509774 | R62: 0 | S62: 0 | T62: 0.01521440355 | U62: 0.8114219969 | V62: 0 | W62: 0 | X62: 0.01342396606 | Y62: 0.4425901693 | Z62: - | AA62: - | AB62: - | AC62: - | AD62: - | AE62: 2002-12-02 | AF62: 7.9 | AH62: 7.9
B63: 2002-12-03 | C63: 28 | D63: 1 | E63: 9.685908392 | F63: 0.05783021835 | G63: 2.427358948 | H63: 0.009933923064 | I63: 0.2338019719 | J63: 0.004373130103 | K63: 0.119328505 | L63: 0 | M63: 0 | N63: 0.009933923064 | O63: 0.4089238224 | P63: 0.004373130103 | Q63: 0.2231241075 | R63: 0 | S63: 0 | T63: 0.01434720658 | U63: 0.8257692035 | V63: 0 | W63: 0 | X63: 0.01316693113 | Y63: 0.4557571005 | Z63: - | AA63: - | AB63: - | AC63: - | AD63: - | AE63: 2002-12-03 | AF63: 7.7 | AH63: 7.7
B64: 2002-12-04 | C64: 29 | D64: 1 | E64: 9.669996899 | F64: 0.05556469048 | G64: 2.482923638 | H64: 0.009535058521 | I64: 0.2433370304 | J64: 0.00412691677 | K64: 0.1234554218 | L64: 0 | M64: 0 | N64: 0.009535058521 | O64: 0.4184588809 | P64: 0.00412691677 | Q64: 0.2272510243 | R64: 0 | S64: 0 | T64: 0.0135235891 | U64: 0.8392927926 | V64: 0 | W64: 0 | X64: 0.01291107137 | Y64: 0.4686681718 | Z64: - | AA64: - | AB64: - | AC64: - | AD64: - | AE64: 2002-12-04 | AF64: 7.5 | AH64: 7.5
B65: 2002-12-05 | C65: 30 | D65: 1 | E65: 9.654814759 | F65: 0.05334188024 | G65: 2.536265519 | H65: 0.009136098573 | I65: 0.252473129 | J65: 0.003888812586 | K65: 0.1273442344 | L65: 0 | M65: 0 | N65: 0.009136098573 | O65: 0.4275949795 | P65: 0.003888812586 | Q65: 0.2311398369 | R65: 0 | S65: 0 | T65: 0.01274202019 | U65: 0.8520348128 | V65: 0 | W65: 0 | X65: 0.01265652879 | Y65: 0.4813247006 | Z65: - | AA65: - | AB65: - | AC65: - | AD65: - | AE65: 2002-12-05 | AF65: 7.3 | AH65: 7.3
B66: 2002-12-06 | C66: 31 | D66: 1 | E66: 9.640371619 | F66: 0.05116470468 | G66: 2.587430223 | H66: 0.008738036835 | I66: 0.2612111658 | J66: 0.003659440406 | K66: 0.1310036748 | L66: 0 | M66: 0 | N66: 0.008738036835 | O66: 0.4363330163 | P66: 0.003659440406 | Q66: 0.2347992773 | R66: 0 | S66: 0 | T66: 0.0120009462 | U66: 0.864035759 | V66: 0 | W66: 0 | X66: 0.0124034424 | Y66: 0.493728143 | Z66: - | AA66: - | AB66: - | AC66: - | AD66: - | AE66: 2002-12-06 | AF66: 7.1 | AH66: 7.1
B67: 2002-12-07 | C67: 32 | D67: 1 | E67: 9.626676754 | F67: 0.04903579215 | G67: 2.636466016 | H67: 0.008341924869 | I67: 0.2695530907 | J67: 0.003439371413 | K67: 0.1344430462 | L67: 0 | M67: 0 | N67: 0.008341924869 | O67: 0.4446749412 | P67: 0.003439371413 | Q67: 0.2382386487 | R67: 0 | S67: 0 | T67: 0.01129880179 | U67: 0.8753345608 | V67: 0 | W67: 0 | X67: 0.01215194791 | Y67: 0.5058800909 | Z67: - | AA67: - | AB67: - | AC67: - | AD67: - | AE67: 2002-12-07 | AF67: 6.9 | AH67: 6.9
B68: 2002-12-08 | C68: 33 | D68: 1 | E68: 9.613739048 | F68: 0.04695747614 | G68: 2.683423492 | H68: 0.007948861144 | I68: 0.2775019518 | J68: 0.00322911825 | K68: 0.1376721644 | L68: 0 | M68: 0 | N68: 0.007948861144 | O68: 0.4526238023 | P68: 0.00322911825 | Q68: 0.2414677669 | R68: 0 | S68: 0 | T68: 0.01063401986 | U68: 0.8859685807 | V68: 0 | W68: 0 | X68: 0.01190217745 | Y68: 0.5177822684 | Z68: - | AA68: - | AB68: - | AC68: - | AD68: - | AE68: 2002-12-08 | AF68: 6.7 | AH68: 6.7
B69: 2002-12-09 | C69: 34 | D69: 1 | E69: 9.601566972 | F69: 0.04493179249 | G69: 2.728355284 | H69: 0.007559977296 | I69: 0.2850619291 | J69: 0.00302912869 | K69: 0.1407012931 | L69: 0 | M69: 0 | N69: 0.007559977296 | O69: 0.4601837796 | P69: 0.00302912869 | Q69: 0.2444968956 | R69: 0 | S69: 0 | T69: 0.01000504044 | U69: 0.8959736211 | V69: 0 | W69: 0 | X69: 0.01165425934 | Y69: 0.5294365277 | Z69: - | AA69: - | AB69: - | AC69: - | AD69: - | AE69: 2002-12-09 | AF69: 6.5 | AH69: 6.5
B70: 2002-12-10 | C70: 35 | D70: 1 | E70: 9.59016857 | F70: 0.04393924268 | G70: 2.772294527 | H70: 0.007315191827 | I70: 0.292377121 | J70: 0.00286948401 | K70: 0.1435707771 | L70: 0 | M70: 0 | N70: 0.007315191827 | O70: 0.4674989715 | P70: 0.00286948401 | Q70: 0.2473663796 | R70: 0 | S70: 0 | T70: 0.009703493039 | U70: 0.9056771142 | V70: 0 | W70: 0 | X70: 0.01153103391 | Y70: 0.5409675616 | Z70: - | AA70: - | AB70: - | AC70: - | AD70: - | AE70: 2002-12-10 | AF70: 6.4 | AH70: 6.4
B71: 2002-12-11 | C71: 36 | D71: 1 | E71: 9.579551438 | F71: 0.04199567571 | G71: 2.814290203 | H71: 0.006939708062 | I71: 0.299316829 | J71: 0.002690350955 | K71: 0.1462611281 | L71: 0 | M71: 0 | N71: 0.006939708062 | O71: 0.4744386795 | P71: 0.002690350955 | Q71: 0.2500567306 | R71: 0 | S71: 0 | T71: 0.009125326698 | U71: 0.9148024409 | V71: 0 | W71: 0 | X71: 0.01128612594 | Y71: 0.5522536876 | Z71: - | AA71: - | AB71: - | AC71: - | AD71: - | AE71: 2002-12-11 | AF71: 6.2 | AH71: 6.2
B72: 2002-12-12 | C72: 37 | D72: 1 | E72: 9.569722706 | F72: 0.04010853937 | G72: 2.854398742 | H72: 0.006571210092 | I72: 0.3058880391 | J72: 0.00252237685 | K72: 0.1487835049 | L72: 0 | M72: 0 | N72: 0.006571210092 | O72: 0.4810098896 | P72: 0.00252237685 | Q72: 0.2525791074 | R72: 0 | S72: 0 | T72: 0.008579142225 | U72: 0.9233815831 | V72: 0 | W72: 0 | X72: 0.01104337284 | Y72: 0.5632970604 | Z72: - | AA72: - | AB72: - | AC72: - | AD72: - | AE72: 2002-12-12 | AF72: 6 | AH72: 6
B73: 2002-12-13 | C73: 38 | D73: 1 | E73: 9.560689023 | F73: 0.03918646145 | G73: 2.893585203 | H73: 0.006351512845 | I73: 0.312239552 | J73: 0.002393024053 | K73: 0.151176529 | L73: 0 | M73: 0 | N73: 0.006351512845 | O73: 0.4873614025 | P73: 0.002393024053 | Q73: 0.2549721315 | R73: 0 | S73: 0 | T73: 0.008317579172 | U73: 0.9316991623 | V73: 0 | W73: 0 | X73: 0.0109228399 | Y73: 0.5742199003 | Z73: - | AA73: - | AB73: - | AC73: - | AD73: - | AE73: 2002-12-13 | AF73: 5.9 | AH73: 5.9
B74: 2002-12-14 | C74: 39 | D74: 1 | E74: 9.552456541 | F74: 0.03738579306 | G74: 2.930970996 | H74: 0.006000223102 | I74: 0.3182397751 | J74: 0.002247053408 | K74: 0.1534235824 | L74: 0 | M74: 0 | N74: 0.006000223102 | O74: 0.4933616256 | P74: 0.002247053408 | Q74: 0.2572191849 | R74: 0 | S74: 0 | T74: 0.00781660175 | U74: 0.939515764 | V74: 0 | W74: 0 | X74: 0.01068352976 | Y74: 0.5849034301 | Z74: - | AA74: - | AB74: - | AC74: - | AD74: - | AE74: 2002-12-14 | AF74: 5.7 | AH74: 5.7
B75: 2002-12-15 | C75: 40 | D75: 1 | E75: 9.545030902 | F75: 0.03650735542 | G75: 2.967478352 | H75: 0.005798243207 | I75: 0.3240380183 | J75: 0.00213827667 | K75: 0.1555618591 | L75: 0 | M75: 0 | N75: 0.005798243207 | O75: 0.4991598688 | P75: 0.00213827667 | Q75: 0.2593574616 | R75: 0 | S75: 0 | T75: 0.007576830392 | U75: 0.9470925944 | V75: 0 | W75: 0 | X75: 0.01056477905 | Y75: 0.5954682091 | Z75: - | AA75: - | AB75: - | AC75: - | AD75: - | AE75: 2002-12-15 | AF75: 5.6 | AH75: 5.6
B76: 2002-12-16 | C76: 41 | D76: 1 | E76: 9.538417223 | F76: 0.03479453533 | G76: 3.002272887 | H76: 0.005465814021 | I76: 0.3295038323 | J76: 0.002014390497 | K76: 0.1575762496 | L76: 0 | M76: 0 | N76: 0.005465814021 | O76: 0.5046256828 | P76: 0.002014390497 | Q76: 0.2613718521 | R76: 0 | S76: 0 | T76: 0.007117848359 | U76: 0.9542104428 | V76: 0 | W76: 0 | X76: 0.01032915024 | Y76: 0.6057973594 | Z76: - | AA76: - | AB76: - | AC76: - | AD76: - | AE76: 2002-12-16 | AF76: 5.4 | AH76: 5.4
B77: 2002-12-17 | C77: 42 | D77: 1 | E77: 9.532620083 | F77: 0.03396021154 | G77: 3.036233099 | H77: 0.005281778484 | I77: 0.3347856108 | J77: 0.001926207378 | K77: 0.1595024569 | L77: 0 | M77: 0 | N77: 0.005281778484 | O77: 0.5099074613 | P77: 0.001926207378 | Q77: 0.2632980594 | R77: 0 | S77: 0 | T77: 0.006898295821 | U77: 0.9611087386 | V77: 0 | W77: 0 | X77: 0.01021229675 | Y77: 0.6160096561 | Z77: - | AA77: - | AB77: - | AC77: - | AD77: - | AE77: 2002-12-17 | AF77: 5.3 | AH77: 5.3
B78: 2002-12-18 | C78: =+C77+D78 -> 43 | D78: =+IF((COUNT(AH78))=1,1)+IF((COUNT(AH78=0)),0) -> 1 | E78: 9.527643515 | F78: =1/(1+EXP(-$I$2*($AH78-$J$2)))/$H$2 -> 0.03314062646 | G78: 3.069373725 | H78: 0.005106074176 | I78: 0.3398916849 | J78: 0.001847887413 | K78: 0.1613503444 | L78: 0 | M78: 0 | N78: =MAX((1-EXP(-$K$6*($E78-$L$6)))/(1+EXP(-$I$6*($AH78-$J$6)))/$H$6,0) -> 0.005106074176 | O78: 0.5150135355 | P78: =MAX((1-EXP(-$K$7*($E78-$L$7)))/(1+EXP(-$I$7*($AH78-$J$7)))/$H$7,0) -> 0.001847887413 | Q78: 0.2651459468 | R78: 0 | S78: 0 | T78: =1/(1+EXP(-$I$9*($AH78-$J$9)))/$H$9 -> 0.006685145504 | U78: 0.9677938841 | V78: 0 | W78: 0 | X78: =1/(1+EXP(-$I$11*($AH78-$J$11)))/$H$11 -> 0.01009609975 | Y78: 0.6261057559 | Z78: - | AA78: - | AB78: - | AC78: - | AD78: - | AE78: 2002-12-18 | AF78: 5.2 | AH78: =IF(DATE(IF($B$10>=10,2002,2003),$B$10,$C$10)>=B78,"",IF(AG78="",AF78+$AJ$9,AG78)) -> 5.2
B79: 2002-12-19 | C79: 44 | D79: 1 | E79: =INDIRECT("気象データ!"&$D$6&ROW()+320) -> 9.523490994 | F79: 0.03233577329 | G79: 3.101709499 | H79: =IF(G78>=1,MAX((1-EXP(-$K$6*($E79-$L$6)))/(1+EXP(-$I$6*($AH79-$J$6)))/$H$6,0),0) -> 0.004938524806 | I79: 0.3448302098 | J79: =IF(G78>=1,MAX((1-EXP(-$K$7*($E79-$L$7)))/(1+EXP(-$I$7*($AH79-$J$7)))/$H$7,0),0) -> 0.001779347667 | K79: 0.163129692 | L79: =IF(K78>=1,1/(1+EXP(-$I$11*($AH79-$J$11)))/$H$11,0) -> 0 | M79: 0 | N79: 0.004938524806 | O79: 0.5199520603 | P79: 0.001779347667 | Q79: 0.2669252945 | R79: =IF(Q78>=1,1/(1+EXP(-$I$11*($AH79-$J$11)))/$H$11,0) -> 0 | S79: 0 | T79: 0.006478233285 | U79: 0.9742721174 | V79: =IF(U78>=1,1/(1+EXP(-$I$11*($AH79-$J$11)))/$H$11,0) -> 0 | W79: 0 | X79: 0.009980570741 | Y79: 0.6360863266 | Z79: =IF($B$3="播種期",IF($C80=1,"◎","-"),"-") -> - | AA79: =IF($B$3="播種期",IF(AND(G79>=1,G78<1),"◎","-"),IF($B$3="出芽期",IF($C80=1,"◎","-"),"-")) -> - | AB79: =IF($B$3="播種期",IF(AND(I79>=1,I78<1),"◎","-"),IF($B$3="出芽期",IF(AND(O79>=1,O78<1),"◎","-"),IF($B$3="茎立期",IF($C80=1,"◎","-"),"-"))) -> - | AC79: =IF($B$3="播種期",IF(AND(K79>=1,K78<1),"◎","-"),IF($B$3="出芽期",IF(AND(Q79>=1,Q78<1),"◎","-"),IF($B$3="茎立期",IF(AND(U79>=1,U78<1),"◎","-"),IF($B$3="出穂期",IF($C80=1,"◎","-"),"-")))) -> - | AD79: =IF($B$3="播種期",IF(AND(M79>=1,M78<1),"◎","-"),IF($B$3="出芽期",IF(AND(S79>=1,S78<1),"◎","-"),IF($B$3="茎立期",IF(AND(W79>=1,W78<1),"◎","-"),IF($B$3="出穂期",IF(AND(Y79>=1,Y78<1),"◎","-"),IF($C80=1,"◎","-"))))) -> - | AE79: 2002-12-19 | AF79: =INDIRECT("気象データ!"&$D$6&ROW()-8) -> 5.1 | AH79: 5.1
B80: 2002-12-20 | C80: 45 | D80: 1 | E80: 9.520165428 | F80: 0.03154563171 | G80: 3.13325513 | H80: 0.004778918004 | I80: 0.3496091278 | J80: 0.001720456017 | K80: 0.164850148 | L80: 0 | M80: 0 | N80: 0.004778918004 | O80: 0.5247309783 | P80: 0.001720456017 | Q80: 0.2686457505 | R80: 0 | S80: 0 | T80: 0.00627739786 | U80: 0.9805495152 | V80: 0 | W80: 0 | X80: 0.009865720884 | Y80: 0.6459520475 | Z80: - | AA80: - | AB80: - | AC80: - | AD80: - | AE80: 2002-12-20 | AF80: 5 | AH80: 5
B81: 2002-12-21 | C81: 46 | D81: 1 | E81: 9.517669154 | F81: 0.03077016835 | G81: 3.164025299 | H81: 0.004627008595 | I81: 0.3542361364 | J81: 0.001671032253 | K81: 0.1665211803 | L81: 0 | M81: 0 | N81: 0.004627008595 | O81: 0.5293579869 | P81: 0.001671032253 | Q81: 0.2703167828 | R81: 0 | S81: 0 | T81: 0.006082480793 | U81: 0.986631996 | V81: 0 | W81: 0 | X81: 0.009751561025 | Y81: 0.6557036085 | Z81: - | AA81: - | AB81: - | AC81: - | AD81: - | AE81: 2002-12-21 | AF81: 4.9 | AH81: 4.9
B82: 2002-12-22 | C82: 47 | D82: 1 | E82: 9.516003927 | F82: 0.03000933734 | G82: 3.194034636 | H82: 0.004482522167 | I82: 0.3587186585 | J82: 0.001630849616 | K82: 0.1681520299 | L82: 0 | M82: 0 | N82: 0.004482522167 | O82: 0.533840509 | P82: 0.001630849616 | Q82: 0.2719476324 | R82: 0 | S82: 0 | T82: 0.005893326541 | U82: 0.9925253226 | V82: 0 | W82: 0 | X82: 0.009638101672 | Y82: 0.6653417102 | Z82: - | AA82: - | AB82: - | AC82: - | AD82: - | AE82: 2002-12-22 | AF82: 4.8 | AH82: 4.8
B83: 2002-12-23 | C83: 48 | D83: 1 | E83: 9.515170923 | F83: 0.02926308085 | G83: 3.223297717 | H83: 0.004345158865 | I83: 0.3630638174 | J83: 0.001599636789 | K83: 0.1697516667 | L83: 0 | M83: 0 | N83: 0.004345158865 | O83: 0.5381856679 | P83: 0.001599636789 | Q83: 0.2735472692 | R83: 0 | S83: 0 | T83: 0.00570978249 | U83: 0.9982351051 | V83: 0 | W83: 0 | X83: 0.009525352998 | Y83: 0.6748670632 | Z83: - | AA83: - | AB83: - | AC83: - | AD83: - | AE83: 2002-12-23 | AF83: 4.7 | AH83: 4.7
B84: 2002-12-24 | C84: 49 | D84: 1 | E84: 9.515170728 | F84: 0.02853132959 | G84: 3.251829046 | H84: 0.004214597343 | I84: 0.3672784147 | J84: 0.00157708028 | K84: 0.171328747 | L84: 0 | M84: 0 | N84: 0.004214597343 | O84: 0.5424002652 | P84: 0.00157708028 | Q84: 0.2751243495 | R84: 0 | S84: 0 | T84: 0.005531698969 | U84: 1.003766804 | V84: 0 | W84: 0 | X84: 0.009413324842 | Y84: 0.684280388 | Z84: - | AA84: - | AB84: - | AC84: - | AD84: - | AE84: 2002-12-24 | AF84: 4.6 | AH84: 4.6
B85: 2002-12-25 | C85: 50 | D85: 1 | E85: 9.516003342 | F85: 0.02711101181 | G85: 3.278940058 | H85: 0.003962399148 | I85: 0.3712408139 | J85: 0.001540074685 | K85: 0.1728688217 | L85: 0 | M85: 0 | N85: 0.003962399148 | O85: 0.5463626644 | P85: 0.001540074685 | Q85: 0.2766644242 | R85: 0 | S85: 0 | T85: 0.005191329643 | U85: 1.008958134 | V85: 0.009191467753 | W85: 0.009191467753 | X85: 0.009191467753 | Y85: 0.6934718558 | Z85: - | AA85: - | AB85: - | AC85: - | AD85: - | AE85: 2002-12-25 | AF85: 4.4 | AH85: 4.4
B86: 2002-12-26 | C86: 51 | D86: 1 | E86: 9.517668178 | F86: 0.02642225445 | G86: 3.305362313 | H86: 0.003845629462 | I86: 0.3750864433 | J86: 0.001533470497 | K86: 0.1744022922 | L86: 0 | M86: 0 | N86: 0.003845629462 | O86: 0.5502082938 | P86: 0.001533470497 | Q86: 0.2781978946 | R86: 0 | S86: 0 | T86: 0.005028759326 | U86: 1.013986893 | V86: 0.00908165681 | W86: 0.01827312456 | X86: 0.00908165681 | Y86: 0.7025535126 | Z86: - | AA86: - | AB86: - | AC86: - | AD86: - | AE86: 2002-12-26 | AF86: 4.3 | AH86: 4.3
B87: 2002-12-27 | C87: 52 | D87: 1 | E87: 9.520164064 | F87: 0.02574762175 | G87: 3.331109934 | H87: 0.003734601132 | I87: 0.3788210445 | J87: 0.001534248761 | K87: 0.1759365409 | L87: 0 | M87: 0 | N87: 0.003734601132 | O87: 0.553942895 | P87: 0.001534248761 | Q87: 0.2797321434 | R87: 0 | S87: 0 | T87: 0.004871080513 | U87: 1.018857974 | V87: 0.008972602364 | W87: 0.02724572693 | X87: 0.008972602364 | Y87: 0.711526115 | Z87: - | AA87: - | AB87: - | AC87: - | AD87: - | AE87: 2002-12-27 | AF87: 4.2 | AH87: 4.2
B88: 2002-12-28 | C88: 53 | D88: 1 | E88: 9.523489241 | F88: 0.02508699536 | G88: 3.35619693 | H88: 0.003628948618 | I88: 0.3824499931 | J88: 0.001541960165 | K88: 0.1774785011 | L88: 0 | M88: 0 | N88: 0.003628948618 | O88: 0.5575718436 | P88: 0.001541960165 | Q88: 0.2812741036 | R88: 0 | S88: 0 | T88: 0.004718158363 | U88: 1.023576132 | V88: 0.008864312563 | W88: 0.03611003949 | X88: 0.008864312563 | Y88: 0.7203904275 | Z88: - | AA88: - | AB88: - | AC88: - | AD88: - | AE88: 2002-12-28 | AF88: 4.1 | AH88: 4.1
B89: 2002-12-29 | C89: 54 | D89: 1 | E89: 9.527641375 | F89: 0.02444024875 | G89: 3.380637178 | H89: 0.003528305653 | I89: 0.3859782987 | J89: 0.001556130926 | K89: 0.179034632 | L89: 0 | M89: 0 | N89: 0.003528305653 | O89: 0.5611001493 | P89: 0.001556130926 | Q89: 0.2828302345 | R89: 0 | S89: 0 | T89: 0.004569860989 | U89: 1.028145993 | V89: 0.008756795219 | W89: 0.04486683471 | X89: 0.008756795219 | Y89: 0.7291472227 | Z89: - | AA89: - | AB89: - | AC89: - | AD89: - | AE89: 2002-12-29 | AF89: 4 | AH89: 4
B90: 2002-12-30 | C90: 55 | D90: 1 | E90: 9.532617558 | F90: 0.02380724768 | G90: 3.404444426 | H90: 0.003432308751 | I90: 0.3894106075 | J90: 0.00157626683 | K90: 0.1806108988 | L90: 0 | M90: 0 | N90: 0.003432308751 | O90: 0.564532458 | P90: 0.00157626683 | Q90: 0.2844065013 | R90: 0 | S90: 0 | T90: 0.004426059435 | U90: 1.032572052 | V90: 0.008650057804 | W90: 0.05351689251 | X90: 0.008650057804 | Y90: 0.7377972805 | Z90: - | AA90: - | AB90: - | AC90: - | AD90: - | AE90: 2002-12-30 | AF90: 3.9 | AH90: 3.9
B91: 2002-12-31 | C91: 56 | D91: 1 | E91: 9.538414314 | F91: 0.02318785072 | G91: 3.427632277 | H91: 0.003340600466 | I91: 0.392751208 | J91: 0.001601857355 | K91: 0.1822127562 | L91: 0 | M91: 0 | N91: 0.003340600466 | O91: 0.5678730585 | P91: 0.001601857355 | Q91: 0.2860083587 | R91: 0 | S91: 0 | T91: 0.004286627665 | U91: 1.03685868 | V91: 0.008544107456 | W91: 0.06206099997 | X91: 0.008544107456 | Y91: 0.746341388 | Z91: - | AA91: - | AB91: - | AC91: - | AD91: - | AE91: 2002-12-31 | AF91: 3.8 | AH91: 3.8
B92: 2003-01-01 | C92: 57 | D92: 1 | E92: 9.59016685 | F92: 0.02258190979 | G92: 3.450214187 | H92: 0.003457278538 | I92: 0.3962084865 | J92: 0.002003570337 | K92: 0.1842163265 | L92: 0 | M92: 0 | N92: 0.003457278538 | O92: 0.571330337 | P92: 0.002003570337 | Q92: 0.288011929 | R92: 0 | S92: 0 | T92: 0.004151442537 | U92: 1.041010122 | V92: 0.008438950975 | W92: 0.07049995094 | X92: 0.008438950975 | Y92: 0.754780339 | Z92: - | AA92: - | AB92: - | AC92: - | AD92: - | AE92: 2003-01-01 | AF92: 3.7 | AH92: 3.7
B93: 2003-01-02 | C93: 58 | D93: 1 | E93: 9.60156513 | F93: 0.0219892706 | G93: 3.472203457 | H93: 0.003380987426 | I93: 0.3995894739 | J93: 0.002059259336 | K93: 0.1862755859 | L93: 0 | M93: 0 | N93: 0.003380987426 | O93: 0.5747113244 | P93: 0.002059259336 | Q93: 0.2900711884 | R93: 0 | S93: 0 | T93: 0.004020383777 | U93: 1.045030506 | V93: 0.008334594828 | W93: 0.07883454577 | X93: 0.008334594828 | Y93: 0.7631149338 | Z93: - | AA93: - | AB93: - | AC93: - | AD93: - | AE93: 2003-01-02 | AF93: 3.6 | AH93: 3.6
B94: 2003-01-03 | C94: 59 | D94: 1 | E94: 9.613737085 | F94: 0.0219892706 | G94: 3.494192728 | H94: 0.003431937489 | I94: 0.4030214114 | J94: 0.002152229006 | K94: 0.1884278149 | L94: 0 | M94: 0 | N94: 0.003431937489 | O94: 0.5781432619 | P94: 0.002152229006 | Q94: 0.2922234174 | R94: 0 | S94: 0 | T94: 0.004020383777 | U94: 1.04905089 | V94: 0.008334594828 | W94: 0.0871691406 | X94: 0.008334594828 | Y94: 0.7714495286 | Z94: - | AA94: - | AB94: - | AC94: - | AD94: - | AE94: 2003-01-03 | AF94: 3.6 | AH94: 3.6
B95: 2003-01-04 | C95: 60 | D95: 1 | E95: 9.626674673 | F95: 0.02140977318 | G95: 3.515602501 | H95: 0.003357886959 | I95: 0.4063792984 | J95: 0.002211904953 | K95: 0.1906397198 | L95: 0 | M95: 0 | N95: 0.003357886959 | O95: 0.5815011489 | P95: 0.002211904953 | Q95: 0.2944353223 | R95: 0 | S95: 0 | T95: 0.003893333952 | U95: 1.052944224 | V95: 0.008231045148 | W95: 0.09540018575 | X95: 0.008231045148 | Y95: 0.7796805738 | Z95: - | AA95: - | AB95: - | AC95: - | AD95: - | AE95: 2003-01-04 | AF95: 3.5 | AH95: 3.5
B96: 2003-01-05 | C96: 61 | D96: 1 | E96: 9.640369421 | F96: 0.02140977318 | G96: 3.537012274 | H96: 0.003411634561 | I96: 0.4097909329 | J96: 0.002311040635 | K96: 0.1929507605 | L96: 0 | M96: 0 | N96: 0.003411634561 | O96: 0.5849127834 | P96: 0.002311040635 | Q96: 0.296746363 | R96: 0 | S96: 0 | T96: 0.003893333952 | U96: 1.056837558 | V96: 0.008231045148 | W96: 0.1036312309 | X96: 0.008231045148 | Y96: 0.7879116189 | Z96: - | AA96: - | AB96: - | AC96: - | AD96: - | AE96: 2003-01-05 | AF96: 3.5 | AH96: 3.5
B97: 2003-01-06 | C97: 62 | D97: 1 | E97: 9.654812444 | F97: 0.02140977318 | G97: 3.558422047 | H97: 0.003467487886 | I97: 0.4132584208 | J97: 0.002413515955 | K97: 0.1953642764 | L97: 0 | M97: 0 | N97: 0.003467487886 | O97: 0.5883802713 | P97: 0.002413515955 | Q97: 0.2991598789 | R97: 0 | S97: 0 | T97: 0.003893333952 | U97: 1.060730892 | V97: 0.008231045148 | W97: 0.111862276 | X97: 0.008231045148 | Y97: 0.7961426641 | Z97: - | AA97: - | AB97: - | AC97: - | AD97: - | AE97: 2003-01-06 | AF97: 3.5 | AH97: 3.5
B98: 2003-01-07 | C98: 63 | D98: 1 | E98: 9.669994469 | F98: 0.0208432523 | G98: 3.5792653 | H98: 0.003394471614 | I98: 0.4166528924 | J98: 0.002476540082 | K98: 0.1978408165 | L98: 0 | M98: 0 | N98: 0.003394471614 | O98: 0.5917747429 | P98: 0.002476540082 | Q98: 0.301636419 | R98: 0 | S98: 0 | T98: 0.003770178441 | U98: 1.06450107 | V98: 0.00812830774 | W98: 0.1199905838 | X98: 0.00812830774 | Y98: 0.8042709718 | Z98: - | AA98: - | AB98: - | AC98: - | AD98: - | AE98: 2003-01-07 | AF98: 3.4 | AH98: 3.4
B99: 2003-01-08 | C99: 64 | D99: 1 | E99: 9.685905849 | F99: 0.0208432523 | G99: 3.600108552 | H99: 0.003451861393 | I99: 0.4201047538 | J99: 0.002582827894 | K99: 0.2004236444 | L99: 0 | M99: 0 | N99: 0.003451861393 | O99: 0.5952266043 | P99: 0.002582827894 | Q99: 0.3042192469 | R99: 0 | S99: 0 | T99: 0.003770178441 | U99: 1.068271249 | V99: 0.00812830774 | W99: 0.1281188915 | X99: 0.00812830774 | Y99: 0.8123992796 | Z99: - | AA99: - | AB99: - | AC99: - | AD99: - | AE99: 2003-01-08 | AF99: 3.4 | AH99: 3.4
B100: 2003-01-09 | C100: 65 | D100: 1 | E100: 9.702536585 | F100: 0.02028953799 | G100: 3.62039809 | H100: 0.003378731495 | I100: 0.4234834853 | J100: 0.002645416451 | K100: 0.2030690608 | L100: 0 | M100: 0 | N100: 0.003378731495 | O100: 0.5986053358 | P100: 0.002645416451 | Q100: 0.3068646633 | R100: 0 | S100: 0 | T100: 0.003650805398 | U100: 1.071922054 | V100: 0.008026388077 | W100: 0.1361452796 | X100: 0.008026388077 | Y100: 0.8204256676 | Z100: - | AA100: - | AB100: - | AC100: - | AD100: - | AE100: 2003-01-09 | AF100: 3.3 | AH100: 3.3
B101: 2003-01-10 | C101: 66 | D101: 1 | E101: 9.719876348 | F101: 0.02028953799 | G101: 3.640687628 | H101: 0.003436855002 | I101: 0.4269203403 | J101: 0.00275399367 | K101: 0.2058230545 | L101: 0 | M101: 0 | N101: 0.003436855002 | O101: 0.6020421908 | P101: 0.00275399367 | Q101: 0.309618657 | R101: 0 | S101: 0 | T101: 0.003650805398 | U101: 1.07557286 | V101: 0.008026388077 | W101: 0.1441716677 | X101: 0.008026388077 | Y101: 0.8284520557 | Z101: - | AA101: - | AB101: - | AC101: - | AD101: - | AE101: 2003-01-10 | AF101: 3.3 | AH101: 3.3
B102: 2003-01-11 | C102: 67 | D102: 1 | E102: 9.737914501 | F102: 0.02028953799 | G102: 3.660977166 | H102: 0.003496207098 | I102: 0.4304165474 | J102: 0.002864129927 | K102: 0.2086871844 | L102: 0 | M102: 0 | N102: 0.003496207098 | O102: 0.6055383979 | P102: 0.002864129927 | Q102: 0.3124827869 | R102: 0 | S102: 0 | T102: 0.003650805398 | U102: 1.079223665 | V102: 0.008026388077 | W102: 0.1521980558 | X102: 0.008026388077 | Y102: 0.8364784438 | Z102: - | AA102: - | AB102: - | AC102: - | AD102: - | AE102: 2003-01-11 | AF102: 3.3 | AH102: 3.3
B103: 2003-01-12 | C103: 68 | D103: 1 | E103: 9.756640115 | F103: 0.02028953799 | G103: 3.681266704 | H103: 0.003556643631 | I103: 0.4339731911 | J103: 0.002975504951 | K103: 0.2116626894 | L103: 0 | M103: 0 | N103: 0.003556643631 | O103: 0.6090950416 | P103: 0.002975504951 | Q103: 0.3154582919 | R103: 0 | S103: 0 | T103: 0.003650805398 | U103: 1.08287447 | V103: 0.008026388077 | W103: 0.1602244438 | X103: 0.008026388077 | Y103: 0.8445048319 | Z103: - | AA103: - | AB103: - | AC103: - | AD103: - | AE103: 2003-01-12 | AF103: 3.3 | AH103: 3.3
B104: 2003-01-13 | C104: 69 | D104: 1 | E104: 9.776041998 | F104: 0.02028953799 | G104: 3.701556242 | H104: 0.00361802208 | I104: 0.4375912131 | J104: 0.003087806741 | K104: 0.2147504961 | L104: 0 | M104: 0 | N104: 0.00361802208 | O104: 0.6127130636 | P104: 0.003087806741 | Q104: 0.3185460986 | R104: 0 | S104: 0 | T104: 0.003650805398 | U104: 1.086525276 | V104: 0.008026388077 | W104: 0.1682508319 | X104: 0.008026388077 | Y104: 0.8525312199 | Z104: - | AA104: - | AB104: - | AC104: - | AD104: - | AE104: 2003-01-13 | AF104: 3.3 | AH104: 3.3
B105: 2003-01-14 | C105: 70 | D105: 1 | E105: 9.796108709 | F105: 0.0197484559 | G105: 3.721304698 | H105: 0.003539876914 | I105: 0.44113109 | J105: 0.003145358346 | K105: 0.2178958545 | L105: 0 | M105: 0 | N105: 0.003539876914 | O105: 0.6162529406 | P105: 0.003145358346 | Q105: 0.321691457 | R105: 0 | S105: 0 | T105: 0.003535105719 | U105: 1.090060381 | V105: 0.007925291308 | W105: 0.1761761232 | X105: 0.007925291308 | Y105: 0.8604565112 | Z105: - | AA105: - | AB105: - | AC105: - | AD105: - | AE105: 2003-01-14 | AF105: 3.2 | AH105: 3.2
B106: 2003-01-15 | C106: 71 | D106: 1 | E106: 9.816828583 | F106: 0.0197484559 | G106: =IF($D106=0,0,G105+F106) -> 3.741053154 | H106: 0.003600324768 | I106: =IF($D106=0,0,I105+H106) -> 0.4447314148 | J106: 0.003256657991 | K106: =IF($D106=0,0,K105+J106) -> 0.2211525125 | L106: 0 | M106: =IF($D106=0,0,M105+L106) -> 0 | N106: 0.003600324768 | O106: =IF($D106=0,0,O105+N106) -> 0.6198532653 | P106: 0.003256657991 | Q106: =IF($D106=0,0,Q105+P106) -> 0.324948115 | R106: 0 | S106: =IF($D106=0,0,S105+R106) -> 0 | T106: 0.003535105719 | U106: =IF($D106=0,0,U105+T106) -> 1.093595487 | V106: 0.007925291308 | W106: =IF($D106=0,0,W105+V106) -> 0.1841014145 | X106: 0.007925291308 | Y106: =IF($D106=0,0,Y105+X106) -> 0.8683818026 | Z106: - | AA106: - | AB106: - | AC106: - | AD106: - | AE106: 2003-01-15 | AF106: 3.2 | AH106: 3.2
B107: 2003-01-16 | C107: 72 | D107: 1 | E107: 9.838189754 | F107: 0.0197484559 | G107: 3.76080161 | H107: 0.003661282123 | I107: 0.4483926969 | J107: 0.003368010044 | K107: 0.2245205225 | L107: 0 | M107: 0 | N107: 0.003661282123 | O107: 0.6235145474 | P107: 0.003368010044 | Q107: 0.328316125 | R107: 0 | S107: 0 | T107: 0.003535105719 | U107: 1.097130593 | V107: 0.007925291308 | W107: 0.1920267058 | X107: 0.007925291308 | Y107: 0.8763070939 | Z107: - | AA107: - | AB107: - | AC107: - | AD107: - | AE107: 2003-01-16 | AF107: 3.2 | AH107: 3.2
B108: 2003-01-17 | C108: 73 | D108: 1 | E108: 9.860180171 | F108: 0.0197484559 | G108: 3.780550066 | H108: 0.003722623312 | I108: 0.4521153202 | J108: 0.00347915241 | K108: 0.2279996749 | L108: 0 | M108: 0 | N108: 0.003722623312 | O108: 0.6272371708 | P108: 0.00347915241 | Q108: 0.3317952774 | R108: 0 | S108: 0 | T108: 0.003535105719 | U108: 1.100665699 | V108: 0.007925291308 | W108: 0.1999519971 | X108: 0.007925291308 | Y108: 0.8842323852 | Z108: - | AA108: - | AB108: - | AC108: - | AD108: - | AE108: 2003-01-17 | AF108: 3.2 | AH108: 3.2
B109: 2003-01-18 | C109: 74 | D109: 1 | E109: 9.882787624 | F109: 0.0197484559 | G109: 3.800298521 | H109: 0.003784226602 | I109: 0.4558995469 | J109: 0.003589836388 | K109: 0.2315895113 | L109: 0 | M109: 0 | N109: 0.003784226602 | O109: 0.6310213974 | P109: 0.003589836388 | Q109: 0.3353851138 | R109: 0 | S109: 0 | T109: 0.003535105719 | U109: 1.104200804 | V109: 0.007925291308 | W109: 0.2078772885 | X109: 0.007925291308 | Y109: 0.8921576765 | Z109: - | AA109: - | AB109: - | AC109: - | AD109: - | AE109: 2003-01-18 | AF109: 3.2 | AH109: 3.2
B110: 2003-01-19 | C110: 75 | D110: 1 | E110: 9.905999761 | F110: 0.0197484559 | G110: 3.820046977 | H110: 0.003845974535 | I110: 0.4597455214 | J110: 0.003699827297 | K110: 0.2352893386 | L110: 0 | M110: 0 | N110: 0.003845974535 | O110: 0.6348673719 | P110: 0.003699827297 | Q110: 0.3390849411 | R110: 0 | S110: 0 | T110: 0.003535105719 | U110: 1.10773591 | V110: 0.007925291308 | W110: 0.2158025798 | X110: 0.007925291308 | Y110: 0.9000829678 | Z110: - | AA110: - | AB110: - | AC110: - | AD110: - | AE110: 2003-01-19 | AF110: 3.2 | AH110: 3.2
B111: 2003-01-20 | C111: 76 | D111: 1 | E111: 9.929804108 | F111: 0.0197484559 | G111: 3.839795433 | H111: 0.003907754233 | I111: 0.4636532756 | J111: 0.003808904948 | K111: 0.2390982436 | L111: 0 | M111: 0 | N111: 0.003907754233 | O111: 0.6387751261 | P111: 0.003808904948 | Q111: 0.342893846 | R111: 0 | S111: 0 | T111: 0.003535105719 | U111: 1.111271016 | V111: 0.007925291308 | W111: 0.2237278711 | X111: 0.007925291308 | Y111: 0.9080082591 | Z111: - | AA111: - | AB111: - | AC111: - | AD111: - | AE111: 2003-01-20 | AF111: 3.2 | AH111: 3.2
B112: 2003-01-21 | C112: 77 | D112: 1 | E112: 9.954188094 | F112: 0.0197484559 | G112: 3.859543889 | H112: 0.003969457652 | I112: 0.4676227333 | J112: 0.003916863991 | K112: 0.2430151075 | L112: 0 | M112: 0 | N112: 0.003969457652 | O112: 0.6427445838 | P112: 0.003916863991 | Q112: 0.34681071 | R112: 0 | S112: 0 | T112: 0.003535105719 | U112: 1.114806122 | V112: 0.007925291308 | W112: 0.2316531624 | X112: 0.007925291308 | Y112: 0.9159335504 | Z112: - | AA112: - | AB112: - | AC112: - | AD112: - | AE112: 2003-01-21 | AF112: 3.2 | AH112: 3.2
B113: 2003-01-22 | C113: 78 | D113: 1 | E113: 9.979139062 | F113: 0.0197484559 | G113: 3.879292345 | H113: 0.004030981796 | I113: 0.4716537151 | J113: 0.00402351413 | K113: 0.2470386217 | L113: 0 | M113: 0 | N113: 0.004030981796 | O113: 0.6467755656 | P113: 0.00402351413 | Q113: 0.3508342242 | R113: 0 | S113: 0 | T113: 0.003535105719 | U113: 1.118341227 | V113: 0.007925291308 | W113: 0.2395784537 | X113: 0.007925291308 | Y113: 0.9238588417 | Z113: - | AA113: - | AB113: - | AC113: - | AD113: - | AE113: 2003-01-22 | AF113: 3.2 | AH113: 3.2
B114: 2003-01-23 | C114: 79 | D114: 1 | E114: 10.0046443 | F114: 0.0197484559 | G114: 3.899040801 | H114: 0.004092228893 | I114: 0.475745944 | J114: 0.004128680213 | K114: 0.2511673019 | L114: 0 | M114: 0 | N114: 0.004092228893 | O114: 0.6508677945 | P114: 0.004128680213 | Q114: 0.3549629044 | R114: 0 | S114: 0 | T114: 0.003535105719 | U114: 1.121876333 | V114: 0.007925291308 | W114: 0.247503745 | X114: 0.007925291308 | Y114: 0.931784133 | Z114: - | AA114: - | AB114: - | AC114: - | AD114: - | AE114: 2003-01-23 | AF114: 3.2 | AH114: 3.2
B115: 2003-01-24 | C115: 80 | D115: 1 | E115: 10.03069103 | F115: 0.0197484559 | G115: 3.918789257 | H115: 0.004153106523 | I115: 0.4798990505 | J115: 0.004232202217 | K115: 0.2553995041 | L115: 0 | M115: 0 | N115: 0.004153106523 | O115: 0.655020901 | P115: 0.004232202217 | Q115: 0.3591951066 | R115: 0 | S115: 0 | T115: 0.003535105719 | U115: 1.125411439 | V115: 0.007925291308 | W115: 0.2554290363 | X115: 0.007925291308 | Y115: 0.9397094243 | Z115: - | AA115: - | AB115: - | AC115: - | AD115: - | AE115: 2003-01-24 | AF115: 3.2 | AH115: 3.2
B116: 2003-01-25 | C116: 81 | D116: 1 | E116: 10.05726648 | F116: 0.0197484559 | G116: 3.938537713 | H116: 0.004213527714 | I116: 0.4841125782 | J116: 0.004333935119 | K116: 0.2597334392 | L116: 0 | M116: 0 | N116: 0.004213527714 | O116: 0.6592344287 | P116: 0.004333935119 | Q116: 0.3635290417 | R116: 0 | S116: 0 | T116: 0.003535105719 | U116: 1.128946544 | V116: 0.007925291308 | W116: 0.2633543276 | X116: 0.007925291308 | Y116: 0.9476347156 | Z116: - | AA116: - | AB116: - | AC116: - | AD116: - | AE116: 2003-01-25 | AF116: 3.2 | AH116: 3.2
B117: 2003-01-26 | C117: 82 | D117: 1 | E117: 10.08435784 | F117: 0.0197484559 | G117: 3.958286169 | H117: 0.004273411 | I117: 0.4883859892 | J117: 0.004433748682 | K117: 0.2641671879 | L117: 0 | M117: 0 | N117: 0.004273411 | O117: 0.6635078397 | P117: 0.004433748682 | Q117: 0.3679627904 | R117: 0 | S117: 0 | T117: 0.003535105719 | U117: 1.13248165 | V117: 0.007925291308 | W117: 0.2712796189 | X117: 0.007925291308 | Y117: 0.9555600069 | Z117: - | AA117: - | AB117: - | AC117: - | AD117: - | AE117: 2003-01-26 | AF117: 3.2 | AH117: 3.2
B118: 2003-01-27 | C118: 83 | D118: 1 | E118: 10.11195232 | F118: 0.0197484559 | G118: 3.978034625 | H118: 0.004332680437 | I118: 0.4927186696 | J118: 0.004531527143 | K118: 0.268698715 | L118: 0 | M118: 0 | N118: 0.004332680437 | O118: 0.6678405201 | P118: 0.004531527143 | Q118: 0.3724943175 | R118: 0 | S118: 0 | T118: 0.003535105719 | U118: 1.136016756 | V118: 0.007925291308 | W118: 0.2792049102 | X118: 0.007925291308 | Y118: 0.9634852982 | Z118: - | AA118: - | AB118: - | AC118: - | AD118: - | AE118: 2003-01-27 | AF118: 3.2 | AH118: 3.2
B119: 2003-01-28 | C119: 84 | D119: 1 | E119: 10.14003715 | F119: 0.0197484559 | G119: 3.99778308 | H119: 0.004391265601 | I119: 0.4971099352 | J119: 0.004627168838 | K119: 0.2733258839 | L119: 0 | M119: 0 | N119: 0.004391265601 | O119: 0.6722317857 | P119: 0.004627168838 | Q119: 0.3771214864 | R119: 0 | S119: 0 | T119: 0.003535105719 | U119: 1.139551862 | V119: 0.007925291308 | W119: 0.2871302015 | X119: 0.007925291308 | Y119: 0.9714105896 | Z119: - | AA119: - | AB119: - | AC119: - | AD119: - | AE119: 2003-01-28 | AF119: 3.2 | AH119: 3.2
B120: 2003-01-29 | C120: 85 | D120: 1 | E120: 10.16859959 | F120: 0.0197484559 | G120: 4.017531536 | H120: 0.004449101545 | I120: 0.5015590368 | J120: 0.004720585745 | K120: 0.2780464696 | L120: 0 | M120: 0 | N120: 0.004449101545 | O120: 0.6766808873 | P120: 0.004720585745 | Q120: 0.3818420721 | R120: 0 | S120: 0 | T120: 0.003535105719 | U120: 1.143086967 | V120: 0.007925291308 | W120: 0.2950554928 | X120: 0.007925291308 | Y120: 0.9793358809 | Z120: - | AA120: - | AB120: - | AC120: - | AD120: - | AE120: 2003-01-29 | AF120: 3.2 | AH120: 3.2
B121: 2003-01-30 | C121: 86 | D121: 1 | E121: 10.19762696 | F121: 0.0197484559 | G121: 4.037279992 | H121: 0.004506128731 | I121: 0.5060651655 | J121: 0.004811702986 | K121: 0.2828581726 | L121: 0 | M121: 0 | N121: 0.004506128731 | O121: 0.681187016 | P121: 0.004811702986 | Q121: 0.3866537751 | R121: 0 | S121: 0 | T121: 0.003535105719 | U121: 1.146622073 | V121: 0.007925291308 | W121: 0.3029807841 | X121: 0.007925291308 | Y121: 0.9872611722 | Z121: - | AA121: - | AB121: - | AC121: - | AD121: - | AE121: 2003-01-30 | AF121: 3.2 | AH121: 3.2
B122: 2003-01-31 | C122: 87 | D122: 1 | E122: 10.22710664 | F122: 0.0197484559 | G122: 4.057028448 | H122: 0.004562292938 | I122: 0.5106274584 | J122: 0.004900458268 | K122: 0.2877586309 | L122: 0 | M122: 0 | N122: 0.004562292938 | O122: 0.685749309 | P122: 0.004900458268 | Q122: 0.3915542334 | R122: 0 | S122: 0 | T122: 0.003535105719 | U122: 1.150157179 | V122: 0.007925291308 | W122: 0.3109060755 | X122: 0.007925291308 | Y122: 0.9951864635 | Z122: - | AA122: - | AB122: - | AC122: - | AD122: - | AE122: 2003-01-31 | AF122: 3.2 | AH122: 3.2
B123: 2003-02-01 | C123: 88 | D123: 1 | E123: 10.25702608 | F123: 0.0197484559 | G123: 4.076776904 | H123: 0.004617545149 | I123: 0.5152450036 | J123: 0.004986801289 | K123: 0.2927454322 | L123: 0 | M123: 0 | N123: 0.004617545149 | O123: 0.6903668541 | P123: 0.004986801289 | Q123: 0.3965410347 | R123: 0 | S123: 0 | T123: 0.003535105719 | U123: 1.153692284 | V123: 0.007925291308 | W123: 0.3188313668 | X123: 0.007925291308 | Y123: 1.003111755 | Z123: - | AA123: - | AB123: - | AC123: - | AD123: - | AE123: 2003-02-01 | AF123: 3.2 | AH123: 3.2
B124: 2003-02-02 | C124: 89 | D124: 1 | E124: 10.28737283 | F124: 0.0197484559 | G124: 4.09652536 | H124: 0.004671841418 | I124: 0.519916845 | J124: 0.005070693115 | K124: 0.2978161253 | L124: 0 | M124: 0 | N124: 0.004671841418 | O124: 0.6950386955 | P124: 0.005070693115 | Q124: 0.4016117278 | R124: 0 | S124: 0 | T124: 0.003535105719 | U124: 1.15722739 | V124: 0.007925291308 | W124: 0.3267566581 | X124: 0.007925291308 | Y124: 1.011037046 | Z124: - | AA124: - | AB124: - | AC124: - | AD124: - | AE124: 2003-02-02 | AF124: 3.2 | AH124: 3.2
B125: 2003-02-03 | C125: 90 | D125: 1 | E125: 10.31813454 | F125: 0.02028953799 | G125: 4.116814898 | H125: 0.004912453373 | I125: 0.5248292984 | J125: 0.005242809259 | K125: 0.3030589345 | L125: 0 | M125: 0 | N125: 0.004912453373 | O125: 0.6999511489 | P125: 0.005242809259 | Q125: 0.406854537 | R125: 0 | S125: 0 | T125: 0.003650805398 | U125: 1.160878196 | V125: 0.008026388077 | W125: 0.3347830461 | X125: 0.008026388077 | Y125: 1.019063434 | Z125: - | AA125: - | AB125: - | AC125: - | AD125: - | AE125: 2003-02-03 | AF125: 3.3 | AH125: 3.3
B126: 2003-02-04 | C126: 91 | D126: 1 | E126: 10.34929895 | F126: 0.02028953799 | G126: 4.137104436 | H126: 0.004966797554 | I126: 0.5297960959 | J126: 0.005323113417 | K126: 0.308382048 | L126: 0 | M126: 0 | N126: 0.004966797554 | O126: 0.7049179465 | P126: 0.005323113417 | Q126: 0.4121776505 | R126: 0 | S126: 0 | T126: 0.003650805398 | U126: 1.164529001 | V126: 0.008026388077 | W126: 0.3428094342 | X126: 0.008026388077 | Y126: 1.027089822 | Z126: - | AA126: - | AB126: - | AC126: - | AD126: - | AE126: 2003-02-04 | AF126: 3.3 | AH126: 3.3
B127: 2003-02-05 | C127: 92 | D127: 1 | E127: 10.38085395 | F127: 0.02028953799 | G127: 4.157393974 | H127: 0.005020040805 | I127: 0.5348161367 | J127: 0.005400867106 | K127: 0.3137829151 | L127: 0 | M127: 0 | N127: 0.005020040805 | O127: 0.7099379873 | P127: 0.005400867106 | Q127: 0.4175785176 | R127: 0 | S127: 0 | T127: 0.003650805398 | U127: 1.168179806 | V127: 0.008026388077 | W127: 0.3508358223 | X127: 0.008026388077 | Y127: 1.03511621 | Z127: - | AA127: - | AB127: - | AC127: - | AD127: - | AE127: 2003-02-05 | AF127: 3.3 | AH127: 3.3
B128: 2003-02-06 | C128: 93 | D128: 1 | E128: 10.41278755 | F128: 0.0208432523 | G128: 4.178237226 | H128: 0.005270463102 | I128: 0.5400865998 | J128: 0.005571200235 | K128: 0.3193541153 | L128: 0 | M128: 0 | N128: 0.005270463102 | O128: 0.7152084504 | P128: 0.005571200235 | Q128: 0.4231497178 | R128: 0 | S128: 0 | T128: 0.003770178441 | U128: 1.171949985 | V128: 0.00812830774 | W128: 0.35896413 | X128: 0.00812830774 | Y128: 1.043244518 | Z128: - | AA128: - | AB128: - | AC128: - | AD128: - | AE128: 2003-02-06 | AF128: 3.4 | AH128: 3.4
B129: 2003-02-07 | C129: 94 | D129: 1 | E129: 10.44508787 | F129: 0.0208432523 | G129: 4.199080479 | H129: 0.005323422528 | I129: 0.5454100224 | J129: 0.005645123217 | K129: 0.3249992385 | L129: 0 | M129: 0 | N129: 0.005323422528 | O129: 0.7205318729 | P129: 0.005645123217 | Q129: 0.428794841 | R129: 0 | S129: 0 | T129: 0.003770178441 | U129: 1.175720163 | V129: 0.00812830774 | W129: 0.3670924378 | X129: 0.00812830774 | Y129: 1.051372826 | Z129: - | AA129: - | AB129: - | AC129: - | AD129: - | AE129: 2003-02-07 | AF129: 3.4 | AH129: 3.4
B130: 2003-02-08 | C130: 95 | D130: 1 | E130: 10.4777432 | F130: 0.02140977318 | G130: 4.220490252 | H130: 0.005582326082 | I130: 0.5509923485 | J130: 0.005814443611 | K130: 0.3308136821 | L130: 0 | M130: 0 | N130: 0.005582326082 | O130: 0.726114199 | P130: 0.005814443611 | Q130: 0.4346092846 | R130: 0 | S130: 0 | T130: 0.003893333952 | U130: 1.179613497 | V130: 0.008231045148 | W130: 0.3753234829 | X130: 0.008231045148 | Y130: 1.059603871 | Z130: - | AA130: - | AB130: - | AC130: - | AD130: - | AE130: 2003-02-08 | AF130: 3.5 | AH130: 3.5
B131: 2003-02-09 | C131: 96 | D131: 1 | E131: 10.51074198 | F131: 0.0219892706 | G131: 4.242479522 | H131: 0.005848741407 | I131: 0.5568410899 | J131: 0.005983891746 | K131: 0.3367975739 | L131: 0 | M131: 0 | N131: 0.005848741407 | O131: 0.7319629404 | P131: 0.005983891746 | Q131: 0.4405931764 | R131: 0 | S131: 0 | T131: 0.004020383777 | U131: 1.183633881 | V131: 0.008334594828 | W131: 0.3836580778 | X131: 0.008334594828 | Y131: 1.067938466 | Z131: - | AA131: - | AB131: - | AC131: - | AD131: - | AE131: 2003-02-09 | AF131: 3.6 | AH131: 3.6
B132: 2003-02-10 | C132: 97 | D132: 1 | E132: 10.54407279 | F132: 0.0219892706 | G132: 4.264468793 | H132: 0.005901865911 | I132: 0.5627429558 | J132: 0.006052453052 | K132: 0.3428500269 | L132: 0 | M132: 0 | N132: 0.005901865911 | O132: 0.7378648063 | P132: 0.006052453052 | Q132: 0.4466456294 | R132: 0 | S132: 0 | T132: 0.004020383777 | U132: 1.187654265 | V132: 0.008334594828 | W132: 0.3919926726 | X132: 0.008334594828 | Y132: 1.076273061 | Z132: - | AA132: - | AB132: - | AC132: - | AD132: - | AE132: 2003-02-10 | AF132: 3.6 | AH132: 3.6
B133: 2003-02-11 | C133: 98 | D133: 1 | E133: 10.57772439 | F133: 0.02258190979 | G133: 4.287050703 | H133: 0.006176233509 | I133: 0.5689191893 | J133: 0.006220424583 | K133: 0.3490704515 | L133: 0 | M133: 0 | N133: 0.006176233509 | O133: 0.7440410398 | P133: 0.006220424583 | Q133: 0.452866054 | R133: 0 | S133: 0 | T133: 0.004151442537 | U133: 1.191805707 | V133: 0.008438950975 | W133: 0.4004316236 | X133: 0.008438950975 | Y133: 1.084712012 | Z133: - | AA133: - | AB133: - | AC133: - | AD133: - | AE133: 2003-02-11 | AF133: 3.7 | AH133: 3.7
B134: 2003-02-12 | C134: 99 | D134: 1 | E134: 10.6116857 | F134: 0.02318785072 | G134: 4.310238553 | H134: 0.006457712317 | I134: 0.5753769016 | J134: 0.006388217781 | K134: 0.3554586693 | L134: 0 | M134: 0 | N134: 0.006457712317 | O134: 0.7504987521 | P134: 0.006388217781 | Q134: 0.4592542718 | R134: 0 | S134: 0 | T134: 0.004286627665 | U134: 1.196092335 | V134: 0.008544107456 | W134: 0.408975731 | X134: 0.008544107456 | Y134: 1.093256119 | Z134: - | AA134: - | AB134: - | AC134: - | AD134: - | AE134: 2003-02-12 | AF134: 3.8 | AH134: 3.8
B135: 2003-02-13 | C135: 100 | D135: 1 | E135: 10.64594579 | F135: 0.02380724768 | G135: 4.334045801 | H135: 0.006746091189 | I135: 0.5821229928 | J135: 0.006555713274 | K135: 0.3620143826 | L135: 0 | M135: 0 | N135: 0.006746091189 | O135: 0.7572448433 | P135: 0.006555713274 | Q135: 0.4658099851 | R135: 0 | S135: 0 | T135: 0.004426059435 | U135: 1.200518394 | V135: 0.008650057804 | W135: 0.4176257888 | X135: 0.008650057804 | Y135: 1.101906177 | Z135: - | AA135: - | AB135: - | AC135: - | AD135: - | AE135: 2003-02-13 | AF135: 3.9 | AH135: 3.9
B136: 2003-02-14 | C136: 101 | D136: 1 | E136: 10.68049393 | F136: 0.02444024875 | G136: 4.35848605 | H136: 0.007041131049 | I136: 0.5891641238 | J136: 0.006722796351 | K136: 0.3687371789 | L136: 0 | M136: 0 | N136: 0.007041131049 | O136: 0.7642859744 | P136: 0.006722796351 | Q136: 0.4725327814 | R136: 0 | S136: 0 | T136: 0.004569860989 | U136: 1.205088255 | V136: 0.008756795219 | W136: 0.426382584 | X136: 0.008756795219 | Y136: 1.110662972 | Z136: - | AA136: - | AB136: - | AC136: - | AD136: - | AE136: 2003-02-14 | AF136: 4 | AH136: 4
B137: 2003-02-15 | C137: 102 | D137: 1 | E137: 10.71531955 | F137: 0.02444024875 | G137: 4.382926299 | H137: 0.007094693315 | I137: 0.5962588172 | J137: 0.006782723348 | K137: 0.3755199023 | L137: 0 | M137: 0 | N137: 0.007094693315 | O137: 0.7713806677 | P137: 0.006782723348 | Q137: 0.4793155048 | R137: 0 | S137: 0 | T137: 0.004569860989 | U137: 1.209658116 | V137: 0.008756795219 | W137: 0.4351393793 | X137: 0.008756795219 | Y137: 1.119419767 | Z137: - | AA137: - | AB137: - | AC137: - | AD137: - | AE137: 2003-02-15 | AF137: 4 | AH137: 4
B138: 2003-02-16 | C138: 103 | D138: 1 | E138: 10.75041225 | F138: 0.02508699536 | G138: 4.408013294 | H138: 0.007396410979 | I138: 0.6036552281 | J138: 0.006947709388 | K138: 0.3824676117 | L138: 0 | M138: 0 | N138: 0.007396410979 | O138: 0.7787770786 | P138: 0.006947709388 | Q138: 0.4862632142 | R138: 0 | S138: 0 | T138: 0.004718158363 | U138: 1.214376275 | V138: 0.008864312563 | W138: 0.4440036918 | X138: 0.008864312563 | Y138: 1.12828408 | Z138: - | AA138: - | AB138: - | AC138: - | AD138: - | AE138: 2003-02-16 | AF138: 4.1 | AH138: 4.1
B139: 2003-02-17 | C139: 104 | D139: 1 | E139: 10.78576183 | F139: 0.02574762175 | G139: 4.433760916 | H139: 0.00770416336 | I139: 0.6113593915 | J139: 0.007112054813 | K139: 0.3895796665 | L139: 0 | M139: 0 | N139: 0.00770416336 | O139: 0.786481242 | P139: 0.007112054813 | Q139: 0.493375269 | R139: 0 | S139: 0 | T139: 0.004871080513 | U139: 1.219247355 | V139: 0.008972602364 | W139: 0.4529762942 | X139: 0.008972602364 | Y139: 1.137256682 | Z139: - | AA139: - | AB139: - | AC139: - | AD139: - | AE139: 2003-02-17 | AF139: 4.2 | AH139: 4.2
B140: 2003-02-18 | C140: 105 | D140: 1 | E140: 10.82135824 | F140: 0.02642225445 | G140: 4.46018317 | H140: 0.008017629901 | I140: 0.6193770214 | J140: 0.007275663725 | K140: 0.3968553302 | L140: 0 | M140: 0 | N140: 0.008017629901 | O140: 0.7944988719 | P140: 0.007275663725 | Q140: 0.5006509327 | R140: 0 | S140: 0 | T140: 0.005028759326 | U140: 1.224276115 | V140: 0.00908165681 | W140: 0.462057951 | X140: 0.00908165681 | Y140: 1.146338339 | Z140: - | AA140: - | AB140: - | AC140: - | AD140: - | AE140: 2003-02-18 | AF140: 4.3 | AH140: 4.3
B141: 2003-02-19 | C141: 106 | D141: 1 | E141: 10.85719162 | F141: 0.02711101181 | G141: 4.487294182 | H141: 0.008336464727 | I141: 0.6277134861 | J141: 0.007438444579 | K141: 0.4042937748 | L141: 0 | M141: 0 | N141: 0.008336464727 | O141: 0.8028353366 | P141: 0.007438444579 | Q141: 0.5080893773 | R141: 0 | S141: 0 | T141: 0.005191329643 | U141: 1.229467444 | V141: 0.009191467753 | W141: 0.4712494187 | X141: 0.009191467753 | Y141: 1.155529807 | Z141: - | AA141: - | AB141: - | AC141: - | AD141: - | AE141: 2003-02-19 | AF141: 4.4 | AH141: 4.4
B142: 2003-02-20 | C142: =+C141+D142 -> 107 | D142: =+IF((COUNT(AH142))=1,1)+IF((COUNT(AH142=0)),0) -> 1 | E142: 10.8932523 | F142: =1/(1+EXP(-$I$2*($AH142-$J$2)))/$H$2 -> 0.02781400342 | G142: 4.515108185 | H142: 0.008660297821 | I142: 0.6363737839 | J142: 0.007600310129 | K142: 0.4118940849 | L142: 0 | M142: 0 | N142: =MAX((1-EXP(-$K$6*($E142-$L$6)))/(1+EXP(-$I$6*($AH142-$J$6)))/$H$6,0) -> 0.008660297821 | O142: 0.8114956345 | P142: =MAX((1-EXP(-$K$7*($E142-$L$7)))/(1+EXP(-$I$7*($AH142-$J$7)))/$H$7,0) -> 0.007600310129 | Q142: 0.5156896874 | R142: 0 | S142: 0 | T142: =1/(1+EXP(-$I$9*($AH142-$J$9)))/$H$9 -> 0.005358929267 | U142: 1.234826373 | V142: 0.009302026706 | W142: 0.4805514455 | X142: =1/(1+EXP(-$I$11*($AH142-$J$11)))/$H$11 -> 0.009302026706 | Y142: 1.164831833 | Z142: - | AA142: - | AB142: - | AC142: - | AD142: - | AE142: 2003-02-20 | AF142: 4.5 | AH142: =IF(DATE(IF($B$10>=10,2002,2003),$B$10,$C$10)>=B142,"",IF(AG142="",AF142+$AJ$9,AG142)) -> 4.5
B143: 2003-02-21 | C143: 108 | D143: 1 | E143: =INDIRECT("気象データ!"&$D$6&ROW()+320) -> 10.92953076 | F143: 0.02853132959 | G143: 4.543639515 | H143: =IF(G142>=1,MAX((1-EXP(-$K$6*($E143-$L$6)))/(1+EXP(-$I$6*($AH143-$J$6)))/$H$6,0),0) -> 0.00898873643 | I143: 0.6453625204 | J143: =IF(G142>=1,MAX((1-EXP(-$K$7*($E143-$L$7)))/(1+EXP(-$I$7*($AH143-$J$7)))/$H$7,0),0) -> 0.007761177369 | K143: 0.4196552623 | L143: =IF(K142>=1,1/(1+EXP(-$I$11*($AH143-$J$11)))/$H$11,0) -> 0 | M143: 0 | N143: 0.00898873643 | O143: 0.8204843709 | P143: 0.007761177369 | Q143: 0.5234508648 | R143: =IF(Q142>=1,1/(1+EXP(-$I$11*($AH143-$J$11)))/$H$11,0) -> 0 | S143: 0 | T143: 0.005531698969 | U143: 1.240358072 | V143: =IF(U142>=1,1/(1+EXP(-$I$11*($AH143-$J$11)))/$H$11,0) -> 0.009413324842 | W143: 0.4899647703 | X143: 0.009413324842 | Y143: 1.174245158 | Z143: =IF($B$3="播種期",IF($C144=1,"◎","-"),"-") -> - | AA143: =IF($B$3="播種期",IF(AND(G143>=1,G142<1),"◎","-"),IF($B$3="出芽期",IF($C144=1,"◎","-"),"-")) -> - | AB143: =IF($B$3="播種期",IF(AND(I143>=1,I142<1),"◎","-"),IF($B$3="出芽期",IF(AND(O143>=1,O142<1),"◎","-"),IF($B$3="茎立期",IF($C144=1,"◎","-"),"-"))) -> - | AC143: =IF($B$3="播種期",IF(AND(K143>=1,K142<1),"◎","-"),IF($B$3="出芽期",IF(AND(Q143>=1,Q142<1),"◎","-"),IF($B$3="茎立期",IF(AND(U143>=1,U142<1),"◎","-"),IF($B$3="出穂期",IF($C144=1,"◎","-"),"-")))) -> - | AD143: =IF($B$3="播種期",IF(AND(M143>=1,M142<1),"◎","-"),IF($B$3="出芽期",IF(AND(S143>=1,S142<1),"◎","-"),IF($B$3="茎立期",IF(AND(W143>=1,W142<1),"◎","-"),IF($B$3="出穂期",IF(AND(Y143>=1,Y142<1),"◎","-"),IF($C144=1,"◎","-"))))) -> - | AE143: 2003-02-21 | AF143: =INDIRECT("気象データ!"&$D$6&ROW()-8) -> 4.6 | AH143: 4.6
B144: 2003-02-22 | C144: 109 | D144: 1 | E144: 10.96601768 | F144: 0.02926308085 | G144: 4.572902596 | H144: 0.009321366689 | I144: 0.6546838871 | J144: 0.007920967456 | K144: 0.4275762297 | L144: 0 | M144: 0 | N144: 0.009321366689 | O144: 0.8298057376 | P144: 0.007920967456 | Q144: 0.5313718322 | R144: 0 | S144: 0 | T144: 0.00570978249 | U144: 1.246067855 | V144: 0.009525352998 | W144: 0.4994901233 | X144: 0.009525352998 | Y144: 1.183770511 | Z144: - | AA144: - | AB144: - | AC144: - | AD144: - | AE144: 2003-02-22 | AF144: 4.7 | AH144: 4.7
B145: 2003-02-23 | C145: 110 | D145: 1 | E145: 11.00270389 | F145: 0.03000933734 | G145: 4.602911933 | H145: 0.009657755456 | I145: 0.6643416425 | J145: 0.008079605641 | K145: 0.4356558354 | L145: 0 | M145: 0 | N145: 0.009657755456 | O145: 0.839463493 | P145: 0.008079605641 | Q145: 0.5394514379 | R145: 0 | S145: 0 | T145: 0.005893326541 | U145: 1.251961181 | V145: 0.009638101672 | W145: 0.509128225 | X145: 0.009638101672 | Y145: 1.193408613 | Z145: - | AA145: - | AB145: - | AC145: - | AD145: - | AE145: 2003-02-23 | AF145: 4.8 | AH145: 4.8
B146: 2003-02-24 | C146: 111 | D146: 1 | E146: 11.03958041 | F146: 0.03077016835 | G146: 4.633682101 | H146: 0.009997452349 | I146: 0.6743390949 | J146: 0.008237021177 | K146: 0.4438928565 | L146: 0 | M146: 0 | N146: 0.009997452349 | O146: 0.8494609454 | P146: 0.008237021177 | Q146: 0.547688459 | R146: 0 | S146: 0 | T146: 0.006082480793 | U146: 1.258043662 | V146: 0.009751561025 | W146: 0.518879786 | X146: 0.009751561025 | Y146: 1.203160174 | Z146: - | AA146: - | AB146: - | AC146: - | AD146: - | AE146: 2003-02-24 | AF146: 4.9 | AH146: 4.9
B147: 2003-02-25 | C147: 112 | D147: 1 | E147: 11.07663841 | F147: 0.03154563171 | G147: 4.665227733 | H147: 0.01033999196 | I147: 0.6846790868 | J147: 0.008393147235 | K147: 0.4522860038 | L147: 0 | M147: 0 | N147: 0.01033999196 | O147: 0.8598009373 | P147: 0.008393147235 | Q147: 0.5560816063 | R147: 0 | S147: 0 | T147: 0.00627739786 | U147: 1.26432106 | V147: 0.009865720884 | W147: 0.5287455069 | X147: 0.009865720884 | Y147: 1.213025895 | Z147: - | AA147: - | AB147: - | AC147: - | AD147: - | AE147: 2003-02-25 | AF147: 5 | AH147: 5
B148: 2003-02-26 | C148: 113 | D148: 1 | E148: 11.11386924 | F148: 0.03233577329 | G148: 4.697563507 | H148: 0.0106848962 | I148: 0.695363983 | J148: 0.008547920811 | K148: 0.4608339246 | L148: 0 | M148: 0 | N148: 0.0106848962 | O148: 0.8704858335 | P148: 0.008547920811 | Q148: 0.5646295271 | R148: 0 | S148: 0 | T148: 0.006478233285 | U148: 1.270799293 | V148: 0.009980570741 | W148: 0.5387260776 | X148: 0.009980570741 | Y148: 1.223006466 | Z148: - | AA148: - | AB148: - | AC148: - | AD148: - | AE148: 2003-02-26 | AF148: 5.1 | AH148: 5.1
B149: 2003-02-27 | C149: 114 | D149: 1 | E149: 11.15126439 | F149: 0.03396021154 | G149: 4.731523718 | H149: 0.01132755796 | I149: 0.706691541 | J149: 0.008813543626 | K149: 0.4696474682 | L149: 0 | M149: 0 | N149: 0.01132755796 | O149: 0.8818133915 | P149: 0.008813543626 | Q149: 0.5734430707 | R149: 0 | S149: 0 | T149: 0.006898295821 | U149: 1.277697589 | V149: 0.01021229675 | W149: 0.5489383744 | X149: 0.01021229675 | Y149: 1.233218762 | Z149: - | AA149: - | AB149: - | AC149: - | AD149: - | AE149: 2003-02-27 | AF149: 5.3 | AH149: 5.3
B150: 2003-02-28 | C150: 115 | D150: 1 | E150: 11.18881552 | F150: 0.03479453533 | G150: 4.766318253 | H150: 0.01167710814 | I150: 0.7183686491 | J150: 0.008965363856 | K150: 0.4786128321 | L150: 0 | M150: 0 | N150: 0.01167710814 | O150: 0.8934904996 | P150: 0.008965363856 | Q150: 0.5824084346 | R150: 0 | S150: 0 | T150: 0.007117848359 | U150: 1.284815438 | V150: 0.01032915024 | W150: 0.5592675246 | X150: 0.01032915024 | Y150: 1.243547913 | Z150: - | AA150: - | AB150: - | AC150: - | AD150: - | AE150: 2003-02-28 | AF150: 5.4 | AH150: 5.4
B151: 2003-03-01 | C151: 116 | D151: 1 | E151: 11.22651444 | F151: 0.03564359056 | G151: 4.801961844 | H151: 0.0120270847 | I151: 0.7303957338 | J151: 0.009115587437 | K151: 0.4877284195 | L151: 0 | M151: 0 | N151: 0.0120270847 | O151: 0.9055175843 | P151: 0.009115587437 | Q151: 0.591524022 | R151: 0 | S151: 0 | T151: 0.007343970013 | U151: 1.292159408 | V151: 0.01044664838 | W151: 0.569714173 | X151: 0.01044664838 | Y151: 1.253994561 | Z151: - | AA151: - | AB151: - | AC151: - | AD151: - | AE151: 2003-03-01 | AF151: 5.5 | AH151: 5.5
B152: 2003-03-02 | C152: 117 | D152: 1 | E152: 11.2643531 | F152: 0.03650735542 | G152: 4.838469199 | H152: 0.01237698286 | I152: 0.7427727167 | J152: 0.009264167594 | K152: 0.4969925871 | L152: 0 | M152: 0 | N152: 0.01237698286 | O152: 0.9178945672 | P152: 0.009264167594 | Q152: 0.6007881896 | R152: 0 | S152: 0 | T152: 0.007576830392 | U152: 1.299736238 | V152: 0.01056477905 | W152: 0.580278952 | X152: 0.01056477905 | Y152: 1.26455934 | Z152: - | AA152: - | AB152: - | AC152: - | AD152: - | AE152: 2003-03-02 | AF152: 5.6 | AH152: 5.6
B153: 2003-03-03 | C153: 118 | D153: 1 | E153: 11.3023236 | F153: 0.03738579306 | G153: 4.875854992 | H153: 0.01272630107 | I153: 0.7554990178 | J153: 0.009411060998 | K153: 0.5064036481 | L153: 0 | M153: 0 | N153: 0.01272630107 | O153: 0.9306208683 | P153: 0.009411060998 | Q153: 0.6101992506 | R153: 0 | S153: 0 | T153: 0.00781660175 | U153: 1.30755284 | V153: 0.01068352976 | W153: 0.5909624818 | X153: 0.01068352976 | Y153: 1.27524287 | Z153: - | AA153: - | AB153: - | AC153: - | AD153: - | AE153: 2003-03-03 | AF153: 5.7 | AH153: 5.7
B154: 2003-03-04 | C154: 119 | D154: 1 | E154: 11.34041817 | F154: 0.03827885115 | G154: 4.914133844 | H154: 0.01307454366 | I154: 0.7685735614 | J154: 0.009556227653 | K154: 0.5159598758 | L154: 0 | M154: 0 | N154: 0.01307454366 | O154: 0.9436954119 | P154: 0.009556227653 | Q154: 0.6197554782 | R154: 0 | S154: 0 | T154: 0.008063458909 | U154: 1.315616299 | V154: 0.01080288774 | W154: 0.6017653695 | X154: 0.01080288774 | Y154: 1.286045758 | Z154: - | AA154: - | AB154: - | AC154: - | AD154: - | AE154: 2003-03-04 | AF154: 5.8 | AH154: 5.8
B155: 2003-03-05 | C155: 120 | D155: 1 | E155: 11.37862916 | F155: 0.03918646145 | G155: 4.953320305 | H155: 0.01342122348 | I155: 0.7819947849 | J155: 0.009699630793 | K155: 0.5256595065 | L155: 0 | M155: 0 | N155: 0.01342122348 | O155: 0.9571166354 | P155: 0.009699630793 | Q155: 0.629455109 | R155: 0 | S155: 0 | T155: 0.008317579172 | U155: 1.323933878 | V155: 0.0109228399 | W155: 0.6126882094 | X155: 0.0109228399 | Y155: 1.296968597 | Z155: - | AA155: - | AB155: - | AC155: - | AD155: - | AE155: 2003-03-05 | AF155: 5.9 | AH155: 5.9
B156: 2003-03-06 | C156: 121 | D156: 1 | E156: 11.41694906 | F156: 0.04010853937 | G156: 4.993428844 | H156: 0.01376586439 | I156: 0.7957606493 | J156: 0.009841236771 | K156: 0.5355007433 | L156: 0 | M156: 0 | N156: 0.01376586439 | O156: 0.9708824998 | P156: 0.009841236771 | Q156: 0.6392963458 | R156: 0 | S156: 0 | T156: 0.008579142225 | U156: 1.33251302 | V156: 0.01104337284 | W156: 0.6237315823 | X156: 0.01104337284 | Y156: 1.30801197 | Z156: - | AA156: - | AB156: - | AC156: - | AD156: - | AE156: 2003-03-06 | AF156: 6 | AH156: 6
B157: 2003-03-07 | C157: 122 | D157: 1 | E157: 11.45537048 | F157: 0.04104498359 | G157: 5.034473828 | H157: 0.01410800369 | I157: 0.809868653 | J157: 0.009981014961 | K157: 0.5454817583 | L157: 0 | M157: 0 | N157: 0.01410800369 | O157: 0.9849905035 | P157: 0.009981014961 | Q157: 0.6492773608 | R157: 0 | S157: 0 | T157: 0.008848330029 | U157: 1.34136135 | V157: 0.01116447285 | W157: 0.6348960551 | X157: 0.01116447285 | Y157: 1.319176443 | Z157: - | AA157: - | AB157: - | AC157: - | AD157: - | AE157: 2003-03-07 | AF157: 6.1 | AH157: 6.1
B158: 2003-03-08 | C158: 123 | D158: 1 | E158: 11.49388613 | F158: 0.04296047992 | G158: 5.077434308 | H158: 0.01473593833 | I158: 0.8246045913 | J158: 0.01022693616 | K158: 0.5557086944 | L158: 0 | M158: 0 | N158: 0.01473593833 | O158: 0.9997264418 | P158: 0.01022693616 | Q158: 0.6595042969 | R158: 0 | S158: 0 | T158: 0.009410318365 | U158: 1.350771668 | V158: 0.01140831782 | W158: 0.646304373 | X158: 0.01140831782 | Y158: 1.330584761 | Z158: - | AA158: - | AB158: - | AC158: - | AD158: - | AE158: 2003-03-08 | AF158: 6.3 | AH158: 6.3
B159: 2003-03-09 | C159: 124 | D159: 1 | E159: 11.53248883 | F159: 0.04393924268 | G159: 5.121373551 | H159: 0.01506886469 | I159: 0.839673456 | J159: 0.01036224666 | K159: 0.5660709411 | L159: 0 | M159: 0 | N159: 0.01506886469 | O159: 1.014795307 | P159: 0.01036224666 | Q159: 0.6698665436 | R159: 0 | S159: 0 | T159: 0.009703493039 | U159: 1.360475161 | V159: 0.01153103391 | W159: 0.6578354069 | X159: 0.01153103391 | Y159: 1.342115795 | Z159: - | AA159: - | AB159: - | AC159: - | AD159: - | AE159: 2003-03-09 | AF159: 6.4 | AH159: 6.4
B160: 2003-03-10 | C160: 125 | D160: 1 | E160: 11.5711715 | F160: 0.04493179249 | G160: 5.166305343 | H160: 0.01539763748 | I160: 0.8550710935 | J160: 0.01049559904 | K160: 0.5765665401 | L160: 0 | M160: 0 | N160: 0.01539763748 | O160: 1.030192944 | P160: 0.01049559904 | Q160: 0.6803621426 | R160: 0 | S160: 0 | T160: 0.01000504044 | U160: 1.370480202 | V160: 0.01165425934 | W160: 0.6694896662 | X160: 0.01165425934 | Y160: 1.353770054 | Z160: - | AA160: - | AB160: - | AC160: - | AD160: - | AE160: 2003-03-10 | AF160: 6.5 | AH160: 6.5
B161: 2003-03-11 | C161: 126 | D161: 1 | E161: 11.60992714 | F161: 0.04593793967 | G161: 5.212243283 | H161: 0.0157218876 | I161: 0.8707929811 | J161: 0.01062697629 | K161: 0.5871935164 | L161: 0 | M161: 0 | N161: 0.0157218876 | O161: 1.045914832 | P161: 0.01062697629 | Q161: 0.6909891189 | R161: 0 | S161: 0 | T161: 0.01031515184 | U161: 1.380795354 | V161: 0.01177797899 | W161: 0.6812676452 | X161: 0.01177797899 | Y161: 1.365548033 | Z161: - | AA161: - | AB161: - | AC161: - | AD161: - | AE161: 2003-03-11 | AF161: 6.6 | AH161: 6.6
B162: 2003-03-12 | C162: 127 | D162: 1 | E162: 11.64874886 | F162: 0.04799017536 | G162: 5.260233458 | H162: 0.01631139993 | I162: 0.887104381 | J162: 0.01085994684 | K162: 0.5980534633 | L162: 0 | M162: 0 | N162: 0.01631139993 | O162: 1.062226232 | P162: 0.01085994684 | Q162: 0.7018490658 | R162: 0 | S162: 0 | T162: 0.01096183828 | U162: 1.391757192 | V162: 0.01202683906 | W162: 0.6932944842 | X162: 0.01202683906 | Y162: 1.377574872 | Z162: - | AA162: - | AB162: - | AC162: - | AD162: - | AE162: 2003-03-12 | AF162: 6.8 | AH162: 6.8
B163: 2003-03-13 | C163: 128 | D163: 1 | E163: 11.68762982 | F163: 0.04903579215 | G163: 5.30926925 | H163: 0.01662112906 | I163: 0.9037255101 | J163: 0.01098636347 | K163: 0.6090398267 | L163: 0 | M163: 0 | N163: 0.01662112906 | O163: 1.078847361 | P163: 0.01098636347 | Q163: 0.7128354292 | R163: 0 | S163: 0 | T163: 0.01129880179 | U163: 1.403055994 | V163: 0.01215194791 | W163: 0.7054464322 | X163: 0.01215194791 | Y163: 1.38972682 | Z163: - | AA163: - | AB163: - | AC163: - | AD163: - | AE163: 2003-03-13 | AF163: 6.9 | AH163: 6.9
B164: 2003-03-14 | C164: 129 | D164: 1 | E164: 11.72656325 | F164: 0.05116470468 | G164: 5.360433955 | H164: 0.01718046595 | I164: 0.920905976 | J164: 0.01121107575 | K164: 0.6202509025 | L164: 0 | M164: 0 | N164: 0.01718046595 | O164: 1.096027827 | P164: 0.01121107575 | Q164: 0.724046505 | R164: 0 | S164: 0 | T164: 0.0120009462 | U164: 1.41505694 | V164: 0.0124034424 | W164: 0.7178498746 | X164: 0.0124034424 | Y164: 1.402130263 | Z164: - | AA164: - | AB164: - | AC164: - | AD164: - | AE164: 2003-03-14 | AF164: 7.1 | AH164: 7.1
B165: 2003-03-15 | C165: 130 | D165: 1 | E165: 11.76554247 | F165: 0.052247417 | G165: 5.412681372 | H165: 0.01747333518 | I165: 0.9383793112 | J165: 0.01133229844 | K165: 0.6315832009 | L165: 0 | M165: 0 | N165: 0.01747333518 | O165: 1.113501162 | P165: 0.01133229844 | Q165: 0.7353788034 | R165: 0 | S165: 0 | T165: 0.01236651902 | U165: 1.427423459 | V165: 0.01252979501 | W165: 0.7303796696 | X165: 0.01252979501 | Y165: 1.414660058 | Z165: - | AA165: - | AB165: - | AC165: - | AD165: - | AE165: 2003-03-15 | AF165: 7.2 | AH165: 7.2
B166: 2003-03-16 | C166: 131 | D166: 1 | E166: 11.80456084 | F166: 0.05444775667 | G166: 5.467129129 | H166: 0.01799867858 | I166: 0.9563779898 | J166: 0.01154825839 | K166: 0.6431314593 | L166: 0 | M166: 0 | N166: 0.01799867858 | O166: 1.13149984 | P166: 0.01154825839 | Q166: 0.7469270618 | R166: 0 | S166: 0 | T166: 0.01312764528 | U166: 1.440551104 | V166: 0.01278362667 | W166: 0.7431632963 | X166: 0.01278362667 | Y166: 1.427443684 | Z166: - | AA166: - | AB166: - | AC166: - | AD166: - | AE166: 2003-03-16 | AF166: 7.4 | AH166: 7.4
B167: 2003-03-17 | C167: 132 | D167: 1 | E167: 11.84361175 | F167: 0.05556469048 | G167: 5.522693819 | H167: 0.01827299824 | I167: 0.974650988 | J167: 0.01166411469 | K167: 0.654795574 | L167: 0 | M167: 0 | N167: 0.01827299824 | O167: 1.149772839 | P167: 0.01166411469 | Q167: 0.7585911765 | R167: 0 | S167: 0 | T167: 0.0135235891 | U167: 1.454074693 | V167: 0.01291107137 | W167: 0.7560743676 | X167: 0.01291107137 | Y167: 1.440354756 | Z167: - | AA167: - | AB167: - | AC167: - | AD167: - | AE167: 2003-03-17 | AF167: 7.5 | AH167: 7.5
B168: 2003-03-18 | C168: 133 | D168: 1 | E168: 11.88268865 | F168: 0.05783021835 | G168: 5.580524037 | H168: 0.01876178018 | I168: 0.9934127682 | J168: 0.01187094196 | K168: 0.666666516 | L168: 0 | M168: 0 | N168: 0.01876178018 | O168: 1.168534619 | P168: 0.01187094196 | Q168: 0.7704621185 | R168: 0 | S168: 0 | T168: 0.01434720658 | U168: 1.4684219 | V168: 0.01316693113 | W168: 0.7692412988 | X168: 0.01316693113 | Y168: 1.453521687 | Z168: - | AA168: - | AB168: - | AC168: - | AD168: - | AE168: 2003-03-18 | AF168: 7.7 | AH168: 7.7
B169: 2003-03-19 | C169: 134 | D169: 1 | E169: 11.92178501 | F169: 0.05897801322 | G169: 5.639502051 | H169: 0.01901649479 | I169: 1.012429263 | J169: 0.01198131763 | K169: 0.6786478336 | L169: 0 | M169: 0 | N169: 0.01901649479 | O169: 1.187551114 | P169: 0.01198131763 | Q169: 0.7824434361 | R169: 0 | S169: 0 | T169: 0.01477526317 | U169: 1.483197163 | V169: 0.01329531068 | W169: 0.7825366094 | X169: 0.01329531068 | Y169: 1.466816997 | Z169: - | AA169: - | AB169: ◎ | AC169: - | AD169: - | AE169: 2003-03-19 | AF169: 7.8 | AH169: 7.8
B170: 2003-03-20 | C170: 135 | D170: 1 | E170: 11.96089433 | F170: 0.06013526791 | G170: =IF($D170=0,0,G169+F170) -> 5.699637319 | H170: 0.01926415847 | I170: =IF($D170=0,0,I169+H170) -> 1.031693421 | J170: 0.01208956444 | K170: =IF($D170=0,0,K169+J170) -> 0.690737398 | L170: 0 | M170: =IF($D170=0,0,M169+L170) -> 0 | N170: 0.01926415847 | O170: =IF($D170=0,0,O169+N170) -> 1.206815272 | P170: 0.01208956444 | Q170: =IF($D170=0,0,Q169+P170) -> 0.7945330005 | R170: 0 | S170: =IF($D170=0,0,S169+R170) -> 0 | T170: 0.01521440355 | U170: =IF($D170=0,0,U169+T170) -> 1.498411567 | V170: 0.01342396606 | W170: =IF($D170=0,0,W169+V170) -> 0.7959605755 | X170: 0.01342396606 | Y170: =IF($D170=0,0,Y169+X170) -> 1.480240964 | Z170: - | AA170: - | AB170: - | AC170: - | AD170: - | AE170: 2003-03-20 | AF170: 7.9 | AH170: 7.9
B171: 2003-03-21 | C171: 136 | D171: 1 | E171: 12.00001014 | F171: 0.06130154157 | G171: 5.76093886 | H171: 0.01950474219 | I171: 1.051198164 | J171: 0.01219569587 | K171: 0.7029330939 | L171: 0 | M171: 0 | N171: 0.01950474219 | O171: 1.226320014 | P171: 0.01219569587 | Q171: 0.8067286964 | R171: 0 | S171: 0 | T171: 0.01566481351 | U171: 1.51407638 | V171: 0.01355287908 | W171: 0.8095134546 | X171: 0.01355287908 | Y171: 1.493793843 | Z171: - | AA171: - | AB171: - | AC171: - | AD171: - | AE171: 2003-03-21 | AF171: 8 | AH171: 8
B172: 2003-03-22 | C172: 137 | D172: 1 | E172: 12.03912594 | F172: 0.06365930506 | G172: 5.824598165 | H172: 0.01992951246 | I172: 1.071127676 | J172: 0.012386295 | K172: 0.7153193889 | L172: 0 | M172: 0 | N172: 0.01992951246 | O172: 1.246249527 | P172: 0.012386295 | Q172: 0.8191149914 | R172: 0 | S172: 0 | T172: 0.01660016977 | U172: 1.53067655 | V172: 0.01381140468 | W172: 0.8233248592 | X172: 0.01381140468 | Y172: 1.507605247 | Z172: - | AA172: - | AB172: - | AC172: - | AD172: - | AE172: 2003-03-22 | AF172: 8.2 | AH172: 8.2
B173: 2003-03-23 | C173: 138 | D173: 1 | E173: 12.07823526 | F173: 0.06484983787 | G173: 5.889448003 | H173: 0.02014999348 | I173: 1.09127767 | J173: 0.01248691404 | K173: 0.727806303 | L173: 0 | M173: 0 | N173: 0.02014999348 | O173: 1.26639952 | P173: 0.01248691404 | Q173: 0.8316019055 | R173: 0 | S173: 0 | T173: 0.01708547072 | U173: 1.547762021 | V173: 0.01394098019 | W173: 0.8372658394 | X173: 0.01394098019 | Y173: 1.521546227 | Z173: - | AA173: - | AB173: - | AC173: - | AD173: - | AE173: 2003-03-23 | AF173: 8.3 | AH173: 8.3
B174: 2003-03-24 | C174: 139 | D174: 1 | E174: 12.11733163 | F174: 0.06604747696 | G174: 5.95549548 | H174: 0.02036345455 | I174: 1.111641124 | J174: 0.01258545356 | K174: 0.7403917565 | L174: 0 | M174: 0 | N174: 0.02036345455 | O174: 1.286762975 | P174: 0.01258545356 | Q174: 0.844187359 | R174: 0 | S174: 0 | T174: 0.0175827496 | U174: 1.56534477 | V174: 0.01407073929 | W174: 0.8513365787 | X174: 0.01407073929 | Y174: 1.535616967 | Z174: - | AA174: - | AB174: - | AC174: - | AD174: - | AE174: 2003-03-24 | AF174: 8.4 | AH174: 8.4
B175: 2003-03-25 | C175: 140 | D175: 1 | E175: 12.15640852 | F175: 0.06725171033 | G175: 6.02274719 | H175: 0.02056995585 | I175: 1.13221108 | J175: 0.01268193416 | K175: 0.7530736907 | L175: 0 | M175: 0 | N175: 0.02056995585 | O175: 1.307332931 | P175: 0.01268193416 | Q175: 0.8568692932 | R175: 0 | S175: 0 | T175: 0.01809217242 | U175: 1.583436943 | V175: 0.01420066316 | W175: 0.8655372419 | X175: 0.01420066316 | Y175: 1.54981763 | Z175: - | AA175: - | AB175: - | AC175: - | AD175: - | AE175: 2003-03-25 | AF175: 8.5 | AH175: 8.5
B176: 2003-03-26 | C176: 141 | D176: 1 | E176: 12.19545943 | F176: 0.06967785289 | G176: 6.092425043 | H176: 0.02093134512 | I176: 1.153142425 | J176: 0.01285612153 | K176: 0.7659298122 | L176: 0 | M176: 0 | N176: 0.02093134512 | O176: 1.328264276 | P176: 0.01285612153 | Q176: 0.8697254147 | R176: 0 | S176: 0 | T176: 0.01914808619 | U176: 1.602585029 | V176: 0.01446092947 | W176: 0.8799981714 | X176: 0.01446092947 | Y176: 1.564278559 | Z176: - | AA176: - | AB176: - | AC176: - | AD176: - | AE176: 2003-03-26 | AF176: 8.7 | AH176: 8.7
B177: 2003-03-27 | C177: 142 | D177: 1 | E177: 12.2344778 | F177: 0.07089868171 | G177: 6.163323725 | H177: 0.0211185191 | I177: 1.174260944 | J177: 0.01294718394 | K177: 0.7788769962 | L177: 0 | M177: 0 | N177: 0.0211185191 | O177: 1.349382795 | P177: 0.01294718394 | Q177: 0.8826725986 | R177: 0 | S177: 0 | T177: 0.0196948798 | U177: 1.622279909 | V177: 0.01459123385 | W177: 0.8945894052 | X177: 0.01459123385 | Y177: 1.578869793 | Z177: - | AA177: - | AB177: - | AC177: - | AD177: - | AE177: 2003-03-27 | AF177: 8.8 | AH177: 8.8
B178: 2003-03-28 | C178: 143 | D178: 1 | E178: 12.27345702 | F178: 0.07335308269 | G178: 6.236676808 | H178: 0.02144399594 | I178: 1.19570494 | J178: 0.013111821 | K178: 0.7919888172 | L178: 0 | M178: 0 | N178: 0.02144399594 | O178: 1.370826791 | P178: 0.013111821 | Q178: 0.8957844196 | R178: 0 | S178: 0 | T178: 0.02082684483 | U178: 1.643106754 | V178: 0.0148520894 | W178: 0.9094414946 | X178: 0.0148520894 | Y178: 1.593721883 | Z178: - | AA178: - | AB178: - | AC178: - | AD178: - | AE178: 2003-03-28 | AF178: 9 | AH178: 9
B179: 2003-03-29 | C179: 144 | D179: 1 | E179: 12.31239046 | F179: 0.07582068736 | G179: 6.312497495 | H179: 0.02174689065 | I179: 1.217451831 | J179: 0.01327032632 | K179: 0.8052591435 | L179: 0 | M179: 0 | N179: 0.02174689065 | O179: 1.392573681 | P179: 0.01327032632 | Q179: 0.909054746 | R179: 0 | S179: 0 | T179: 0.02201082729 | U179: 1.665117581 | V179: 0.01511314591 | W179: 0.9245546405 | X179: 0.01511314591 | Y179: 1.608835029 | Z179: - | AA179: - | AB179: - | AC179: - | AD179: - | AE179: 2003-03-29 | AF179: 9.2 | AH179: 9.2
B180: 2003-03-30 | C180: 145 | D180: 1 | E180: 12.35127141 | F180: 0.07705799747 | G180: 6.389555492 | H180: 0.02190426217 | I180: 1.239356093 | J180: 0.01335275399 | K180: 0.8186118975 | L180: 0 | M180: 0 | N180: 0.02190426217 | O180: 1.414477943 | P180: 0.01335275399 | Q180: 0.9224075 | R180: 0 | S180: 0 | T180: 0.02262260951 | U180: 1.68774019 | V180: 0.01524370139 | W180: 0.9397983419 | X180: 0.01524370139 | Y180: 1.62407873 | Z180: - | AA180: - | AB180: - | AC180: - | AD180: - | AE180: 2003-03-30 | AF180: 9.3 | AH180: 9.3
B181: 2003-03-31 | C181: 146 | D181: 1 | E181: 12.39009313 | F181: 0.07953670669 | G181: 6.469092199 | H181: 0.02217471419 | I181: 1.261530807 | J181: 0.01350192557 | K181: 0.832113823 | L181: 0 | M181: 0 | N181: 0.02217471419 | O181: 1.436652658 | P181: 0.01350192557 | Q181: 0.9359094255 | R181: 0 | S181: 0 | T181: 0.02388623892 | U181: 1.711626429 | V181: 0.01550477037 | W181: 0.9553031123 | X181: 0.01550477037 | Y181: 1.6395835 | Z181: - | AA181: - | AB181: - | AC181: - | AD181: - | AE181: 2003-03-31 | AF181: 9.5 | AH181: 9.5
B182: 2003-04-01 | C182: 147 | D182: 1 | E182: 12.42884877 | F182: 0.08201693646 | G182: 6.551109136 | H182: 0.02242515791 | I182: 1.283955965 | J182: 0.01364514886 | K182: 0.8457589719 | L182: 0 | M182: 0 | N182: 0.02242515791 | O182: 1.459077816 | P182: 0.01364514886 | Q182: 0.9495545744 | R182: 0 | S182: 0 | T182: 0.02520380486 | U182: 1.736830234 | V182: 0.01576565498 | W182: 0.9710687673 | X182: 0.01576565498 | Y182: 1.655349155 | Z182: - | AA182: - | AB182: - | AC182: - | AD182: - | AE182: 2003-04-01 | AF182: 9.7 | AH182: 9.7
B183: 2003-04-02 | C183: 148 | D183: 1 | E183: 12.46753144 | F183: 0.08449396207 | G183: 6.635603098 | H183: 0.02265670064 | I183: 1.306612666 | J183: 0.01378252162 | K183: 0.8595414935 | L183: 0 | M183: 0 | N183: 0.02265670064 | O183: 1.481734516 | P183: 0.01378252162 | Q183: 0.963337096 | R183: 0 | S183: 0 | T183: 0.02657575865 | U183: 1.763405993 | V183: 0.01602620152 | W183: 0.9870949688 | X183: 0.01602620152 | Y183: 1.671375357 | Z183: - | AA183: - | AB183: - | AC183: - | AD183: - | AE183: 2003-04-02 | AF183: 9.9 | AH183: 9.9
B184: 2003-04-03 | C184: 149 | D184: 1 | E184: 12.50613414 | F184: 0.08696308316 | G184: 6.722566181 | H184: 0.02287046127 | I184: 1.329483127 | J184: 0.01391415477 | K184: 0.8734556483 | L184: 0 | M184: 0 | N184: 0.02287046127 | O184: 1.504604977 | P184: 0.01391415477 | Q184: 0.9772512508 | R184: 0 | S184: 0 | T184: 0.02800234132 | U184: 1.791408334 | V184: 0.0162862571 | W184: 1.003381226 | X184: 0.0162862571 | Y184: 1.687661614 | Z184: - | AA184: - | AB184: - | AC184: - | AD184: - | AE184: 2003-04-03 | AF184: 10.1 | AH184: 10.1
B185: 2003-04-04 | C185: 150 | D185: 1 | E185: 12.54464979 | F185: 0.08941965934 | G185: 6.81198584 | H185: 0.02306755379 | I185: 1.352550681 | J185: 0.01404017072 | K185: 0.887495819 | L185: 0 | M185: 0 | N185: 0.02306755379 | O185: 1.527672531 | P185: 0.01404017072 | Q185: 0.9912914215 | R185: 0 | S185: 0 | T185: 0.02948356445 | U185: 1.820891899 | V185: 0.01654566998 | W185: 1.019926896 | X185: 0.01654566998 | Y185: 1.704207284 | Z185: - | AA185: - | AB185: - | AC185: - | AD185: - | AE185: 2003-04-04 | AF185: 10.3 | AH185: 10.3
B186: 2003-04-05 | C186: 151 | D186: 1 | E186: 12.58307121 | F186: 0.09185914468 | G186: 6.903844985 | H186: 0.02324907388 | I186: 1.375799755 | J186: 0.01416070175 | K186: 0.9016565207 | L186: 0 | M186: 0 | N186: 0.02324907388 | O186: 1.550921605 | P186: 0.01416070175 | Q186: 1.005452123 | R186: 0 | S186: 0 | T186: 0.03101919181 | U186: 1.85191109 | V186: 0.01680428992 | W186: 1.036731186 | X186: 0.01680428992 | Y186: 1.721011574 | Z186: - | AA186: - | AB186: - | AC186: - | AD186: - | AE186: 2003-04-05 | AF186: 10.5 | AH186: 10.5
B187: 2003-04-06 | C187: 152 | D187: 1 | E187: 12.62139111 | F187: 0.09307109172 | G187: 6.996916077 | H187: 0.02334538288 | I187: 1.399145138 | J187: 0.01422283107 | K187: 0.9158793518 | L187: 0 | M187: 0 | N187: 0.02334538288 | O187: 1.574266988 | P187: 0.01422283107 | Q187: 1.019674954 | R187: 0.01693325609 | S187: 0.01693325609 | T187: 0.03180726126 | U187: 1.883718352 | V187: 0.01693325609 | W187: 1.053664442 | X187: 0.01693325609 | Y187: 1.73794483 | Z187: - | AA187: - | AB187: - | AC187: - | AD187: - | AE187: 2003-04-06 | AF187: 10.6 | AH187: 10.6
B188: 2003-04-07 | C188: 153 | D188: 1 | E188: 12.65960211 | F188: 0.09547670492 | G188: 7.092392782 | H188: 0.02350512997 | I188: 1.422650268 | J188: 0.01433521109 | K188: 0.9302145629 | L188: 0 | M188: 0 | N188: 0.02350512997 | O188: 1.597772118 | P188: 0.01433521109 | Q188: 1.034010165 | R188: 0.01719040907 | S188: 0.03412366516 | T188: 0.03342346833 | U188: 1.91714182 | V188: 0.01719040907 | W188: 1.070854851 | X188: 0.01719040907 | Y188: 1.755135239 | Z188: - | AA188: - | AB188: - | AC188: - | AD188: - | AE188: 2003-04-07 | AF188: 10.8 | AH188: 10.8
B189: 2003-04-08 | C189: 154 | D189: 1 | E189: 12.69769667 | F189: 0.09785448809 | G189: 7.19024727 | H189: 0.02365190759 | I189: 1.446302175 | J189: 0.01444247789 | K189: 0.9446570408 | L189: 0 | M189: 0 | N189: 0.02365190759 | O189: 1.621424026 | P189: 0.01444247789 | Q189: 1.048452643 | R189: 0.01744640235 | S189: 0.05157006751 | T189: 0.03509229698 | U189: 1.952234117 | V189: 0.01744640235 | W189: 1.088301253 | X189: 0.01744640235 | Y189: 1.772581641 | Z189: - | AA189: - | AB189: - | AC189: - | AD189: - | AE189: 2003-04-08 | AF189: 11 | AH189: 11
B190: 2003-04-09 | C190: 155 | D190: 1 | E190: 12.73566717 | F190: 0.1002004724 | G190: 7.290447742 | H190: 0.02378667905 | I190: 1.470088854 | J190: 0.01454478656 | K190: 0.9592018274 | L190: 0 | M190: 0 | N190: 0.02378667905 | O190: 1.645210705 | P190: 0.01454478656 | Q190: 1.06299743 | R190: 0.01770109362 | S190: 0.06927116113 | T190: 0.03681252103 | U190: 1.989046638 | V190: 0.01770109362 | W190: 1.106002347 | X190: 0.01770109362 | Y190: 1.790282735 | Z190: - | AA190: - | AB190: - | AC190: - | AD190: - | AE190: 2003-04-09 | AF190: 11.2 | AH190: 11.2
B191: 2003-04-10 | C191: 156 | D191: 1 | E191: 12.77350583 | F191: 0.1025109139 | G191: 7.392958656 | H191: 0.02391035836 | I191: 1.493999213 | J191: 0.01464229583 | K191: 0.9738441232 | L191: 0 | M191: 0 | N191: 0.02391035836 | O191: 1.669121063 | P191: 0.01464229583 | Q191: 1.077639726 | R191: 0.01795434353 | S191: 0.08722550466 | T191: 0.03858260552 | U191: 2.027629243 | V191: 0.01795434353 | W191: 1.12395669 | X191: 0.01795434353 | Y191: 1.808237078 | Z191: - | AA191: - | AB191: - | AC191: - | AD191: - | AE191: 2003-04-10 | AF191: 11.4 | AH191: 11.4
B192: 2003-04-11 | C192: 157 | D192: 1 | E192: 12.81120475 | F192: 0.1047823143 | G192: 7.49774097 | H192: 0.02402380808 | I192: 1.518023021 | J192: 0.01473516695 | K192: 0.9885792901 | L192: 0 | M192: 0 | N192: 0.02402380808 | O192: 1.693144871 | P192: 0.01473516695 | Q192: 1.092374893 | R192: 0.018206016 | S192: 0.1054315207 | T192: 0.04040070045 | U192: 2.068029944 | V192: 0.018206016 | W192: 1.142162706 | X192: 0.018206016 | Y192: 1.826443094 | Z192: - | AA192: - | AB192: - | AC192: - | AD192: - | AE192: 2003-04-11 | AF192: 11.6 | AH192: 11.6
B193: 2003-04-12 | C193: 158 | D193: 1 | E193: 12.84875588 | F193: 0.1059023524 | G193: 7.603643323 | H193: 0.02408570665 | I193: 1.542108727 | J193: 0.01478275958 | K193: 1.00336205 | L193: 0 | M193: 0 | N193: 0.02408570665 | O193: 1.717230578 | P193: 0.01478275958 | Q193: 1.107157652 | R193: 0.01833121913 | S193: 0.1237627398 | T193: 0.04132708682 | U193: 2.109357031 | V193: 0.01833121913 | W193: 1.160493926 | X193: 0.01833121913 | Y193: 1.844774314 | Z193: - | AA193: - | AB193: - | AC193: ◎ | AD193: - | AE193: 2003-04-12 | AF193: 11.7 | AH193: 11.7
B194: 2003-04-13 | C194: 159 | D194: 1 | E194: 12.88615103 | F194: 0.1081092119 | G194: 7.711752534 | H194: 0.02418497086 | I194: 1.566293698 | J194: 0.0148688341 | K194: 1.018230884 | L194: 0.01858027812 | M194: 0.01858027812 | N194: 0.02418497086 | O194: 1.741415549 | P194: 0.0148688341 | Q194: 1.122026486 | R194: 0.01858027812 | S194: 0.1423430179 | T194: 0.04321303386 | U194: 2.152570065 | V194: 0.01858027812 | W194: 1.179074204 | X194: 0.01858027812 | Y194: 1.863354592 | Z194: - | AA194: - | AB194: - | AC194: - | AD194: - | AE194: 2003-04-13 | AF194: 11.9 | AH194: 11.9
B195: 2003-04-14 | C195: 160 | D195: 1 | E195: 12.92338186 | F195: 0.1102694661 | G195: 7.822022001 | H195: 0.02427594407 | I195: 1.590569642 | J195: 0.01495068464 | K195: 1.033181568 | L195: 0.01882743553 | M195: 0.03740771365 | N195: 0.02427594407 | O195: 1.765691493 | P195: 0.01495068464 | Q195: 1.136977171 | R195: 0.01882743553 | S195: 0.1611704534 | T195: 0.04514098006 | U195: 2.197711045 | V195: 0.01882743553 | W195: 1.197901639 | X195: 0.01882743553 | Y195: 1.882182027 | Z195: - | AA195: - | AB195: - | AC195: - | AD195: - | AE195: 2003-04-14 | AF195: 12.1 | AH195: 12.1
B196: 2003-04-15 | C196: 161 | D196: 1 | E196: 12.96043986 | F196: 0.1123805912 | G196: 7.934402592 | H196: 0.02435930805 | I196: 1.61492895 | J196: 0.01502847361 | K196: 1.048210042 | L196: 0.01907256877 | M196: 0.05648028243 | N196: 0.02435930805 | O196: 1.790050801 | P196: 0.01502847361 | Q196: 1.152005645 | R196: 0.01907256877 | S196: 0.1802430222 | T196: 0.04710797769 | U196: 2.244819022 | V196: 0.01907256877 | W196: 1.216974208 | X196: 0.01907256877 | Y196: 1.901254596 | Z196: - | AA196: - | AB196: - | AC196: - | AD196: - | AE196: 2003-04-15 | AF196: 12.3 | AH196: 12.3
B197: 2003-04-16 | C197: 162 | D197: 1 | E197: 12.99731638 | F197: 0.1144403597 | G197: 8.048842951 | H197: 0.02443569543 | I197: 1.639364646 | J197: 0.01510236208 | K197: 1.063312404 | L197: 0.01931555963 | M197: 0.07579584206 | N197: 0.02443569543 | O197: 1.814486496 | P197: 0.01510236208 | Q197: 1.167108007 | R197: 0.01931555963 | S197: 0.1995585818 | T197: 0.04911078396 | U197: 2.293929806 | V197: 0.01931555963 | W197: 1.236289768 | X197: 0.01931555963 | Y197: 1.920570156 | Z197: - | AA197: - | AB197: - | AC197: - | AD197: - | AE197: 2003-04-16 | AF197: 12.5 | AH197: 12.5
B198: 2003-04-17 | C198: 163 | D198: 1 | E198: 13.03400259 | F198: 0.1154503706 | G198: 8.164293322 | H198: 0.02447858682 | I198: 1.663843232 | J198: 0.01514007451 | K198: 1.078452479 | L198: 0.01943621596 | M198: 0.09523205802 | N198: 0.02447858682 | O198: 1.838965083 | P198: 0.01514007451 | Q198: 1.182248081 | R198: 0.01943621596 | S198: 0.2189947978 | T198: 0.05012452521 | U198: 2.344054332 | V198: 0.01943621596 | W198: 1.255725984 | X198: 0.01943621596 | Y198: 1.940006372 | Z198: - | AA198: - | AB198: - | AC198: - | AD198: - | AE198: 2003-04-17 | AF198: 12.6 | AH198: 12.6
B199: 2003-04-18 | C199: 164 | D199: 1 | E199: 13.07048951 | F199: 0.1174295789 | G199: 8.281722901 | H199: 0.02454530172 | I199: 1.688388534 | J199: 0.01520829633 | K199: 1.093660775 | L199: 0.01967578162 | M199: 0.1149078396 | N199: 0.02454530172 | O199: 1.863510385 | P199: 0.01520829633 | Q199: 1.197456377 | R199: 0.01967578162 | S199: 0.2386705794 | T199: 0.05217435997 | U199: 2.396228691 | V199: 0.01967578162 | W199: 1.275401765 | X199: 0.01967578162 | Y199: 1.959682153 | Z199: - | AA199: - | AB199: - | AC199: - | AD199: - | AE199: 2003-04-18 | AF199: 12.8 | AH199: 12.8
B200: 2003-04-19 | C200: 165 | D200: 1 | E200: 13.10676797 | F200: 0.1193531604 | G200: 8.401076061 | H200: 0.02460643049 | I200: 1.712994965 | J200: 0.01527301605 | K200: 1.108933791 | L200: 0.01991292968 | M200: 0.1348207693 | N200: 0.02460643049 | O200: 1.888116815 | P200: 0.01527301605 | Q200: 1.212729394 | R200: 0.01991292968 | S200: 0.2585835091 | T200: 0.05425072324 | U200: 2.450479415 | V200: 0.01991292968 | W200: 1.295314695 | X200: 0.01991292968 | Y200: 1.979595083 | Z200: - | AA200: - | AB200: - | AC200: - | AD200: - | AE200: 2003-04-19 | AF200: 13 | AH200: 13
... 83 more rows

Sheet 気象データ
A3: 日平均気温平年値(水戸地方気象台1991-2020)
B4: 北茨城 | C4: 大子 | D4: 常陸大宮 | E4: 日立 | F4: 笠間 | G4: 水戸 | H4: 古河 | I4: 下館 | J4: 下妻 | K4: 鉾田 | L4: つくば(館野) | M4: 土浦 | N4: 鹿嶋 | O4: 龍ケ崎
B5: B | C5: C | D5: D | E5: E | F5: F | G5: G | H5: H | I5: I | J5: J | K5: K | L5: L | M5: M | N5: N | O5: O
A6: 2013-10-15 | B6: 16.3 | C6: 15.1 | D6: 15.5 | E6: 17.2 | F6: 16.4 | G6: 16.7 | H6: 17.3 | I6: 16.7 | J6: 16.9 | K6: 16.6 | L6: 16.8 | M6: 17.4 | N6: 18 | O6: 17 | Q6: 1 | R6: 1
A7: 2013-10-16 | B7: 16.1 | C7: 14.9 | D7: 15.3 | E7: 17 | F7: 16.2 | G7: 16.5 | H7: 17.1 | I7: 16.5 | J7: 16.6 | K7: 16.4 | L7: 16.5 | M7: 17.2 | N7: 17.9 | O7: 16.8 | Q7: 2 | R7: 2
A8: 2013-10-17 | B8: 15.9 | C8: 14.6 | D8: 15 | E8: 16.8 | F8: 15.9 | G8: 16.3 | H8: 16.9 | I8: 16.3 | J8: 16.4 | K8: 16.2 | L8: 16.3 | M8: 17 | N8: 17.7 | O8: 16.6 | Q8: 3 | R8: 3
A9: 2013-10-18 | B9: 15.8 | C9: 14.4 | D9: 14.8 | E9: 16.6 | F9: 15.7 | G9: 16.1 | H9: 16.7 | I9: 16.1 | J9: 16.2 | K9: 16 | L9: 16.1 | M9: 16.8 | N9: 17.5 | O9: 16.4 | Q9: 4 | R9: 4
A10: 2013-10-19 | B10: 15.6 | C10: 14.1 | D10: 14.6 | E10: 16.5 | F10: 15.5 | G10: 15.9 | H10: 16.5 | I10: 15.9 | J10: 16 | K10: 15.8 | L10: 15.9 | M10: 16.6 | N10: 17.3 | O10: 16.2 | Q10: 5 | R10: 5
A11: 2013-10-20 | B11: 15.4 | C11: 13.9 | D11: 14.4 | E11: 16.3 | F11: 15.3 | G11: 15.7 | H11: 16.3 | I11: 15.7 | J11: 15.8 | K11: 15.6 | L11: 15.7 | M11: 16.4 | N11: 17.2 | O11: 16 | Q11: 6 | R11: 6
A12: 2013-10-21 | B12: 15.2 | C12: 13.7 | D12: 14.2 | E12: 16.1 | F12: 15.1 | G12: 15.5 | H12: 16.1 | I12: 15.5 | J12: 15.6 | K12: 15.4 | L12: 15.5 | M12: 16.3 | N12: 17 | O12: 15.8 | Q12: 7 | R12: 7
A13: 2013-10-22 | B13: 15.1 | C13: 13.4 | D13: 14 | E13: 16 | F13: 14.9 | G13: 15.3 | H13: 15.8 | I13: 15.3 | J13: 15.4 | K13: 15.2 | L13: 15.3 | M13: 16.1 | N13: 16.8 | O13: 15.6 | Q13: 8 | R13: 8
A14: 2013-10-23 | B14: 14.9 | C14: 13.2 | D14: 13.8 | E14: 15.8 | F14: 14.7 | G14: 15.1 | H14: 15.6 | I14: 15.1 | J14: 15.2 | K14: 15 | L14: 15.1 | M14: 15.9 | N14: 16.7 | O14: 15.4 | Q14: 9 | R14: 9
A15: 2013-10-24 | B15: 14.7 | C15: 13 | D15: 13.6 | E15: 15.7 | F15: 14.5 | G15: 15 | H15: 15.5 | I15: 14.9 | J15: 15 | K15: 14.8 | L15: 14.9 | M15: 15.7 | N15: 16.5 | O15: 15.2 | Q15: 10 | R15: 10
A16: 2013-10-25 | B16: 14.6 | C16: 12.8 | D16: 13.4 | E16: 15.5 | F16: 14.2 | G16: 14.8 | H16: 15.3 | I16: 14.7 | J16: 14.8 | K16: 14.6 | L16: 14.7 | M16: 15.5 | N16: 16.3 | O16: 15 | Q16: 11 | R16: 11
A17: 2013-10-26 | B17: 14.4 | C17: 12.5 | D17: 13.2 | E17: 15.3 | F17: 14.1 | G17: 14.6 | H17: 15.1 | I17: 14.5 | J17: 14.6 | K17: 14.4 | L17: 14.5 | M17: 15.3 | N17: 16.1 | O17: 14.8 | Q17: 12 | R17: 12
A18: 2013-10-27 | B18: 14.2 | C18: 12.3 | D18: 13 | E18: 15.2 | F18: 13.9 | G18: 14.4 | H18: 14.9 | I18: 14.3 | J18: 14.4 | K18: 14.2 | L18: 14.3 | M18: 15.2 | N18: 16 | O18: 14.7 | R18: 13
A19: 2013-10-28 | B19: 14.1 | C19: 12.1 | D19: 12.8 | E19: 15 | F19: 13.7 | G19: 14.2 | H19: 14.7 | I19: 14.1 | J19: 14.2 | K19: 14 | L19: 14.1 | M19: 15 | N19: 15.8 | O19: 14.5 | R19: 14
A20: 2013-10-29 | B20: 13.9 | C20: 11.9 | D20: 12.6 | E20: 14.9 | F20: 13.5 | G20: 14 | H20: 14.5 | I20: 13.9 | J20: 14 | K20: 13.8 | L20: 13.9 | M20: 14.8 | N20: 15.6 | O20: 14.3 | R20: 15
A21: 2013-10-30 | B21: 13.7 | C21: 11.7 | D21: 12.4 | E21: 14.7 | F21: 13.3 | G21: 13.9 | H21: 14.3 | I21: 13.7 | J21: 13.8 | K21: 13.6 | L21: 13.7 | M21: 14.6 | N21: 15.4 | O21: 14 | R21: 16
A22: 2013-10-31 | B22: 13.6 | C22: 11.4 | D22: 12.2 | E22: 14.6 | F22: 13.1 | G22: 13.7 | H22: 14.1 | I22: 13.5 | J22: 13.6 | K22: 13.4 | L22: 13.5 | M22: 14.4 | N22: 15.3 | O22: 13.8 | R22: 17
A23: 2013-11-01 | B23: 13.4 | C23: 11.2 | D23: 12 | E23: 14.5 | F23: 12.9 | G23: 13.5 | H23: 13.9 | I23: 13.3 | J23: 13.4 | K23: 13.3 | L23: 13.3 | M23: 14.2 | N23: 15.1 | O23: 13.6 | R23: 18
A24: 2013-11-02 | B24: 13.2 | C24: 11 | D24: 11.8 | E24: 14.3 | F24: 12.7 | G24: 13.3 | H24: 13.7 | I24: 13.1 | J24: 13.2 | K24: 13.1 | L24: 13.1 | M24: 14.1 | N24: 14.9 | O24: 13.5 | R24: 19
A25: 2013-11-03 | B25: 13.1 | C25: 10.8 | D25: 11.6 | E25: 14.2 | F25: 12.5 | G25: 13.2 | H25: 13.6 | I25: 12.9 | J25: 13 | K25: 12.9 | L25: 12.9 | M25: 13.9 | N25: 14.8 | O25: 13.3 | R25: 20
A26: 2013-11-04 | B26: 12.9 | C26: 10.7 | D26: 11.5 | E26: 14.1 | F26: 12.4 | G26: 13 | H26: 13.4 | I26: 12.8 | J26: 12.8 | K26: 12.7 | L26: 12.7 | M26: 13.7 | N26: 14.6 | O26: 13.1 | R26: 21
A27: 2013-11-05 | B27: 12.8 | C27: 10.5 | D27: 11.3 | E27: 13.9 | F27: 12.2 | G27: 12.8 | H27: 13.2 | I27: 12.6 | J27: 12.6 | K27: 12.6 | L27: 12.6 | M27: 13.5 | N27: 14.4 | O27: 12.9 | R27: 22
A28: 2013-11-06 | B28: 12.6 | C28: 10.3 | D28: 11.1 | E28: 13.8 | F28: 12 | G28: 12.6 | H28: 13 | I28: 12.4 | J28: 12.5 | K28: 12.4 | L28: 12.4 | M28: 13.3 | N28: 14.3 | O28: 12.7 | R28: 23
A29: 2013-11-07 | B29: 12.5 | C29: 10.1 | D29: 10.9 | E29: 13.6 | F29: 11.8 | G29: 12.5 | H29: 12.8 | I29: 12.3 | J29: 12.3 | K29: 12.2 | L29: 12.2 | M29: 13.2 | N29: 14.1 | O29: 12.5 | R29: 24
A30: 2013-11-08 | B30: 12.3 | C30: 9.9 | D30: 10.7 | E30: 13.4 | F30: 11.6 | G30: 12.3 | H30: 12.6 | I30: 12.1 | J30: 12.1 | K30: 12 | L30: 12 | M30: 13 | N30: 13.9 | O30: 12.4 | R30: 25
A31: 2013-11-09 | B31: 12.1 | C31: 9.7 | D31: 10.6 | E31: 13.3 | F31: 11.5 | G31: 12.1 | H31: 12.4 | I31: 11.9 | J31: 11.9 | K31: 11.9 | L31: 11.8 | M31: 12.8 | N31: 13.8 | O31: 12.2 | R31: 26
A32: 2013-11-10 | B32: 12 | C32: 9.5 | D32: 10.4 | E32: 13.1 | F32: 11.3 | G32: 11.9 | H32: 12.2 | I32: 11.7 | J32: 11.7 | K32: 11.7 | L32: 11.6 | M32: 12.6 | N32: 13.6 | O32: 12 | R32: 27
A33: 2013-11-11 | B33: 11.8 | C33: 9.2 | D33: 10.2 | E33: 12.9 | F33: 11.1 | G33: 11.7 | H33: 12 | I33: 11.4 | J33: 11.5 | K33: 11.5 | L33: 11.4 | M33: 12.4 | N33: 13.4 | O33: 11.8 | R33: 28
A34: 2013-11-12 | B34: 11.6 | C34: 9 | D34: 9.9 | E34: 12.7 | F34: 10.8 | G34: 11.5 | H34: 11.8 | I34: 11.2 | J34: 11.2 | K34: 11.3 | L34: 11.2 | M34: 12.2 | N34: 13.2 | O34: 11.6 | R34: 29
A35: 2013-11-13 | B35: 11.4 | C35: 8.8 | D35: 9.7 | E35: 12.5 | F35: 10.6 | G35: 11.3 | H35: 11.5 | I35: 10.9 | J35: 11 | K35: 11.1 | L35: 11 | M35: 12 | N35: 13 | O35: 11.4 | R35: 30
A36: 2013-11-14 | B36: 11.2 | C36: 8.6 | D36: 9.5 | E36: 12.3 | F36: 10.4 | G36: 11.1 | H36: 11.3 | I36: 10.7 | J36: 10.8 | K36: 10.9 | L36: 10.8 | M36: 11.8 | N36: 12.8 | O36: 11.2 | R36: 31
A37: 2013-11-15 | B37: 11 | C37: 8.3 | D37: 9.3 | E37: 12.1 | F37: 10.2 | G37: 10.9 | H37: 11.1 | I37: 10.4 | J37: 10.6 | K37: 10.6 | L37: 10.6 | M37: 11.6 | N37: 12.6 | O37: 11
A38: 2013-11-16 | B38: 10.8 | C38: 8.1 | D38: 9.1 | E38: 11.9 | F38: 10 | G38: 10.7 | H38: 10.9 | I38: 10.2 | J38: 10.4 | K38: 10.4 | L38: 10.4 | M38: 11.4 | N38: 12.4 | O38: 10.8
A39: 2013-11-17 | B39: 10.6 | C39: 7.9 | D39: 8.9 | E39: 11.8 | F39: 9.8 | G39: 10.5 | H39: 10.6 | I39: 10 | J39: 10.2 | K39: 10.2 | L39: 10.2 | M39: 11.1 | N39: 12.2 | O39: 10.6
A40: 2013-11-18 | B40: 10.4 | C40: 7.7 | D40: 8.7 | E40: 11.6 | F40: 9.6 | G40: 10.3 | H40: 10.4 | I40: 9.8 | J40: 9.9 | K40: 10 | L40: 10 | M40: 10.9 | N40: 12 | O40: 10.4
A41: 2013-11-19 | B41: 10.2 | C41: 7.4 | D41: 8.5 | E41: 11.4 | F41: 9.4 | G41: 10.1 | H41: 10.2 | I41: 9.6 | J41: 9.7 | K41: 9.8 | L41: 9.8 | M41: 10.8 | N41: 11.8 | O41: 10.1
A42: 2013-11-20 | B42: 10.1 | C42: 7.2 | D42: 8.3 | E42: 11.2 | F42: 9.2 | G42: 9.9 | H42: 10 | I42: 9.4 | J42: 9.5 | K42: 9.7 | L42: 9.6 | M42: 10.6 | N42: 11.6 | O42: 9.9
A43: 2013-11-21 | B43: 9.9 | C43: 7.1 | D43: 8.1 | E43: 11.1 | F43: 9 | G43: 9.7 | H43: 9.8 | I43: 9.2 | J43: 9.3 | K43: 9.5 | L43: 9.4 | M43: 10.4 | N43: 11.5 | O43: 9.8
A44: 2013-11-22 | B44: 9.8 | C44: 6.9 | D44: 8 | E44: 10.9 | F44: 8.8 | G44: 9.5 | H44: 9.7 | I44: 9.1 | J44: 9.2 | K44: 9.3 | L44: 9.2 | M44: 10.2 | N44: 11.3 | O44: 9.6
A45: 2013-11-23 | B45: 9.6 | C45: 6.7 | D45: 7.8 | E45: 10.8 | F45: 8.7 | G45: 9.4 | H45: 9.5 | I45: 8.9 | J45: 9 | K45: 9.2 | L45: 9.1 | M45: 10.1 | N45: 11.1 | O45: 9.4
A46: 2013-11-24 | B46: 9.5 | C46: 6.5 | D46: 7.6 | E46: 10.6 | F46: 8.5 | G46: 9.2 | H46: 9.3 | I46: 8.8 | J46: 8.8 | K46: 9 | L46: 8.9 | M46: 9.9 | N46: 11 | O46: 9.2
A47: 2013-11-25 | B47: 9.3 | C47: 6.4 | D47: 7.5 | E47: 10.5 | F47: 8.3 | G47: 9.1 | H47: 9.2 | I47: 8.6 | J47: 8.7 | K47: 8.8 | L47: 8.7 | M47: 9.7 | N47: 10.8 | O47: 9
A48: 2013-11-26 | B48: 9.2 | C48: 6.2 | D48: 7.3 | E48: 10.3 | F48: 8.2 | G48: 8.9 | H48: 9 | I48: 8.5 | J48: 8.5 | K48: 8.7 | L48: 8.6 | M48: 9.6 | N48: 10.7 | O48: 8.9
A49: 2013-11-27 | B49: 9.1 | C49: 6.1 | D49: 7.2 | E49: 10.2 | F49: 8 | G49: 8.8 | H49: 8.9 | I49: 8.4 | J49: 8.3 | K49: 8.5 | L49: 8.4 | M49: 9.4 | N49: 10.5 | O49: 8.7
A50: 2013-11-28 | B50: 8.9 | C50: 5.9 | D50: 7 | E50: 10 | F50: 7.8 | G50: 8.6 | H50: 8.7 | I50: 8.2 | J50: 8.2 | K50: 8.3 | L50: 8.3 | M50: 9.3 | N50: 10.3 | O50: 8.5
A51: 2013-11-29 | B51: 8.8 | C51: 5.7 | D51: 6.8 | E51: 9.9 | F51: 7.6 | G51: 8.4 | H51: 8.5 | I51: 8 | J51: 8 | K51: 8.2 | L51: 8.1 | M51: 9.1 | N51: 10.2 | O51: 8.4
A52: 2013-11-30 | B52: 8.6 | C52: 5.5 | D52: 6.6 | E52: 9.7 | F52: 7.4 | G52: 8.3 | H52: 8.4 | I52: 7.8 | J52: 7.8 | K52: 8 | L52: 7.9 | M52: 8.9 | N52: 10 | O52: 8.2
A53: 2013-12-01 | B53: 8.4 | C53: 5.4 | D53: 6.4 | E53: 9.5 | F53: 7.3 | G53: 8.1 | H53: 8.2 | I53: 7.6 | J53: 7.7 | K53: 7.8 | L53: 7.8 | M53: 8.8 | N53: 9.8 | O53: 8
A54: 2013-12-02 | B54: 8.2 | C54: 5.2 | D54: 6.2 | E54: 9.4 | F54: 7.1 | G54: 7.9 | H54: 8 | I54: 7.4 | J54: 7.5 | K54: 7.6 | L54: 7.6 | M54: 8.6 | N54: 9.6 | O54: 7.9
A55: 2013-12-03 | B55: 8 | C55: 5 | D55: 6 | E55: 9.2 | F55: 6.9 | G55: 7.7 | H55: 7.8 | I55: 7.2 | J55: 7.3 | K55: 7.4 | L55: 7.4 | M55: 8.4 | N55: 9.5 | O55: 7.7
A56: 2013-12-04 | B56: 7.8 | C56: 4.7 | D56: 5.8 | E56: 9 | F56: 6.7 | G56: 7.5 | H56: 7.6 | I56: 7 | J56: 7.1 | K56: 7.2 | L56: 7.2 | M56: 8.2 | N56: 9.2 | O56: 7.5
A57: 2013-12-05 | B57: 7.6 | C57: 4.5 | D57: 5.6 | E57: 8.8 | F57: 6.4 | G57: 7.3 | H57: 7.4 | I57: 6.7 | J57: 6.9 | K57: 7 | L57: 7 | M57: 8 | N57: 9 | O57: 7.3
A58: 2013-12-06 | B58: 7.4 | C58: 4.3 | D58: 5.4 | E58: 8.6 | F58: 6.2 | G58: 7.1 | H58: 7.3 | I58: 6.5 | J58: 6.7 | K58: 6.8 | L58: 6.8 | M58: 7.8 | N58: 8.8 | O58: 7.1
A59: 2013-12-07 | B59: 7.2 | C59: 4.1 | D59: 5.2 | E59: 8.4 | F59: 6 | G59: 6.9 | H59: 7.1 | I59: 6.3 | J59: 6.5 | K59: 6.6 | L59: 6.6 | M59: 7.6 | N59: 8.6 | O59: 6.9
A60: 2013-12-08 | B60: 7.1 | C60: 3.9 | D60: 5 | E60: 8.2 | F60: 5.8 | G60: 6.7 | H60: 6.9 | I60: 6.1 | J60: 6.3 | K60: 6.4 | L60: 6.4 | M60: 7.4 | N60: 8.4 | O60: 6.7
A61: 2013-12-09 | B61: 6.9 | C61: 3.7 | D61: 4.9 | E61: 8.1 | F61: 5.6 | G61: 6.5 | H61: 6.7 | I61: 5.9 | J61: 6.2 | K61: 6.2 | L61: 6.3 | M61: 7.2 | N61: 8.2 | O61: 6.5
A62: 2013-12-10 | B62: 6.7 | C62: 3.5 | D62: 4.7 | E62: 7.9 | F62: 5.5 | G62: 6.4 | H62: 6.5 | I62: 5.7 | J62: 6 | K62: 6 | L62: 6.1 | M62: 7.1 | N62: 8 | O62: 6.4
A63: 2013-12-11 | B63: 6.5 | C63: 3.4 | D63: 4.5 | E63: 7.7 | F63: 5.3 | G63: 6.2 | H63: 6.4 | I63: 5.5 | J63: 5.8 | K63: 5.8 | L63: 5.9 | M63: 6.9 | N63: 7.8 | O63: 6.2
A64: 2013-12-12 | B64: 6.4 | C64: 3.2 | D64: 4.3 | E64: 7.6 | F64: 5.1 | G64: 6 | H64: 6.2 | I64: 5.3 | J64: 5.6 | K64: 5.6 | L64: 5.7 | M64: 6.7 | N64: 7.6 | O64: 6
A65: 2013-12-13 | B65: 6.2 | C65: 3 | D65: 4.2 | E65: 7.4 | F65: 4.9 | G65: 5.9 | H65: 6.1 | I65: 5.1 | J65: 5.5 | K65: 5.4 | L65: 5.5 | M65: 6.6 | N65: 7.5 | O65: 5.8
A66: 2013-12-14 | B66: 6.1 | C66: 2.9 | D66: 4 | E66: 7.3 | F66: 4.8 | G66: 5.7 | H66: 5.9 | I66: 5 | J66: 5.3 | K66: 5.3 | L66: 5.4 | M66: 6.4 | N66: 7.3 | O66: 5.7
A67: 2013-12-15 | B67: 6 | C67: 2.7 | D67: 3.9 | E67: 7.2 | F67: 4.6 | G67: 5.6 | H67: 5.8 | I67: 4.8 | J67: 5.2 | K67: 5.1 | L67: 5.3 | M67: 6.3 | N67: 7.2 | O67: 5.5
A68: 2013-12-16 | B68: 5.9 | C68: 2.6 | D68: 3.8 | E68: 7.1 | F68: 4.5 | G68: 5.4 | H68: 5.6 | I68: 4.7 | J68: 5.1 | K68: 5 | L68: 5.1 | M68: 6.1 | N68: 7 | O68: 5.4
A69: 2013-12-17 | B69: 5.8 | C69: 2.4 | D69: 3.6 | E69: 7 | F69: 4.4 | G69: 5.3 | H69: 5.5 | I69: 4.6 | J69: 4.9 | K69: 4.8 | L69: 5 | M69: 6 | N69: 6.9 | O69: 5.2
A70: 2013-12-18 | B70: 5.7 | C70: 2.3 | D70: 3.5 | E70: 6.9 | F70: 4.3 | G70: 5.2 | H70: 5.4 | I70: 4.5 | J70: 4.8 | K70: 4.7 | L70: 4.9 | M70: 5.9 | N70: 6.8 | O70: 5.1
A71: 2013-12-19 | B71: 5.6 | C71: 2.2 | D71: 3.4 | E71: 6.8 | F71: 4.1 | G71: 5.1 | H71: 5.3 | I71: 4.4 | J71: 4.7 | K71: 4.6 | L71: 4.8 | M71: 5.8 | N71: 6.6 | O71: 5
A72: 2013-12-20 | B72: 5.5 | C72: 2.1 | D72: 3.3 | E72: 6.7 | F72: 4 | G72: 5 | H72: 5.2 | I72: 4.2 | J72: 4.6 | K72: 4.5 | L72: 4.7 | M72: 5.7 | N72: 6.5 | O72: 4.9
A73: 2013-12-21 | B73: 5.4 | C73: 2 | D73: 3.2 | E73: 6.6 | F73: 3.9 | G73: 4.9 | H73: 5.1 | I73: 4.1 | J73: 4.5 | K73: 4.4 | L73: 4.6 | M73: 5.6 | N73: 6.4 | O73: 4.8
A74: 2013-12-22 | B74: 5.3 | C74: 1.9 | D74: 3.1 | E74: 6.5 | F74: 3.8 | G74: 4.8 | H74: 5 | I74: 4 | J74: 4.4 | K74: 4.2 | L74: 4.4 | M74: 5.4 | N74: 6.3 | O74: 4.7
A75: 2013-12-23 | B75: 5.2 | C75: 1.7 | D75: 3 | E75: 6.3 | F75: 3.7 | G75: 4.7 | H75: 4.8 | I75: 3.9 | J75: 4.3 | K75: 4.1 | L75: 4.3 | M75: 5.3 | N75: 6.2 | O75: 4.5
A76: 2013-12-24 | B76: 5.1 | C76: 1.6 | D76: 2.8 | E76: 6.2 | F76: 3.6 | G76: 4.6 | H76: 4.7 | I76: 3.8 | J76: 4.2 | K76: 4 | L76: 4.2 | M76: 5.2 | N76: 6.1 | O76: 4.4
A77: 2013-12-25 | B77: 5 | C77: 1.5 | D77: 2.7 | E77: 6.1 | F77: 3.5 | G77: 4.4 | H77: 4.6 | I77: 3.7 | J77: 4.1 | K77: 3.9 | L77: 4.1 | M77: 5.1 | N77: 6 | O77: 4.3
A78: 2013-12-26 | B78: 4.9 | C78: 1.4 | D78: 2.6 | E78: 6 | F78: 3.3 | G78: 4.3 | H78: 4.5 | I78: 3.5 | J78: 3.9 | K78: 3.8 | L78: 4 | M78: 5 | N78: 5.8 | O78: 4.2
A79: 2013-12-27 | B79: 4.7 | C79: 1.3 | D79: 2.5 | E79: 5.8 | F79: 3.2 | G79: 4.2 | H79: 4.4 | I79: 3.4 | J79: 3.8 | K79: 3.6 | L79: 3.9 | M79: 4.9 | N79: 5.7 | O79: 4.1
A80: 2013-12-28 | B80: 4.6 | C80: 1.2 | D80: 2.4 | E80: 5.7 | F80: 3.1 | G80: 4.1 | H80: 4.3 | I80: 3.2 | J80: 3.7 | K80: 3.5 | L80: 3.8 | M80: 4.8 | N80: 5.6 | O80: 4
A81: 2013-12-29 | B81: 4.5 | C81: 1.1 | D81: 2.3 | E81: 5.6 | F81: 3 | G81: 4 | H81: 4.2 | I81: 3.1 | J81: 3.6 | K81: 3.4 | L81: 3.7 | M81: 4.7 | N81: 5.5 | O81: 3.9
A82: 2013-12-30 | B82: 4.4 | C82: 1 | D82: 2.2 | E82: 5.5 | F82: 2.9 | G82: 3.9 | H82: 4.1 | I82: 3 | J82: 3.5 | K82: 3.3 | L82: 3.6 | M82: 4.6 | N82: 5.4 | O82: 3.8
A83: 2013-12-31 | B83: 4.3 | C83: 0.9 | D83: 2.1 | E83: 5.4 | F83: 2.9 | G83: 3.8 | H83: 4.1 | I83: 2.9 | J83: 3.5 | K83: 3.2 | L83: 3.5 | M83: 4.5 | N83: 5.3 | O83: 3.7
A84: 2013-01-01 | B84: 4.2 | C84: 0.8 | D84: 2 | E84: 5.3 | F84: 2.8 | G84: 3.7 | H84: 4 | I84: 2.8 | J84: 3.4 | K84: 3.2 | L84: 3.5 | M84: 4.4 | N84: 5.2 | O84: 3.7
A85: 2013-01-02 | B85: 4.1 | C85: 0.8 | D85: 1.9 | E85: 5.2 | F85: 2.7 | G85: 3.6 | H85: 3.9 | I85: 2.7 | J85: 3.3 | K85: 3.1 | L85: 3.4 | M85: 4.3 | N85: 5.2 | O85: 3.6
A86: 2013-01-03 | B86: 4.1 | C86: 0.7 | D86: 1.9 | E86: 5.2 | F86: 2.7 | G86: 3.6 | H86: 3.9 | I86: 2.7 | J86: 3.3 | K86: 3 | L86: 3.3 | M86: 4.3 | N86: 5.1 | O86: 3.6
A87: 2013-01-04 | B87: 4 | C87: 0.7 | D87: 1.8 | E87: 5.1 | F87: 2.6 | G87: 3.5 | H87: 3.8 | I87: 2.6 | J87: 3.2 | K87: 3 | L87: 3.3 | M87: 4.2 | N87: 5.1 | O87: 3.5
A88: 2013-01-05 | B88: 3.9 | C88: 0.7 | D88: 1.8 | E88: 5 | F88: 2.6 | G88: 3.5 | H88: 3.8 | I88: 2.6 | J88: 3.2 | K88: 2.9 | L88: 3.3 | M88: 4.2 | N88: 5 | O88: 3.5
A89: 2013-01-06 | B89: 3.9 | C89: 0.6 | D89: 1.7 | E89: 4.9 | F89: 2.5 | G89: 3.5 | H89: 3.7 | I89: 2.6 | J89: 3.2 | K89: 2.9 | L89: 3.2 | M89: 4.2 | N89: 5 | O89: 3.4
A90: 2013-01-07 | B90: 3.8 | C90: 0.6 | D90: 1.7 | E90: 4.9 | F90: 2.5 | G90: 3.4 | H90: 3.7 | I90: 2.6 | J90: 3.1 | K90: 2.9 | L90: 3.2 | M90: 4.1 | N90: 4.9 | O90: 3.4
A91: 2013-01-08 | B91: 3.8 | C91: 0.6 | D91: 1.7 | E91: 4.8 | F91: 2.5 | G91: 3.4 | H91: 3.7 | I91: 2.5 | J91: 3.1 | K91: 2.8 | L91: 3.2 | M91: 4.1 | N91: 4.9 | O91: 3.4
A92: 2013-01-09 | B92: 3.7 | C92: 0.6 | D92: 1.7 | E92: 4.7 | F92: 2.4 | G92: 3.3 | H92: 3.6 | I92: 2.5 | J92: 3.1 | K92: 2.8 | L92: 3.1 | M92: 4.1 | N92: 4.8 | O92: 3.3
A93: 2013-01-10 | B93: 3.7 | C93: 0.5 | D93: 1.6 | E93: 4.7 | F93: 2.4 | G93: 3.3 | H93: 3.6 | I93: 2.5 | J93: 3 | K93: 2.8 | L93: 3.1 | M93: 4 | N93: 4.8 | O93: 3.3
A94: 2013-01-11 | B94: 3.6 | C94: 0.5 | D94: 1.6 | E94: 4.6 | F94: 2.4 | G94: 3.3 | H94: 3.6 | I94: 2.5 | J94: 3 | K94: 2.8 | L94: 3.1 | M94: 4 | N94: 4.8 | O94: 3.3
A95: 2013-01-12 | B95: 3.6 | C95: 0.5 | D95: 1.6 | E95: 4.6 | F95: 2.4 | G95: 3.3 | H95: 3.5 | I95: 2.5 | J95: 3 | K95: 2.8 | L95: 3.1 | M95: 4 | N95: 4.7 | O95: 3.2
A96: 2013-01-13 | B96: 3.5 | C96: 0.5 | D96: 1.6 | E96: 4.5 | F96: 2.4 | G96: 3.3 | H96: 3.5 | I96: 2.5 | J96: 2.9 | K96: 2.7 | L96: 3 | M96: 3.9 | N96: 4.7 | O96: 3.2
A97: 2013-01-14 | B97: 3.5 | C97: 0.5 | D97: 1.6 | E97: 4.5 | F97: 2.3 | G97: 3.2 | H97: 3.5 | I97: 2.5 | J97: 2.9 | K97: 2.7 | L97: 3 | M97: 3.9 | N97: 4.7 | O97: 3.2
A98: 2013-01-15 | B98: 3.5 | C98: 0.5 | D98: 1.6 | E98: 4.5 | F98: 2.3 | G98: 3.2 | H98: 3.5 | I98: 2.5 | J98: 2.9 | K98: 2.7 | L98: 3 | M98: 3.9 | N98: 4.6 | O98: 3.2
A99: 2013-01-16 | B99: 3.5 | C99: 0.5 | D99: 1.6 | E99: 4.4 | F99: 2.3 | G99: 3.2 | H99: 3.5 | I99: 2.6 | J99: 2.9 | K99: 2.7 | L99: 3 | M99: 3.9 | N99: 4.6 | O99: 3.2
A100: 2013-01-17 | B100: 3.4 | C100: 0.6 | D100: 1.6 | E100: 4.4 | F100: 2.3 | G100: 3.2 | H100: 3.4 | I100: 2.6 | J100: 2.9 | K100: 2.7 | L100: 3 | M100: 3.9 | N100: 4.6 | O100: 3.2
A101: 2013-01-18 | B101: 3.4 | C101: 0.6 | D101: 1.6 | E101: 4.4 | F101: 2.3 | G101: 3.2 | H101: 3.4 | I101: 2.6 | J101: 2.9 | K101: 2.7 | L101: 3 | M101: 3.8 | N101: 4.6 | O101: 3.2
A102: 2013-01-19 | B102: 3.4 | C102: 0.6 | D102: 1.6 | E102: 4.4 | F102: 2.3 | G102: 3.2 | H102: 3.4 | I102: 2.6 | J102: 2.9 | K102: 2.7 | L102: 3 | M102: 3.8 | N102: 4.6 | O102: 3.2
A103: 2013-01-20 | B103: 3.4 | C103: 0.6 | D103: 1.6 | E103: 4.4 | F103: 2.3 | G103: 3.2 | H103: 3.4 | I103: 2.6 | J103: 2.9 | K103: 2.7 | L103: 3 | M103: 3.8 | N103: 4.6 | O103: 3.2
A104: 2013-01-21 | B104: 3.4 | C104: 0.6 | D104: 1.6 | E104: 4.3 | F104: 2.3 | G104: 3.2 | H104: 3.5 | I104: 2.6 | J104: 2.9 | K104: 2.7 | L104: 3 | M104: 3.8 | N104: 4.6 | O104: 3.2
A105: 2013-01-22 | B105: 3.3 | C105: 0.6 | D105: 1.6 | E105: 4.3 | F105: 2.3 | G105: 3.2 | H105: 3.5 | I105: 2.6 | J105: 2.9 | K105: 2.7 | L105: 3 | M105: 3.8 | N105: 4.5 | O105: 3.2
A106: 2013-01-23 | B106: 3.3 | C106: 0.6 | D106: 1.6 | E106: 4.3 | F106: 2.3 | G106: 3.2 | H106: 3.5 | I106: 2.6 | J106: 2.9 | K106: 2.7 | L106: 3 | M106: 3.8 | N106: 4.5 | O106: 3.2
A107: 2013-01-24 | B107: 3.3 | C107: 0.6 | D107: 1.6 | E107: 4.3 | F107: 2.3 | G107: 3.2 | H107: 3.5 | I107: 2.6 | J107: 2.9 | K107: 2.7 | L107: 3 | M107: 3.8 | N107: 4.5 | O107: 3.2
A108: 2013-01-25 | B108: 3.3 | C108: 0.6 | D108: 1.6 | E108: 4.3 | F108: 2.3 | G108: 3.2 | H108: 3.5 | I108: 2.7 | J108: 2.9 | K108: 2.7 | L108: 3 | M108: 3.8 | N108: 4.5 | O108: 3.2
A109: 2013-01-26 | B109: 3.3 | C109: 0.6 | D109: 1.6 | E109: 4.3 | F109: 2.3 | G109: 3.2 | H109: 3.5 | I109: 2.7 | J109: 3 | K109: 2.7 | L109: 3 | M109: 3.9 | N109: 4.5 | O109: 3.2
A110: 2013-01-27 | B110: 3.3 | C110: 0.6 | D110: 1.6 | E110: 4.2 | F110: 2.3 | G110: 3.2 | H110: 3.6 | I110: 2.7 | J110: 3 | K110: 2.7 | L110: 3.1 | M110: 3.9 | N110: 4.5 | O110: 3.2
A111: 2013-01-28 | B111: 3.2 | C111: 0.6 | D111: 1.6 | E111: 4.2 | F111: 2.3 | G111: 3.2 | H111: 3.6 | I111: 2.8 | J111: 3 | K111: 2.7 | L111: 3.1 | M111: 3.9 | N111: 4.5 | O111: 3.2
A112: 2013-01-29 | B112: 3.2 | C112: 0.6 | D112: 1.6 | E112: 4.2 | F112: 2.3 | G112: 3.2 | H112: 3.6 | I112: 2.8 | J112: 3 | K112: 2.7 | L112: 3.1 | M112: 3.9 | N112: 4.5 | O112: 3.3
A113: 2013-01-30 | B113: 3.2 | C113: 0.6 | D113: 1.6 | E113: 4.2 | F113: 2.3 | G113: 3.2 | H113: 3.6 | I113: 2.9 | J113: 3 | K113: 2.7 | L113: 3.1 | M113: 3.9 | N113: 4.6 | O113: 3.3
A114: 2013-01-31 | B114: 3.2 | C114: 0.6 | D114: 1.6 | E114: 4.2 | F114: 2.3 | G114: 3.2 | H114: 3.7 | I114: 2.9 | J114: 3.1 | K114: 2.7 | L114: 3.2 | M114: 3.9 | N114: 4.6 | O114: 3.3
A115: 2013-02-01 | B115: 3.2 | C115: 0.6 | D115: 1.6 | E115: 4.2 | F115: 2.4 | G115: 3.2 | H115: 3.7 | I115: 2.9 | J115: 3.1 | K115: 2.7 | L115: 3.2 | M115: 4 | N115: 4.6 | O115: 3.4
A116: 2013-02-02 | B116: 3.3 | C116: 0.7 | D116: 1.6 | E116: 4.2 | F116: 2.4 | G116: 3.2 | H116: 3.7 | I116: 3 | J116: 3.1 | K116: 2.7 | L116: 3.2 | M116: 4 | N116: 4.6 | O116: 3.4
A117: 2013-02-03 | B117: 3.3 | C117: 0.7 | D117: 1.7 | E117: 4.2 | F117: 2.4 | G117: 3.3 | H117: 3.7 | I117: 3 | J117: 3.2 | K117: 2.7 | L117: 3.3 | M117: 4 | N117: 4.7 | O117: 3.4
A118: 2013-02-04 | B118: 3.3 | C118: 0.8 | D118: 1.7 | E118: 4.3 | F118: 2.4 | G118: 3.3 | H118: 3.8 | I118: 3 | J118: 3.2 | K118: 2.8 | L118: 3.3 | M118: 4.1 | N118: 4.7 | O118: 3.5
A119: 2013-02-05 | B119: 3.3 | C119: 0.8 | D119: 1.8 | E119: 4.3 | F119: 2.5 | G119: 3.3 | H119: 3.8 | I119: 3.1 | J119: 3.3 | K119: 2.8 | L119: 3.4 | M119: 4.1 | N119: 4.7 | O119: 3.5
A120: 2013-02-06 | B120: 3.3 | C120: 0.9 | D120: 1.8 | E120: 4.3 | F120: 2.6 | G120: 3.4 | H120: 3.9 | I120: 3.1 | J120: 3.3 | K120: 2.9 | L120: 3.4 | M120: 4.2 | N120: 4.8 | O120: 3.6
A121: 2013-02-07 | B121: 3.4 | C121: 1 | D121: 1.9 | E121: 4.3 | F121: 2.6 | G121: 3.4 | H121: 3.9 | I121: 3.1 | J121: 3.4 | K121: 2.9 | L121: 3.5 | M121: 4.2 | N121: 4.8 | O121: 3.6
A122: 2013-02-08 | B122: 3.4 | C122: 1.1 | D122: 2 | E122: 4.4 | F122: 2.7 | G122: 3.5 | H122: 4 | I122: 3.2 | J122: 3.4 | K122: 3 | L122: 3.6 | M122: 4.3 | N122: 4.9 | O122: 3.7
A123: 2013-02-09 | B123: 3.5 | C123: 1.2 | D123: 2 | E123: 4.4 | F123: 2.8 | G123: 3.6 | H123: 4 | I123: 3.2 | J123: 3.5 | K123: 3.1 | L123: 3.6 | M123: 4.3 | N123: 4.9 | O123: 3.8
A124: 2013-02-10 | B124: 3.5 | C124: 1.3 | D124: 2.1 | E124: 4.4 | F124: 2.9 | G124: 3.6 | H124: 4.1 | I124: 3.3 | J124: 3.6 | K124: 3.2 | L124: 3.7 | M124: 4.4 | N124: 5 | O124: 3.9
A125: 2013-02-11 | B125: 3.6 | C125: 1.4 | D125: 2.2 | E125: 4.5 | F125: 3 | G125: 3.7 | H125: 4.2 | I125: 3.4 | J125: 3.7 | K125: 3.2 | L125: 3.8 | M125: 4.5 | N125: 5.1 | O125: 3.9
A126: 2013-02-12 | B126: 3.6 | C126: 1.5 | D126: 2.3 | E126: 4.5 | F126: 3.1 | G126: 3.8 | H126: 4.3 | I126: 3.5 | J126: 3.8 | K126: 3.3 | L126: 3.9 | M126: 4.5 | N126: 5.1 | O126: 4
A127: 2013-02-13 | B127: 3.7 | C127: 1.6 | D127: 2.4 | E127: 4.6 | F127: 3.1 | G127: 3.9 | H127: 4.4 | I127: 3.6 | J127: 3.9 | K127: 3.4 | L127: 4 | M127: 4.6 | N127: 5.2 | O127: 4.1
A128: 2013-02-14 | B128: 3.7 | C128: 1.7 | D128: 2.5 | E128: 4.7 | F128: 3.2 | G128: 4 | H128: 4.5 | I128: 3.8 | J128: 3.9 | K128: 3.5 | L128: 4.1 | M128: 4.7 | N128: 5.2 | O128: 4.2
A129: 2013-02-15 | B129: 3.8 | C129: 1.8 | D129: 2.6 | E129: 4.7 | F129: 3.3 | G129: 4 | H129: 4.5 | I129: 3.9 | J129: 4 | K129: 3.6 | L129: 4.2 | M129: 4.8 | N129: 5.3 | O129: 4.3
A130: 2013-02-16 | B130: 3.9 | C130: 1.9 | D130: 2.7 | E130: 4.8 | F130: 3.4 | G130: 4.1 | H130: 4.6 | I130: 4 | J130: 4.1 | K130: 3.7 | L130: 4.3 | M130: 4.8 | N130: 5.4 | O130: 4.4
A131: 2013-02-17 | B131: 3.9 | C131: 2 | D131: 2.8 | E131: 4.8 | F131: 3.5 | G131: 4.2 | H131: 4.7 | I131: 4.2 | J131: 4.2 | K131: 3.8 | L131: 4.4 | M131: 4.9 | N131: 5.5 | O131: 4.5
A132: 2013-02-18 | B132: 4 | C132: 2.1 | D132: 2.9 | E132: 4.9 | F132: 3.6 | G132: 4.3 | H132: 4.8 | I132: 4.3 | J132: 4.3 | K132: 3.9 | L132: 4.4 | M132: 5 | N132: 5.5 | O132: 4.6
A133: 2013-02-19 | B133: 4.1 | C133: 2.2 | D133: 3 | E133: 5 | F133: 3.7 | G133: 4.4 | H133: 4.9 | I133: 4.5 | J133: 4.4 | K133: 4 | L133: 4.5 | M133: 5.1 | N133: 5.6 | O133: 4.7
A134: 2013-02-20 | B134: 4.1 | C134: 2.3 | D134: 3.1 | E134: 5 | F134: 3.8 | G134: 4.5 | H134: 5 | I134: 4.6 | J134: 4.5 | K134: 4.1 | L134: 4.6 | M134: 5.2 | N134: 5.7 | O134: 4.8
A135: 2013-02-21 | B135: 4.2 | C135: 2.4 | D135: 3.2 | E135: 5.1 | F135: 3.9 | G135: 4.6 | H135: 5.1 | I135: 4.7 | J135: 4.6 | K135: 4.2 | L135: 4.7 | M135: 5.3 | N135: 5.8 | O135: 4.9
A136: 2013-02-22 | B136: 4.3 | C136: 2.6 | D136: 3.3 | E136: 5.2 | F136: 4.1 | G136: 4.7 | H136: 5.3 | I136: 4.9 | J136: 4.7 | K136: 4.4 | L136: 4.9 | M136: 5.4 | N136: 5.9 | O136: 5
A137: 2013-02-23 | B137: 4.4 | C137: 2.7 | D137: 3.4 | E137: 5.3 | F137: 4.2 | G137: 4.8 | H137: 5.4 | I137: 5 | J137: 4.9 | K137: 4.5 | L137: 5 | M137: 5.5 | N137: 6 | O137: 5.1
A138: 2013-02-24 | B138: 4.5 | C138: 2.8 | D138: 3.5 | E138: 5.4 | F138: 4.3 | G138: 4.9 | H138: 5.5 | I138: 5.1 | J138: 5 | K138: 4.6 | L138: 5.1 | M138: 5.6 | N138: 6.2 | O138: 5.2
A139: 2013-02-25 | B139: 4.6 | C139: 2.9 | D139: 3.7 | E139: 5.5 | F139: 4.4 | G139: 5 | H139: 5.6 | I139: 5.3 | J139: 5.1 | K139: 4.8 | L139: 5.2 | M139: 5.7 | N139: 6.3 | O139: 5.4
A140: 2013-02-26 | B140: 4.7 | C140: 3.1 | D140: 3.8 | E140: 5.6 | F140: 4.6 | G140: 5.1 | H140: 5.7 | I140: 5.4 | J140: 5.2 | K140: 4.9 | L140: 5.4 | M140: 5.9 | N140: 6.4 | O140: 5.5
A141: 2013-02-27 | B141: 4.7 | C141: 3.2 | D141: 3.9 | E141: 5.7 | F141: 4.7 | G141: 5.3 | H141: 5.9 | I141: 5.5 | J141: 5.4 | K141: 5 | L141: 5.5 | M141: 6 | N141: 6.5 | O141: 5.6
A142: 2013-02-28 | B142: 4.8 | C142: 3.3 | D142: 4 | E142: 5.8 | F142: 4.8 | G142: 5.4 | H142: 6 | I142: 5.6 | J142: 5.5 | K142: 5.1 | L142: 5.6 | M142: 6.1 | N142: 6.6 | O142: 5.7
A143: 2013-03-01 | B143: 4.9 | C143: 3.5 | D143: 4.2 | E143: 5.9 | F143: 4.9 | G143: 5.5 | H143: 6.1 | I143: 5.7 | J143: 5.6 | K143: 5.3 | L143: 5.7 | M143: 6.2 | N143: 6.8 | O143: 5.9
A144: 2013-03-02 | B144: 5 | C144: 3.6 | D144: 4.3 | E144: 6 | F144: 5.1 | G144: 5.6 | H144: 6.2 | I144: 5.8 | J144: 5.7 | K144: 5.4 | L144: 5.9 | M144: 6.4 | N144: 6.9 | O144: 6
A145: 2013-03-03 | B145: 5.1 | C145: 3.7 | D145: 4.4 | E145: 6.1 | F145: 5.2 | G145: 5.7 | H145: 6.3 | I145: 5.9 | J145: 5.9 | K145: 5.5 | L145: 6 | M145: 6.5 | N145: 7 | O145: 6.1
A146: 2013-03-04 | B146: 5.2 | C146: 3.8 | D146: 4.5 | E146: 6.2 | F146: 5.3 | G146: 5.8 | H146: 6.5 | I146: 6 | J146: 6 | K146: 5.6 | L146: 6.1 | M146: 6.6 | N146: 7.1 | O146: 6.2
A147: 2013-03-05 | B147: 5.3 | C147: 3.9 | D147: 4.6 | E147: 6.3 | F147: 5.4 | G147: 5.9 | H147: 6.6 | I147: 6.1 | J147: 6.1 | K147: 5.7 | L147: 6.2 | M147: 6.7 | N147: 7.2 | O147: 6.3
A148: 2013-03-06 | B148: 5.4 | C148: 4 | D148: 4.7 | E148: 6.3 | F148: 5.5 | G148: 6 | H148: 6.7 | I148: 6.3 | J148: 6.2 | K148: 5.8 | L148: 6.3 | M148: 6.8 | N148: 7.3 | O148: 6.4
A149: 2013-03-07 | B149: 5.5 | C149: 4.1 | D149: 4.8 | E149: 6.4 | F149: 5.6 | G149: 6.1 | H149: 6.8 | I149: 6.4 | J149: 6.3 | K149: 5.9 | L149: 6.4 | M149: 6.9 | N149: 7.4 | O149: 6.6
A150: 2013-03-08 | B150: 5.5 | C150: 4.2 | D150: 4.9 | E150: 6.5 | F150: 5.7 | G150: 6.3 | H150: 6.9 | I150: 6.5 | J150: 6.4 | K150: 6 | L150: 6.6 | M150: 7 | N150: 7.5 | O150: 6.7
A151: 2013-03-09 | B151: 5.6 | C151: 4.4 | D151: 5 | E151: 6.6 | F151: 5.8 | G151: 6.4 | H151: 7.1 | I151: 6.7 | J151: 6.6 | K151: 6.1 | L151: 6.7 | M151: 7.2 | N151: 7.6 | O151: 6.8
A152: 2013-03-10 | B152: 5.7 | C152: 4.5 | D152: 5.1 | E152: 6.7 | F152: 6 | G152: 6.5 | H152: 7.2 | I152: 6.8 | J152: 6.7 | K152: 6.3 | L152: 6.8 | M152: 7.3 | N152: 7.7 | O152: 6.9
A153: 2013-03-11 | B153: 5.8 | C153: 4.6 | D153: 5.3 | E153: 6.8 | F153: 6.1 | G153: 6.6 | H153: 7.4 | I153: 7 | J153: 6.8 | K153: 6.4 | L153: 7 | M153: 7.4 | N153: 7.9 | O153: 7.1
A154: 2013-03-12 | B154: 6 | C154: 4.8 | D154: 5.4 | E154: 6.9 | F154: 6.2 | G154: 6.8 | H154: 7.5 | I154: 7.2 | J154: 7 | K154: 6.5 | L154: 7.1 | M154: 7.6 | N154: 8 | O154: 7.2
A155: 2013-03-13 | B155: 6.1 | C155: 4.9 | D155: 5.6 | E155: 7.1 | F155: 6.4 | G155: 6.9 | H155: 7.7 | I155: 7.3 | J155: 7.1 | K155: 6.7 | L155: 7.3 | M155: 7.7 | N155: 8.1 | O155: 7.4
A156: 2013-03-14 | B156: 6.2 | C156: 5.1 | D156: 5.7 | E156: 7.2 | F156: 6.6 | G156: 7.1 | H156: 7.9 | I156: 7.5 | J156: 7.3 | K156: 6.8 | L156: 7.5 | M156: 7.9 | N156: 8.3 | O156: 7.6
A157: 2013-03-15 | B157: 6.4 | C157: 5.2 | D157: 5.9 | E157: 7.4 | F157: 6.7 | G157: 7.2 | H157: 8.1 | I157: 7.7 | J157: 7.5 | K157: 7 | L157: 7.6 | M157: 8.1 | N157: 8.4 | O157: 7.7
A158: 2013-03-16 | B158: 6.5 | C158: 5.4 | D158: 6 | E158: 7.5 | F158: 6.9 | G158: 7.4 | H158: 8.2 | I158: 7.8 | J158: 7.7 | K158: 7.1 | L158: 7.8 | M158: 8.2 | N158: 8.6 | O158: 7.9
A159: 2013-03-17 | B159: 6.6 | C159: 5.6 | D159: 6.2 | E159: 7.6 | F159: 7 | G159: 7.5 | H159: 8.4 | I159: 8 | J159: 7.8 | K159: 7.3 | L159: 8 | M159: 8.4 | N159: 8.7 | O159: 8
A160: 2013-03-18 | B160: 6.7 | C160: 5.7 | D160: 6.3 | E160: 7.8 | F160: 7.2 | G160: 7.7 | H160: 8.5 | I160: 8.1 | J160: 8 | K160: 7.4 | L160: 8.1 | M160: 8.5 | N160: 8.8 | O160: 8.2
A161: 2013-03-19 | B161: 6.9 | C161: 5.9 | D161: 6.4 | E161: 7.9 | F161: 7.3 | G161: 7.8 | H161: 8.7 | I161: 8.2 | J161: 8.1 | K161: 7.5 | L161: 8.2 | M161: 8.6 | N161: 9 | O161: 8.3
A162: 2013-03-20 | B162: 7 | C162: 6 | D162: 6.6 | E162: 8 | F162: 7.5 | G162: 7.9 | H162: 8.8 | I162: 8.3 | J162: 8.2 | K162: 7.6 | L162: 8.4 | M162: 8.7 | N162: 9.1 | O162: 8.4
A163: 2013-03-21 | B163: 7.1 | C163: 6.1 | D163: 6.7 | E163: 8.1 | F163: 7.6 | G163: 8 | H163: 8.9 | I163: 8.4 | J163: 8.4 | K163: 7.8 | L163: 8.5 | M163: 8.9 | N163: 9.2 | O163: 8.6
A164: 2013-03-22 | B164: 7.2 | C164: 6.3 | D164: 6.8 | E164: 8.2 | F164: 7.7 | G164: 8.2 | H164: 9 | I164: 8.5 | J164: 8.5 | K164: 7.9 | L164: 8.6 | M164: 9 | N164: 9.3 | O164: 8.7
A165: 2013-03-23 | B165: 7.3 | C165: 6.4 | D165: 6.9 | E165: 8.3 | F165: 7.8 | G165: 8.3 | H165: 9.2 | I165: 8.6 | J165: 8.6 | K165: 8 | L165: 8.7 | M165: 9.1 | N165: 9.4 | O165: 8.8
A166: 2013-03-24 | B166: 7.4 | C166: 6.5 | D166: 7.1 | E166: 8.4 | F166: 8 | G166: 8.4 | H166: 9.3 | I166: 8.7 | J166: 8.7 | K166: 8.1 | L166: 8.8 | M166: 9.2 | N166: 9.5 | O166: 8.9
A167: 2013-03-25 | B167: 7.5 | C167: 6.7 | D167: 7.2 | E167: 8.5 | F167: 8.1 | G167: 8.5 | H167: 9.4 | I167: 8.8 | J167: 8.8 | K167: 8.2 | L167: 8.9 | M167: 9.3 | N167: 9.6 | O167: 9
A168: 2013-03-26 | B168: 7.7 | C168: 6.8 | D168: 7.4 | E168: 8.7 | F168: 8.2 | G168: 8.7 | H168: 9.5 | I168: 8.9 | J168: 9 | K168: 8.4 | L168: 9.1 | M168: 9.4 | N168: 9.7 | O168: 9.2
A169: 2013-03-27 | B169: 7.8 | C169: 7 | D169: 7.5 | E169: 8.8 | F169: 8.4 | G169: 8.8 | H169: 9.7 | I169: 9 | J169: 9.1 | K169: 8.5 | L169: 9.2 | M169: 9.6 | N169: 9.9 | O169: 9.3
A170: 2013-03-28 | B170: 7.9 | C170: 7.2 | D170: 7.7 | E170: 8.9 | F170: 8.6 | G170: 9 | H170: 9.9 | I170: 9.2 | J170: 9.3 | K170: 8.7 | L170: 9.4 | M170: 9.8 | N170: 10 | O170: 9.5
A171: 2013-03-29 | B171: 8.1 | C171: 7.4 | D171: 7.9 | E171: 9.1 | F171: 8.7 | G171: 9.2 | H171: 10 | I171: 9.4 | J171: 9.5 | K171: 8.9 | L171: 9.6 | M171: 9.9 | N171: 10.2 | O171: 9.7
A172: 2013-03-30 | B172: 8.3 | C172: 7.6 | D172: 8.1 | E172: 9.3 | F172: 8.9 | G172: 9.3 | H172: 10.2 | I172: 9.6 | J172: 9.7 | K172: 9 | L172: 9.8 | M172: 10.1 | N172: 10.4 | O172: 9.9
A173: 2013-03-31 | B173: 8.4 | C173: 7.8 | D173: 8.3 | E173: 9.5 | F173: 9.1 | G173: 9.5 | H173: 10.4 | I173: 9.8 | J173: 9.9 | K173: 9.2 | L173: 10 | M173: 10.3 | N173: 10.5 | O173: 10
A174: 2013-04-01 | B174: 8.6 | C174: 8 | D174: 8.5 | E174: 9.6 | F174: 9.3 | G174: 9.7 | H174: 10.6 | I174: 10 | J174: 10.1 | K174: 9.4 | L174: 10.2 | M174: 10.5 | N174: 10.7 | O174: 10.2
A175: 2013-04-02 | B175: 8.8 | C175: 8.2 | D175: 8.7 | E175: 9.8 | F175: 9.5 | G175: 9.9 | H175: 10.8 | I175: 10.2 | J175: 10.3 | K175: 9.6 | L175: 10.4 | M175: 10.7 | N175: 10.9 | O175: 10.4
A176: 2013-04-03 | B176: 9 | C176: 8.4 | D176: 8.9 | E176: 10 | F176: 9.7 | G176: 10.1 | H176: 11.1 | I176: 10.4 | J176: 10.5 | K176: 9.8 | L176: 10.6 | M176: 10.9 | N176: 11.1 | O176: 10.6
A177: 2013-04-04 | B177: 9.2 | C177: 8.6 | D177: 9.1 | E177: 10.2 | F177: 9.9 | G177: 10.3 | H177: 11.3 | I177: 10.6 | J177: 10.7 | K177: 10 | L177: 10.8 | M177: 11.1 | N177: 11.2 | O177: 10.8
A178: 2013-04-05 | B178: 9.4 | C178: 8.8 | D178: 9.3 | E178: 10.4 | F178: 10.1 | G178: 10.5 | H178: 11.5 | I178: 10.8 | J178: 10.9 | K178: 10.2 | L178: 11 | M178: 11.3 | N178: 11.4 | O178: 11
A179: 2013-04-06 | B179: 9.5 | C179: 9 | D179: 9.5 | E179: 10.5 | F179: 10.3 | G179: 10.6 | H179: 11.7 | I179: 10.9 | J179: 11.1 | K179: 10.4 | L179: 11.2 | M179: 11.5 | N179: 11.6 | O179: 11.2
A180: 2013-04-07 | B180: 9.7 | C180: 9.3 | D180: 9.7 | E180: 10.7 | F180: 10.5 | G180: 10.8 | H180: 11.9 | I180: 11.1 | J180: 11.2 | K180: 10.5 | L180: 11.3 | M180: 11.7 | N180: 11.8 | O180: 11.4
A181: 2013-04-08 | B181: 9.9 | C181: 9.5 | D181: 9.9 | E181: 10.9 | F181: 10.7 | G181: 11 | H181: 12.1 | I181: 11.3 | J181: 11.4 | K181: 10.7 | L181: 11.5 | M181: 11.9 | N181: 11.9 | O181: 11.6
A182: 2013-04-09 | B182: 10.1 | C182: 9.7 | D182: 10.1 | E182: 11.1 | F182: 10.9 | G182: 11.2 | H182: 12.3 | I182: 11.4 | J182: 11.6 | K182: 10.9 | L182: 11.7 | M182: 12 | N182: 12.1 | O182: 11.8
A183: 2013-04-10 | B183: 10.2 | C183: 9.9 | D183: 10.2 | E183: 11.3 | F183: 11.1 | G183: 11.4 | H183: 12.5 | I183: 11.6 | J183: 11.8 | K183: 11.1 | L183: 11.9 | M183: 12.2 | N183: 12.3 | O183: 12
A184: 2013-04-11 | B184: 10.4 | C184: 10.1 | D184: 10.4 | E184: 11.4 | F184: 11.3 | G184: 11.6 | H184: 12.6 | I184: 11.8 | J184: 12 | K184: 11.3 | L184: 12.1 | M184: 12.4 | N184: 12.4 | O184: 12.1
A185: 2013-04-12 | B185: 10.5 | C185: 10.3 | D185: 10.6 | E185: 11.6 | F185: 11.5 | G185: 11.7 | H185: 12.8 | I185: 12 | J185: 12.2 | K185: 11.5 | L185: 12.3 | M185: 12.6 | N185: 12.6 | O185: 12.3
A186: 2013-04-13 | B186: 10.7 | C186: 10.5 | D186: 10.8 | E186: 11.8 | F186: 11.7 | G186: 11.9 | H186: 13 | I186: 12.2 | J186: 12.4 | K186: 11.7 | L186: 12.4 | M186: 12.8 | N186: 12.8 | O186: 12.5
A187: 2013-04-14 | B187: 10.9 | C187: 10.7 | D187: 11 | E187: 11.9 | F187: 11.8 | G187: 12.1 | H187: 13.2 | I187: 12.4 | J187: 12.6 | K187: 11.8 | L187: 12.6 | M187: 12.9 | N187: 12.9 | O187: 12.7
A188: 2013-04-15 | B188: 11 | C188: 10.9 | D188: 11.2 | E188: 12.1 | F188: 12 | G188: 12.3 | H188: 13.4 | I188: 12.5 | J188: 12.8 | K188: 12 | L188: 12.8 | M188: 13.1 | N188: 13.1 | O188: 12.9
A189: 2013-04-16 | B189: 11.2 | C189: 11.1 | D189: 11.4 | E189: 12.2 | F189: 12.2 | G189: 12.5 | H189: 13.6 | I189: 12.7 | J189: 13 | K189: 12.2 | L189: 13 | M189: 13.3 | N189: 13.3 | O189: 13.1
A190: 2013-04-17 | B190: 11.3 | C190: 11.3 | D190: 11.5 | E190: 12.4 | F190: 12.4 | G190: 12.6 | H190: 13.8 | I190: 12.9 | J190: 13.2 | K190: 12.4 | L190: 13.1 | M190: 13.5 | N190: 13.4 | O190: 13.3
A191: 2013-04-18 | B191: 11.5 | C191: 11.5 | D191: 11.7 | E191: 12.5 | F191: 12.6 | G191: 12.8 | H191: 14 | I191: 13.1 | J191: 13.4 | K191: 12.5 | L191: 13.3 | M191: 13.6 | N191: 13.6 | O191: 13.4
A192: 2013-04-19 | B192: 11.6 | C192: 11.7 | D192: 11.9 | E192: 12.7 | F192: 12.8 | G192: 13 | H192: 14.2 | I192: 13.2 | J192: 13.5 | K192: 12.7 | L192: 13.5 | M192: 13.8 | N192: 13.7 | O192: 13.6
A193: 2013-04-20 | B193: 11.8 | C193: 11.9 | D193: 12 | E193: 12.8 | F193: 12.9 | G193: 13.1 | H193: 14.3 | I193: 13.4 | J193: 13.7 | K193: 12.9 | L193: 13.6 | M193: 13.9 | N193: 13.9 | O193: 13.8
A194: 2013-04-21 | B194: 11.9 | C194: 12 | D194: 12.2 | E194: 13 | F194: 13.1 | G194: 13.3 | H194: 14.5 | I194: 13.6 | J194: 13.9 | K194: 13 | L194: 13.8 | M194: 14.1 | N194: 14 | O194: 14
A195: 2013-04-22 | B195: 12 | C195: 12.2 | D195: 12.4 | E195: 13.1 | F195: 13.3 | G195: 13.4 | H195: 14.7 | I195: 13.8 | J195: 14.1 | K195: 13.2 | L195: 13.9 | M195: 14.3 | N195: 14.2 | O195: 14.1
A196: 2013-04-23 | B196: 12.2 | C196: 12.4 | D196: 12.5 | E196: 13.2 | F196: 13.4 | G196: 13.6 | H196: 14.9 | I196: 14 | J196: 14.3 | K196: 13.3 | L196: 14.1 | M196: 14.5 | N196: 14.3 | O196: 14.3
A197: 2013-04-24 | B197: 12.3 | C197: 12.6 | D197: 12.7 | E197: 13.4 | F197: 13.6 | G197: 13.8 | H197: 15 | I197: 14.2 | J197: 14.4 | K197: 13.5 | L197: 14.3 | M197: 14.6 | N197: 14.5 | O197: 14.5
A198: 2013-04-25 | B198: 12.5 | C198: 12.8 | D198: 12.9 | E198: 13.6 | F198: 13.8 | G198: 14 | H198: 15.2 | I198: 14.4 | J198: 14.6 | K198: 13.7 | L198: 14.5 | M198: 14.8 | N198: 14.6 | O198: 14.7
A199: 2013-04-26 | B199: 12.7 | C199: 13 | D199: 13.1 | E199: 13.7 | F199: 14 | G199: 14.2 | H199: 15.4 | I199: 14.7 | J199: 14.8 | K199: 13.9 | L199: 14.6 | M199: 15 | N199: 14.8 | O199: 14.9
A200: 2013-04-27 | B200: 12.8 | C200: 13.2 | D200: 13.3 | E200: 13.9 | F200: 14.2 | G200: 14.4 | H200: 15.6 | I200: 14.9 | J200: 15 | K200: 14.1 | L200: 14.8 | M200: 15.2 | N200: 15 | O200: 15.1
A201: 2013-04-28 | B201: 13 | C201: 13.4 | D201: 13.5 | E201: 14.1 | F201: 14.4 | G201: 14.6 | H201: 15.8 | I201: 15.2 | J201: 15.2 | K201: 14.3 | L201: 15 | M201: 15.4 | N201: 15.2 | O201: 15.3
A202: 2013-04-29 | B202: 13.2 | C202: 13.6 | D202: 13.7 | E202: 14.3 | F202: 14.6 | G202: 14.8 | H202: 16 | I202: 15.5 | J202: 15.5 | K202: 14.5 | L202: 15.2 | M202: 15.6 | N202: 15.4 | O202: 15.5
... 448 more rows
